Workbook

Sheet Maquette (hidden)
A2: VARIABLES A SAISIR
A3: Année | B3: 2017
A4: Budget | B4: Compte Financier
A5: N° budget

Sheet remarq (hidden)
A1: T2 : automatiser les CP de personnel pour les AE personnel saisies, ces montants étant systématiquement les mêmes (pour tous les T2) | B1: FAIT
A2: T2 (tous) : pour la cellule L11, la formule est à remplacer par somme (L12:L16) | B2: FAIT
A3: T2 (tous) et T6 (tous) : contrôle de cohérence des CP personnel et des charges de personnel à enlever car les montants peuvent être différents (charges à payer par exemple) | B3: FAIT
A4: T2 ETAB : G34, G33 et G32 contrôle de cohérence PRINC + SIE???
A5: T3 : créer les liens pour que la saisie ne soit à faire que pour PRINC, FU et SIE (destinations et recettes) | B5: FAIT
A6: T3 : ajouter un onglet pour FU et un onglet pour SIE | B6: FAIT
A7: T4 : cellule C11 remplacer le lien avec l'onglet '2-tab_aut_budg_FU'!J30 par un lien avec l'onglet '2-tab_aut_budg_ETAB'!J30 Idem pour D11 et E11 pour BR et COFI | B7: FAIT
A8: T5 : Automatiser le total des colonnes prévisions de décaissements et prévisions d'encaissements | B8: FAIT
A9: T6 : cellule H46 formule à changer car différente de H44 et H45 (pour tous les T6) | B9: FAIT
A10: T7 : ajouter la formule permettant de reprendre le montant de la colonne C49 dans D7 et ceci pour chaque mois | B10: FAIT
A11: T7 : prise en compte des arrondis entre T4 et T7 : notamment opérations gérées en compte de tiers | B11: NON FAIT
A12: T8 : pas de recettes fléchées à UBS => Tableaux 8 à supprimer | B12: FAIT
A13: T9 : modifier les colonnes selon modèle transmis | B13: FAIT
A14: Annexe synthèse : pas de contrôle de cohérence sur les données 2, 3 et 4 (H9 H10 H11 I9 I10 I11 J9 J10 J11) ces données COFI 2016 sont à saisir manuellemment sauf pour H10 I10 J10 où il ya une formule de calcul | B14: FAIT
A15: Annexe synthèse : H24 : ne peut pas être pré remplie pour BI car le tableau 7 ne concerne que le COFI (idem pour cellule I24) + aps de contrôle de cohérence à faire | B15: FAIT
A16: Annexe synthèse : H42 : différence (G20+ G22) - (C20+C22) à mettreen formule. Idem I42 et J42. Enlever le contrôle de cohérence car le tableau 5 ne prend pas en compte tous les éléments contenue dans la cellule H42. Idem I42 et J42. | B16: FAIT
A17: Annexe synthèse : I38 : incohérence due à l'arrondi | B17: NON FAIT
A18: Annexe synthèse : H44 : problème d'arrondis idem pour 144 et J44 + formule à adapter en fnction des données + ou - | B18: NON FAIT
A19: Annexe synthèse : I48 : problème d'arrondis | B19: NON FAIT
A20: Annexe synthèse : H54 : problème d'arrondis idem pour I54 et J54 | B20: NON FAIT
A21: Annexe synthèse : I55 : erreur dans le calcul cumulé du niveau de trésorerie PRINC, FU et CFA | B21: NON FAIT MAIS EXPLICATIONS A DONNER PAR UBS
A22: Annexe synthèse : I56 : problème d'arrondis Idem pour H56 et J56. | B22: NON FAIT
A24: Enlever la protection sur certains tableaux
A25: Comment protéger des cellules dans des tableaux pour éviter saisies sur formules
A26: Toutes les données concernant le "fléché" ont été supprimés (commentaires et contrôle de cohérence)

Sheet récap
B1: EPSCP - synthèse des documents budgétaires
B4: Intitulé du tableau | C4: Périmètre | D4: Soumission au CA
A6: 1 | B6: Tableau des emplois | C6: Budget de l'établissement | D6: Pour vote
A7: 2 | B7: Tableau des autorisations budgétaires | C7: Budget de l'établissement (3) = (1)+(2) | D7: Pour vote. Pour les SIE, le vote relève du CA de l'établissement de rattachement
C8: Budget établissement principal (1)
C9: Fondation (2)
A10: 3 | B10: Tableau des dépenses par destination et recettes par origine | C10: Budget de l'établissement (3) = (1)+(2) | D10: Pour information
C11: Budget établissement principal (1)
C12: Fondation (2)
A13: 4 | B13: Tableau d'équilibre financier | C13: Budget de l'établissement | D13: Pour vote
A14: 5 | B14: Tableau des opération pour compte de tiers | C14: Budget de l'établissement | D14: Pour information
A15: 6 | B15: Tableau de situation patrimoniale (tableau compte de résultat - tableau de financement) | C15: Budget de l'établissement (3) = (1)+(2) | D15: Pour vote
C16: Budget établissement principal (1)
C17: Fondation (2)
A18: 7 | B18: Tableau présentant le plan de trésorerie | C18: Budget de l'établissement | D18: Pour information
A19: 8 | B19: Tableau des opérations liées aux recettes fléchées | C19: Budget de l'établissement (3) = (1)+(2) | D19: Pour information
C20: Budget établissement principal (1)
C21: Fondation (2)
A22: 9 | B22: Tableau des opérations pluriannuelles | C22: Budget de l'établissement | D22: Pour vote
A24: Annexe 5 | B24: Tableau de synthèse | C24: Budget de l'établissement

Sheet TS MESR
A1: UBS | C1: Compte financier 2020
C2: budget agrégé | E2: budget établissement
C3: hors SIE | E3: avec SIE
A5: T6 | B5: résultat net comptable | C5: =+IF('6-tab CR_TF_ETAB'!D14>0,'6-tab CR_TF_ETAB'!D14,'6-tab CR_TF_ETAB'!D14*-1) -> 2375948.13 | E5: =+IF(#REF!>0,#REF!,#REF!*-1) ->  | G5: onglet "6-tab CR_TF_ETAB" : cellule H 14 (si perte) ou cellule D 14 (si bénéfice)
A6: T6 | B6: résultat net comptable (établissement principal) | C6: =+IF('6-tab CR_TF_PRINC'!D14>0,'6-tab CR_TF_PRINC'!D14,'6-tab CR_TF_PRINC'!D14*-1) -> 2375948.13 | G6: onglet "6-tab CR_TF_PRINC" : cellule H4 (si perte) ou cellule D14 (si bénéfice)
A7: T6 | B7: CAF | C7: ='6-tab CR_TF_ETAB'!D28 -> 4571199.98 | E7: =+#REF! ->  | G7: onglet "6-tab CR_TF_ETAB" : cellule D 28
A8: T6 | B8: Variation FDR | C8: ='6-tab CR_TF_ETAB'!H46 -> 590153.23 | E8: =+#REF! ->  | G8: onglet "6-tab CR_TF_ETAB" : cellule H 46
A9: T6 | B9: FDR | C9: ='6-tab CR_TF_ETAB'!H49 -> 14337031.04 | E9: =+#REF! ->  | G9: onglet "6-tab CR_TF_ETAB" : cellule H 49
A11: T4 | B11: variation de la trésorerie | C11: ='6-tab CR_TF_ETAB'!H48 -> 603671.8 | E11: =#REF! ->  | G11: onglet "6-tab CR_TF_ETAB" : cellule H 48
A12: T6 | B12: trésorerie | C12: ='6-tab CR_TF_ETAB'!H51 -> 14188111 | E12: =#REF! ->  | G12: onglet "6-tab CR_TF_ETAB" : cellule H 51
A14: T6 | B14: produits | C14: ='6-tab CR_TF_ETAB'!H13 -> 96395211.78 | E14: =+#REF! ->  | G14: onglet "6-tab CR_TF_ETAB" : cellule H 13
A15: T6 | B15: produits encaissables | C15: ='6-tab CR_TF_ETAB'!H13+'6-tab CR_TF_ETAB'!D24+'6-tab CR_TF_ETAB'!D26+'6-tab CR_TF_ETAB'!D27 -> 91071358.22 | E15: =+#REF!+#REF!+#REF!+#REF! ->  | G15: onglet "6-tab CR_TF_ETAB" : cellule H 13 + cellule D 24 + cellule D 26 + cellule D 27
A16: T2 | B16: SCSP | C16: ='2-tab_aut_budg_ETAB'!L12 -> 68012462 | E16: =+#REF! ->  | G16: onglet "2-tab_aut_budg_ETAB" cellule L 12
A18: T6 | B18: charges de fonctionnement décaissables | C18: ='6-tab CR_TF_ETAB'!D13-'6-tab CR_TF_ETAB'!D23-'6-tab CR_TF_ETAB'!D25 -> 86500158.24 | E18: =+#REF!-#REF!-#REF! ->  | G18: onglet "6-tab CR_TF_ETAB" : cellule D 13 - cellule D 23 - cellule D 25
A19: T6 | B19: charges de personnels | C19: ='6-tab CR_TF_ETAB'!D9 -> 73619346.53 | E19: =#REF! ->  | G19: onglet "6-tab CR_TF_ETAB" : cellule D 9
A21: T6 | B21: emplois hors IAF | C21: ='6-tab CR_TF_ETAB'!D36 -> 6729956.06 | E21: =#REF! ->  | G21: onglet "6-tab CR_TF_ETAB" : cellule D 36 (attention fusion cellules F36/F37/F38)
A23: T2 | B23: solde budgétaire | C23: =+IF('2-tab_aut_budg_ETAB'!H30>0,'2-tab_aut_budg_ETAB'!H30,'2-tab_aut_budg_ETAB'!H30*-1) -> 107904.77 | E23: =+IF(#REF!>0,#REF!,#REF!*-1) ->  | G23: onglet "2-tab_aut_budg_ETAB" cellule L 30 (si déficit) ou cellule H 30 (si excédent)
A24: T2 | B24: recettes (encaissements) | C24: ='2-tab_aut_budg_ETAB'!L28 -> 92847985 | E24: =+#REF! ->  | G24: onglet "2-tab_aut_budg_ETAB" cellule L 28
A25: T2 | B25: autorisations d'engagements | C25: ='2-tab_aut_budg_ETAB'!G28 -> 93880444.49 | E25: =+#REF! ->  | G25: onglet "2-tab_aut_budg_ETAB" cellule G 28
A27: T9 | B27: restes à payer sur AE consommées en fin d'année n (CP) | E27: =+#REF! ->  | G27: onglet "9-tab op_pluriannuelles_ETAB" cellule L 28
A28: T9 | B28: restes à encaisser (année n+1 et suivantes) | E28: =+#REF! ->  | G28: onglet "9-tab op_pluriannuelles_ETAB" cellule I50
A30: synthèse | B30: niveau final des restes à payer | E30: ='Annexe Synthèse_ETAB'!J52 -> 5987257.19 | G30: onglet "Annexe Synthèse_ETAB" cellule J 52
A31: synthèse | B31: niveau final de la trésorerie fléchée | E31: ='Annexe Synthèse_ETAB'!J57 -> 2019075.04 | G31: onglet "Annexe Synthèse_ETAB" cellule J 57

Sheet Indicateurs
A1: UBS | C1: COFI 2020
A3: plafond Etat | C3: =+'1-tab emplois_ETAB'!H20 -> 812.05 | E3: tableau 1 : ligne 20
A4: plafond ressources propres | C4: =+'1-tab emplois_ETAB'!L20 -> 197.61 | E4: tableau 1 : ligne 20
A5: Total ETPT OREMS | C5: =C3+C4 -> 1009.66 | E5: tableau 1 : ligne 20
A7: Plafond Etat notifié MESR
A9: charges de personnels T6 | C9: ='6-tab CR_TF_ETAB'!D9 -> 73619346.53 | E9: onglet "6-tab CR_TF_ETAB" : cellule D 9
A10: dépenses de personnels T2 | C10: ='2-tab_aut_budg_ETAB'!H11 -> 74437711.08 | E10: onglet "2 -tab_aut_budg_ETAB" : cellule H 10
A11: différence T 6 - T 2 | C11: =C9-C10 -> -818364.55
A12: dont rémunérations principales (64111)
A14: dont cours complémentaires OREMS
A15: poids CC/MS OREMS
A17: masse salariale notifiée MESR
A19: masse salariale rémunérée hors SCSP
A20: % masse salariale rémunérée hors SCSP
A22: dépenses totales section de fct | C22: ='6-tab CR_TF_ETAB'!D13 -> 94019263.65 | E22: onglet "6-tab CR_TF_ETAB" : cellule D 13
A23: % masse salariale sur total classe 6 | C23: =IF(C22=0,0,C9/C22) -> 0.7830240705 | E23: = ligne 9 / ligne 22
A25: dépenses de fonctionnement (section de fct - MS) | C25: =+C22-C9 -> 20399917.12 | E25: = ligne 22 - ligne 9
A26: % fonctionnement sur total classe 6 | C26: =IF(C22=0,0,C25/C22) -> 0.2169759295 | E26: = ligne 25 / ligne 22
A27: vérif MS + fct | C27: =C23+C26 -> 1 | E27: = ligne 23 + ligne 26
A29: dépenses décaissables section de fct | C29: ='6-tab CR_TF_ETAB'!D13-'6-tab CR_TF_ETAB'!D23 -> 86500158.24 | E29: onglet "6-tab CR_TF_ETAB" : cellule D 13 - cellule D 23 - cellule D 25
A30: % masse salariale sur dépenses décaissables | C30: =IF(C29=0,0,C9/C29) -> 0.8510891544 | E30: = ligne 9 / ligne22
A32: dépenses d'investissements | C32: ='6-tab CR_TF_ETAB'!D36 -> 6729956.06 | E32: onglet "6-tab CR_TF_ETAB" : cellule D 36 (attention fusion cellules F36/F37/F38)
A34: SCSP brute notifiée | E34: sans objet
A35: le
A36: mise en réserve
A37: % age de la mise en réserve
A38: mobilisation fonds de roulement
A39: SCSP nette
A40: dont masse salariale
A41: %age masse salariale
A42: dont fonctionnement
A43: %age fonctionnement
A45: Poids de la SCSP sur les recettes encaissables | C45: =IF(C49=0,0,C39/C49) -> 0
A46: moyenne nationale 2013 : 83,6% rapport IGF IGAENR mars 2015
A47: recettes totales | C47: ='6-tab CR_TF_ETAB'!H13 -> 96395211.78 | E47: onglet "6-tab CR_TF_ETAB" : cellule H 13
A49: recettes encaissables | C49: ='6-tab CR_TF_ETAB'!H13+'6-tab CR_TF_ETAB'!D24+'6-tab CR_TF_ETAB'!D27+'6-tab CR_TF_ETAB'!D26 -> 91071358.22 | E49: onglet "6-tab CR_TF_ETAB" : cellule H 13 + cellule D 24 +cellule D 26 + cellule D 27
A50: % masse salariale sur recettes enc. Ratio MESR 81_83% | C50: =IF(C49=0,0,C9/C49) -> 0.8083699197 | E50: =ligne 13 / ligne 54
E51: =CONCATENATE("si % inférieur à ",F51*100," %") -> si % inférieur à 80 % | F51: 0.8
A52: ressources propres (cl.7 -77 -78) | E52: =CONCATENATE("si % entre ",F51*100," et ",F52*100," %") -> si % entre 80 et 83 % | F52: 0.83
A53: % masse salariale sur ressources propres (notion CRB) | E53: =CONCATENATE("si % supérieur à ",F52*100," %") -> si % supérieur à 83 %
A55: recettes d'investissements | C55: ='6-tab CR_TF_ETAB'!H40-'6-tab CR_TF_ETAB'!H35 -> 2748909.31 | E55: onglet "6-tab CR_TF_ETAB" : cellule H 40 - cellule H 35
A56: %investissements financés par subventions | C56: =IF(C32=0,0,C55/C32) -> 0.4084587307 | E56: = ligne 55 / ligne 32
A57: % invsetissements financés par la CAF | C57: =IF(C32=0,0,C66/C32) -> 0.679231772 | E57: = ligne 66 / ligne 32
A59: solde budgétaire (à compter de 2016) | C59: =-('2-tab_aut_budg_ETAB'!L30) -> 0 | E59: onglet "2-tab_aut_budg_ETAB" : cellule L 30 (si déficit) ou cellule H 30 (si excédent)
A61: résultat net comptable | C61: ='6-tab CR_TF_ETAB'!D14 -> 2375948.13 | E61: onglet "6-tab CR_TF_ETAB" : cellule H 14 (si perte) ou cellule D 14 (si bénéfice)
A63: variation FDR | C63: ='6-tab CR_TF_ETAB'!H46 -> 590153.23 | E63: onglet "6-tab CR_TF_ETAB" : cellule H 46
A64: vérif
A66: CAF/IAF | C66: ='6-tab CR_TF_ETAB'!D28 -> 4571199.98 | E66: onglet "6-tab CR_TF_ETAB" : cellule D 28
A68: EBE
A70: FDR | C70: ='6-tab CR_TF_ETAB'!H49 -> 14337031.04 | E70: onglet "6-tab CR_TF_ETAB" : cellule H 49
A71: FDR en jours de dépenses décaissables | C71: =IF(C29=0,0,C70*360/C29) -> 59.66845933 | E71: =CONCATENATE("si inférieur à ",F71," jours") -> si inférieur à 20 jours | F71: 20
E72: =CONCATENATE("si supérieur à ",F72," jours") -> si supérieur à 30 jours | F72: 30
A73: TRESORERIE | C73: ='6-tab CR_TF_ETAB'!H51 -> 14188111 | E73: onglet "6-tab CR_TF_ETAB" : cellule H 51
A74: TRESORERIE en jours de dépenses décaissables | C74: =IF(C29=0,0,C73*360/C29) -> 59.04867764 | E74: =CONCATENATE("si inférieur à ",F74," jours") -> si inférieur à 30 jours | F74: 30
E75: =CONCATENATE("si supérieur à ",F75," jours") -> si supérieur à 31 jours | F75: 31
A76: BFR | C76: =C70-C73 -> 148920.04 | E76: = ligne 70 - ligne 73

Sheet 1-tab emplois_ETAB
B1: Tableau 1 - Université de Bretagne Sud (0561718N) : Etablissement principal + Fondation
B2: Tableau des emplois présenté par l’établissement à l’appui du Compte Financier 2022
B4: POUR VOTE DE L'ORGANE DÉLIBÉRANT
G5: (A) | K5: (B) | O5: ( C ) = (A) + (B)
F6: Emplois sous plafond Etat * | J6: Emplois financés hors SCSP | N6: Global
B7: Catégories d'emplois | C7: Nature des emplois | F7: En ETPT | J7: En ETPT
F8: Budget initial 2020 | G8: Dernier budget modifié 2020 | H8: Compte Financier 2020 | J8: Budget initial 2020 | K8: Dernier budget modifié 2020 | L8: Compte Financier 2020 | N8: Budget initial 2020 | O8: Dernier budget modifié 2020 | P8: Compte Financier 2020
B9: Enseignants, enseignants-chercheurs, chercheurs | C9: Permanents | D9: Titulaires | F9: 371.5 | G9: 372.5 | H9: 371.43 | J9: 0 | K9: 0 | L9: 0 | N9: =F9+J9 -> 371.5 | O9: =G9+K9 -> 372.5 | P9: 371.43
D10: CDI | F10: 5.75 | G10: 6 | H10: 5.83 | J10: 3.5 | K10: 2.5 | L10: 2.58 | N10: =F10+J10 -> 9.25 | O10: 8.5 | P10: 8.41
C11: Non permanents | D11: CDD | F11: 69.75 | G11: 70 | H11: 69.28 | J11: 76 | K11: 75.5 | L11: 71.25 | N11: 145.75 | O11: 145.5 | P11: 140.53
B12: S/total EC | F12: =SUM(F9:F11) -> 447 | G12: =SUM(G9:G11) -> 448.5 | H12: 446.54 | J12: 79.5 | K12: =SUM(K9:K11) -> 78 | L12: =SUM(L9:L11) -> 73.83 | N12: 526.5 | O12: 526.5 | P12: 520.37
B14: Elèves fonctionnaires stagiaires des écoles nationales supérieures (ENS) | N14: 0 | O14: =G14+K14 -> 0 | P14: =H14+L14 -> 0
B16: BIATSS (personnels de bibliothèques, ingénieurs, administratifs, techniques et de service) | C16: Permanents | D16: Titulaires | F16: 288.7 | G16: 287.5 | H16: 283.57 | N16: 288.7 | O16: =G16+K16 -> 287.5 | P16: =H16+L16 -> 283.57
D17: CDI | F17: 16.5 | G17: 19 | H17: 18.75 | J17: 16.3 | K17: 16.3 | L17: 16.14 | N17: =F17+J17 -> 32.8 | O17: =G17+K17 -> 35.3 | P17: =H17+L17 -> 34.89
C18: Non permanents | D18: CDD | F18: 67 | G18: 66 | H18: 63.19 | J18: 100 | K18: 108.7 | L18: 107.64 | N18: 167 | O18: 174.7 | P18: 170.83
B19: S/total Biatss | F19: =SUM(F16:F18) -> 372.2 | G19: =SUM(G16:G18) -> 372.5 | H19: 365.51 | J19: =SUM(J16:J18) -> 116.3 | K19: =SUM(K16:K18) -> 125 | L19: 123.78 | N19: 488.5 | O19: 497.5 | P19: 489.29
B20: Totaux | F20: =F12+F19 -> 819.2 | G20: =G12+G19 -> 821 | H20: 812.05 | I20: (1) | J20: =J12+J19 -> 195.8 | K20: =K12+K19 -> 203 | L20: =L12+L19 -> 197.61 | N20: 1015 | O20: 1024 | P20: 1009.66
N21: Plafond global des emplois voté par le CA ** | O21: Plafond global des emplois voté par le CA ** | P21: Plafond global des emplois voté par le CA ** | Q21: (2)
B22: Rappel du plafond des emplois fixé par l'Etat au Budget initial | F22: 825 | I22: (3) | J22: =IF(F20>F22,"! BI : Nombre total d'emplois sous plafond > à la notification de l'Etat","") ->  | P22: =IF(P20>O20,"ATTENTION le plafond d'emploi au COFI doit être inférieur ou égal au plafond d'emploi du dernier BR","") -> 
B23: Rappel du plafond des emplois fixé par l'Etat au dernier Budget modifié | F23: 828 | I23: (3) | J23: =IF(G20>F23,"BR : ! Nombre total d'emplois sous plafond > à la notification de l'Etat","") -> 
B24: Rappel du plafond des emplois fixé par l'Etat au Compte financier | F24: 828 | I24: (3) | J24: =IF(H20>F24,"COFI : ! Nombre total d'emplois sous plafond > à la notification de l'Etat","") -> 
B26: Note sur les modalités de renseignement du tableau
B27: Ce tableau doit être annexé au budget de l'établissement et, en cas de modification, aux budgets rectificatifs. Les chiffres qu'il contient doivent être exprimés en équivalents temps plein travaillés (ETPT). Le guide de décompte des emplois élaboré par la DAF et la DGESIP précise les régles de décompte des emplois en ETPT en fonction des catégories de personnel.
B28: Seul est soumis au vote du conseil d'administration le plafond global des emplois (case annotée (2))
B29: Le nombre total d'emplois sous plafond Etat (case annotée (1)) ne peut être supérieur au plafond des emplois Etat qui a été notifié à l'établissement et rappelé en case (3)
B30: * : cf. article R719-54 du code de l'éducation : "plafond d'emplois fixé par l'État relatif aux emplois financés par l'État" ** : cf. article R719-54 du code de l'éducation : "plafond d'autorisation de l'ensemble des emplois rémunérés par l'établissement"

Sheet 2-tab_aut_budg_ETAB
B1: Tableau 2 - Université de Bretagne Sud (0561718N) : Etablissement principal + Fondation
B2: Autorisations budgétaires - Compte Financier 2022
B5: POUR VOTE DE L'ORGANE DÉLIBÉRANT
B8: Dépenses
C9: Budget initial 2022 | E9: Dernier Budget Modifié 2022 | G9: Compte Financier 2022 | J9: Budget initial 2022 | K9: Dernier Budget Modifié 2022 | L9: Compte Financier 2022
C10: AE | D10: CP | E10: AE | F10: CP | G10: AE | H10: CP | J10: Montants | K10: Montants | L10: Montants
B11: Personnel | C11: ='2-tab_aut_budg_PRINC'!C11+'2-tab_aut_budg_FU'!C11 -> 76136253.7 | D11: ='2-tab_aut_budg_PRINC'!D11+'2-tab_aut_budg_FU'!D11 -> 76136253.7 | E11: ='2-tab_aut_budg_PRINC'!E11+'2-tab_aut_budg_FU'!E11 -> 75723453.47 | F11: ='2-tab_aut_budg_PRINC'!F11+'2-tab_aut_budg_FU'!F11 -> 75722346.36 | G11: ='2-tab_aut_budg_PRINC'!G11+'2-tab_aut_budg_FU'!G11 -> 74453544.58 | H11: ='2-tab_aut_budg_PRINC'!H11+'2-tab_aut_budg_FU'!H11 -> 74437711.08 | J11: =SUM(J12:J16) -> 95361369.73 | K11: =SUM(K12:K16) -> 94625620.69 | L11: 90626521 | M11: Recettes globalisées
B12: dont contributions employeur au CAS Pension | C12: ='2-tab_aut_budg_PRINC'!C12+'2-tab_aut_budg_FU'!C12 -> 20455893 | D12: ='2-tab_aut_budg_PRINC'!D12+'2-tab_aut_budg_FU'!D12 -> 20455893 | E12: ='2-tab_aut_budg_PRINC'!E12+'2-tab_aut_budg_FU'!E12 -> 19827314 | F12: ='2-tab_aut_budg_PRINC'!F12+'2-tab_aut_budg_FU'!F12 -> 19827314 | G12: ='2-tab_aut_budg_PRINC'!G12+'2-tab_aut_budg_FU'!G12 -> 19889158.25 | H12: ='2-tab_aut_budg_PRINC'!H12+'2-tab_aut_budg_FU'!H12 -> 19889158.25 | J12: ='2-tab_aut_budg_PRINC'!J12+'2-tab_aut_budg_FU'!J12 -> 66458360 | K12: ='2-tab_aut_budg_PRINC'!K12+'2-tab_aut_budg_FU'!K12 -> 67419953 | L12: ='2-tab_aut_budg_PRINC'!L12+'2-tab_aut_budg_FU'!L12 -> 68012462 | M12: Subvention pour charges de service public
J13: ='2-tab_aut_budg_PRINC'!J13+'2-tab_aut_budg_FU'!J13 -> 4380495.6 | K13: ='2-tab_aut_budg_PRINC'!K13+'2-tab_aut_budg_FU'!K13 -> 3237122.3 | L13: ='2-tab_aut_budg_PRINC'!L13+'2-tab_aut_budg_FU'!L13 -> 1917931.15 | M13: Autres financements de l'Etat
J14: ='2-tab_aut_budg_PRINC'!J14+'2-tab_aut_budg_FU'!J14 -> 600000 | K14: ='2-tab_aut_budg_PRINC'!K14+'2-tab_aut_budg_FU'!K14 -> 600000 | L14: ='2-tab_aut_budg_PRINC'!L14+'2-tab_aut_budg_FU'!L14 -> 473570.35 | M14: Fiscalité affectée
B15: Fonctionnement et intervention | C15: ='2-tab_aut_budg_PRINC'!C15+'2-tab_aut_budg_FU'!C15 -> 13871894.92 | D15: ='2-tab_aut_budg_PRINC'!D15+'2-tab_aut_budg_FU'!D15 -> 13660886.58 | E15: ='2-tab_aut_budg_PRINC'!E15+'2-tab_aut_budg_FU'!E15 -> 14395473.24 | F15: ='2-tab_aut_budg_PRINC'!F15+'2-tab_aut_budg_FU'!F15 -> 13387426.74 | G15: ='2-tab_aut_budg_PRINC'!G15+'2-tab_aut_budg_FU'!G15 -> 12840939.11 | H15: ='2-tab_aut_budg_PRINC'!H15+'2-tab_aut_budg_FU'!H15 -> 11888797.76 | J15: ='2-tab_aut_budg_PRINC'!J15+'2-tab_aut_budg_FU'!J15 -> 7803541.13 | K15: ='2-tab_aut_budg_PRINC'!K15+'2-tab_aut_budg_FU'!K15 -> 6843446.37 | L15: ='2-tab_aut_budg_PRINC'!L15+'2-tab_aut_budg_FU'!L15 -> 6837311.08 | M15: Autres financements publics
J16: ='2-tab_aut_budg_PRINC'!J16+'2-tab_aut_budg_FU'!J16 -> 16118973 | K16: ='2-tab_aut_budg_PRINC'!K16+'2-tab_aut_budg_FU'!K16 -> 16525099.02 | L16: ='2-tab_aut_budg_PRINC'!L16+'2-tab_aut_budg_FU'!L16 -> 13385246.42 | M16: Recettes propres
J18: =SUM(J19:J21) -> 0 | K18: 2221464 | L18: =L19+L20+L21 -> 2221464 | M18: Recettes fléchées **
J19: ='2-tab_aut_budg_PRINC'!J19+'2-tab_aut_budg_FU'!J19 -> 0 | K19: ='2-tab_aut_budg_PRINC'!K19+'2-tab_aut_budg_FU'!K19 -> 0 | L19: ='2-tab_aut_budg_PRINC'!L19+'2-tab_aut_budg_FU'!L19 -> 0 | M19: Financements de l'Etat fléchés
B20: Investissement | C20: ='2-tab_aut_budg_PRINC'!C20+'2-tab_aut_budg_FU'!C20 -> 7579491.88 | D20: ='2-tab_aut_budg_PRINC'!D20+'2-tab_aut_budg_FU'!D20 -> 7303449.62 | E20: ='2-tab_aut_budg_PRINC'!E20+'2-tab_aut_budg_FU'!E20 -> 7932552.15 | F20: ='2-tab_aut_budg_PRINC'!F20+'2-tab_aut_budg_FU'!F20 -> 8525126.73 | G20: ='2-tab_aut_budg_PRINC'!G20+'2-tab_aut_budg_FU'!G20 -> 6585960.8 | H20: ='2-tab_aut_budg_PRINC'!H20+'2-tab_aut_budg_FU'!H20 -> 6413571.39 | J20: ='2-tab_aut_budg_PRINC'!J20+'2-tab_aut_budg_FU'!J20 -> 0 | K20: ='2-tab_aut_budg_PRINC'!K20+'2-tab_aut_budg_FU'!K20 -> 2221464 | L20: ='2-tab_aut_budg_PRINC'!L20+'2-tab_aut_budg_FU'!L20 -> 2221464 | M20: Autres financements publics fléchés
J21: ='2-tab_aut_budg_PRINC'!J21+'2-tab_aut_budg_FU'!J21 -> 0 | K21: ='2-tab_aut_budg_PRINC'!K21+'2-tab_aut_budg_FU'!K21 -> 0 | L21: ='2-tab_aut_budg_PRINC'!L21+'2-tab_aut_budg_FU'!L21 -> 0 | M21: Recettes propres fléchées
B23: Enveloppes* destinées à des contrats de recherche | C23: =C24+C25+C26 -> 0 | D23: =D24+D25+D26 -> 0 | E23: 0 | F23: 0 | G23: =C23+E23 -> 0 | H23: =D23+F23 -> 0
B24: Personnel | C24: ='2-tab_aut_budg_PRINC'!C24+'2-tab_aut_budg_FU'!C24 -> 0 | D24: ='2-tab_aut_budg_PRINC'!D24+'2-tab_aut_budg_FU'!D24 -> 0 | E24: ='2-tab_aut_budg_PRINC'!E24+'2-tab_aut_budg_FU'!E24 -> 0 | F24: ='2-tab_aut_budg_PRINC'!F24+'2-tab_aut_budg_FU'!F24 -> 0 | G24: ='2-tab_aut_budg_PRINC'!G24+'2-tab_aut_budg_FU'!G24 -> 0 | H24: ='2-tab_aut_budg_PRINC'!H24+'2-tab_aut_budg_FU'!H24 -> 0
B25: Fonctionnement | C25: ='2-tab_aut_budg_PRINC'!C25+'2-tab_aut_budg_FU'!C25 -> 0 | D25: ='2-tab_aut_budg_PRINC'!D25+'2-tab_aut_budg_FU'!D25 -> 0 | E25: ='2-tab_aut_budg_PRINC'!E25+'2-tab_aut_budg_FU'!E25 -> 0 | F25: ='2-tab_aut_budg_PRINC'!F25+'2-tab_aut_budg_FU'!F25 -> 0 | G25: ='2-tab_aut_budg_PRINC'!G25+'2-tab_aut_budg_FU'!G25 -> 0 | H25: ='2-tab_aut_budg_PRINC'!H25+'2-tab_aut_budg_FU'!H25 -> 0
B26: Investissement | C26: ='2-tab_aut_budg_PRINC'!C26+'2-tab_aut_budg_FU'!C26 -> 0 | D26: ='2-tab_aut_budg_PRINC'!D26+'2-tab_aut_budg_FU'!D26 -> 0 | E26: ='2-tab_aut_budg_PRINC'!E26+'2-tab_aut_budg_FU'!E26 -> 0 | F26: ='2-tab_aut_budg_PRINC'!F26+'2-tab_aut_budg_FU'!F26 -> 0 | G26: ='2-tab_aut_budg_PRINC'!G26+'2-tab_aut_budg_FU'!G26 -> 0 | H26: ='2-tab_aut_budg_PRINC'!H26+'2-tab_aut_budg_FU'!H26 -> 0
B28: TOTAL DES DÉPENSES | C28: =C20+C15+C11+C23 -> 97587640.5 | D28: =D20+D15+D11+D23 -> 97100589.9 | E28: 98051478.86 | F28: 97634899.83 | G28: 93880444.49 | H28: 92740080.23 | J28: =J11+J18 -> 95361369.73 | K28: =K11+K18 -> 96847084.69 | L28: =L11+L18 -> 92847985 | M28: TOTAL DES RECETTES
B30: Solde budgétaire (excédent) | D30: =IF(J28-D28>=0,J28-D28,0) -> 0 | F30: =IF(K28-F28>=0,K28-F28,0) -> 0 | H30: =IF(L28-H28>=0,L28-H28,0) -> 107904.77 | J30: =IF(D28-J28>0,D28-J28,0) -> 1739220.17 | K30: =IF(F28-K28>0,F28-K28,0) -> 787815.14 | L30: =IF(H28-L28>0,H28-L28,0) -> 0 | M30: Solde budgétaire (déficit)
B32: * Chaque enveloppe peut être détaillée en fonction des besoins des organismes. | C32: =IF('3-tab_destination_origine_ETAB'!C31="","","! Incohérence total Personnel AE avec Tab3 AGR") ->  | D32: =IF('3-tab_destination_origine_ETAB'!D31="","","! Incohérence total Personnel CP avec Tab3 AGR") ->  | J32: =IF('3-tab_destination_origine_ETAB'!C53="","","! Incohérence Subv charges serv public avec Tab3 AGR") ->  | K32: =IF('3-tab_destination_origine_ETAB'!D53="","","! Incohérence Autres financ. Etat avec Tab3 AGR") -> 
B33: ** Montant issu du tableau "Opérations sur recettes fléchées" (tableau 8) | C33: =IF('3-tab_destination_origine_ETAB'!E31="","","! Incohérence total Fonct AE avec Tab3 AGR") ->  | D33: =IF('3-tab_destination_origine_ETAB'!F31="","","! Incohérence total Fonct CP avec Tab3 AGR") ->  | J33: =IF('3-tab_destination_origine_ETAB'!E53="","","! Incohérence Fiscalité affectée avec Tab3 AGR") ->  | K33: =IF('3-tab_destination_origine_ETAB'!F531="","","! Incohérence Autres financements publics avec Tab3 AGR") -> 
C34: =IF('3-tab_destination_origine_ETAB'!G31="","","! Incohérence total Invest AE avec Tab3 AGR") ->  | D34: =IF('3-tab_destination_origine_ETAB'!H31="","","! Incohérence total Invest CP avec Tab3 AGR") ->  | J34: =IF('3-tab_destination_origine_ETAB'!G53="","","! Incohérence Recettes propres avec Tab3 AGR") ->  | K34: =IF('3-tab_destination_origine_ETAB'!H53="","","! Incohérence Financements Etat fléchés avec Tab3 AGR") -> 
D35: ="BI : Différence charges de personnel entre tableau 2 et tableau 6 est de : "&'6-tab CR_TF_ETAB'!B9-ROUND('2-tab_aut_budg_ETAB'!D11+'2-tab_aut_budg_ETAB'!D24,0) -> BI : Différence charges de personnel entre tableau 2 et tableau 6 est de : -792705 | J35: =IF('3-tab_destination_origine_ETAB'!I53="","","! Incohérence Autres financ. fléchés avec Tab3 AGR") ->  | K35: =IF('3-tab_destination_origine_ETAB'!J53="","","! Incohérence Recettes propres fléchées avec Tab3 AGR") -> 
D36: ="BR : Différence charges de personnel entre tableau 2 et tableau 6 est de : "&'6-tab CR_TF_ETAB'!C9-ROUND('2-tab_aut_budg_ETAB'!F11+'2-tab_aut_budg_ETAB'!F24,0) -> BR : Différence charges de personnel entre tableau 2 et tableau 6 est de : -791597,230000004
D37: ="COFI : Différence charges de personnel entre tableau 2 et tableau 6 est de : "&'6-tab CR_TF_ETAB'!D9-ROUND('2-tab_aut_budg_ETAB'!H11+'2-tab_aut_budg_ETAB'!H24,0) -> COFI : Différence charges de personnel entre tableau 2 et tableau 6 est de : -818364,469999999
B39: Comparaison COFI / BI
B40: Comparaison COFI / BI | C40: AE | E40: CP | K40: Comparaison COFI / BI
C41: en valeur | D41: en % | E41: en valeur | F41: en % | K41: en valeur | L41: en %
B42: Personnel | C42: =G11-C11 -> -1682709.12 | D42: =IF(G11=0,0,(G11-C11)/G11) -> -0.02260079261 | E42: =H11-D11 -> -1698542.62 | F42: =IF(H11=0,0,(H11-D11)/H11) -> -0.02281830802 | G42: Recettes globalisées | K42: =L11-J11 -> -4734848.73 | L42: =IF(L11=0,0,(L11-J11)/L11) -> -0.05224572981
B43: Fonctionnement | C43: =G15-C15 -> -1030955.81 | D43: =IF(G15=0,0,(G15-C15)/G15) -> -0.08028663645 | E43: =H15-D15 -> -1772088.82 | F43: =IF(H15=0,0,(H15-D15)/H15) -> -0.1490553423 | G43: Subvention pour charges de service public | K43: =L12-J12 -> 1554102 | L43: =IF(L12=0,0,(L12-J12)/L12) -> 0.02285025353
B44: Investissement | C44: =+G20-C20 -> -993531.08 | D44: =IF(G20=0,0,(G20-C20)/G20) -> -0.1508559055 | E44: =+H20-D20 -> -889878.23 | F44: =IF(H20=0,0,(H20-D20)/H20) -> -0.1387492515 | G44: Autres financements de l'Etat | K44: -2462564.45 | L44: -1.283969161
B45: Enveloppes Recherche | C45: =G14-C14 -> 0 | D45: =IF(G14=0,0,(G14-C14)/G14) -> 0 | E45: =H14-D14 -> 0 | F45: =IF(H14=0,0,(H14-D14)/H14) -> 0 | G45: Fiscalité affectée | K45: -126429.65 | L45: -0.2669712114
B46: Personnel | D46: -0.08028663645 | F46: -0.1490553423 | G46: Autres financements publics | K46: -966230.05 | L46: -0.1413172574
B47: Fonctionnement | C47: 0 | D47: 0 | E47: 0 | F47: 0 | G47: Recettes propres | K47: -2733726.58 | L47: -0.204234311
B48: Investissement | C48: 0 | D48: 0 | E48: 0 | F48: 0
G49: Recettes fléchées ** | K49: 2221464 | L49: 1
G50: Financements de l'Etat fléchés | K50: 0 | L50: 0
G51: Autres financements publics fléchés | K51: 2221464 | L51: 1
G52: Recettes propres fléchées | K52: 0 | L52: 0
B53: Comparaison COFI / BR
B54: Comparaison COFI / BR | C54: AE | E54: CP | K54: Comparaison COFI / BR
C55: en valeur | D55: en % | E55: en valeur | F55: en % | K55: en valeur | L55: en %
B56: Personnel | C56: =G11-E11 -> -1269908.89 | D56: =IF(G11=0,0,(G11-E11)/G11) -> -0.01705639264 | E56: =H11-F11 -> -1284635.28 | F56: =IF(H11=0,0,(H11-F11)/H11) -> -0.01725785575 | G56: Recettes globalisées | K56: =L11-K11 -> -3999099.69 | L56: =IF(L11=0,0,(L11-K11)/L11) -> -0.04412725597
B57: Fonctionnement | C57: =G15-E15 -> -1554534.13 | D57: =IF(G15=0,0,(G15-E15)/G15) -> -0.121060782 | E57: =H15-F155 -> 11888797.76 | F57: =IF(H15=0,0,(H15-F15)/H15) -> -0.1260538711 | G57: Subvention pour charges de service public | K57: 592509 | L57: =IF(L12=0,0,(L12-K12)/L12) -> 0.008711771087
B58: Investissement | C58: =+G20-E20 -> -1346591.35 | D58: =IF(G20=0,0,(G20-E20)/G20) -> -0.2044639182 | E58: =+H20-F20 -> -2111555.34 | F58: =IF(H20=0,0,(H20-F20)/H20) -> -0.3292323749 | G58: Autres financements de l'Etat | K58: -1319191.15 | L58: -0.6878198678
B59: Enveloppes Recherche | G59: Fiscalité affectée | K59: -126429.65 | L59: -0.2669712114
B60: Personnel | G60: Autres financements publics | K60: -6135.29 | L60: -0.0008973249759
B61: Fonctionnement | G61: Recettes propres | K61: -3139852.6 | L61: -0.2345756291
B62: Investissement
G63: Recettes fléchées ** | K63: =L18-K18 -> 0 | L63: 0
G64: Financements de l'Etat fléchés | K64: =L19-K19 -> 0 | L64: 0
G65: Autres financements publics fléchés | K65: =L20-K20 -> 0 | L65: 0
G66: Recettes propres fléchées | K66: =L21-K21 -> 0 | L66: 0
K67: m

Sheet 2-tab_aut_budg_PRINC
B1: Tableau 2 - Université de Bretagne Sud (0561718N) : Etablissement principal
B2: Autorisations budgétaires - Compte Financier 2022
B5: POUR VOTE DE L'ORGANE DÉLIBÉRANT
B8: Dépenses
C9: Budget initial 2022 | E9: Dernier Budget Modifié 2022 | G9: Compte Financier 2022 | J9: Budget initial 2022 | K9: Dernier Budget Modifié 2022 | L9: Compte Financier 2022
C10: AE | D10: CP | E10: AE | F10: CP | G10: AE | H10: CP | J10: Montants | K10: Montants | L10: Montants
B11: Personnel | C11: 75943253.7 | D11: 75943253.7 | E11: 75609975.23 | F11: 75608868.12 | G11: 74348490.9 | H11: 74332657.4 | J11: =SUM(J12:J16) -> 94730369.73 | K11: =SUM(K12:K16) -> 94307688.69 | L11: 90300588.68 | M11: Recettes globalisées
B12: dont contributions employeur au CAS Pension | C12: 20455893 | D12: 20455893 | E12: 19827314 | F12: 19827314 | G12: 19889158.25 | H12: 19889158.25 | J12: 66458360 | K12: 67419953 | L12: 68012462 | M12: Subvention pour charges de service public
E13: 0 | F13: 0 | J13: 4380495.6 | K13: 3217669.3 | L13: 1897410.83 | M13: Autres financements de l'Etat
E14: 0 | F14: 0 | J14: 600000 | K14: 600000 | L14: 473570.35 | M14: Fiscalité affectée
B15: Fonctionnement et intervention | C15: 13555894.92 | D15: 13402561.58 | E15: 14252376.36 | F15: 13238588.86 | G15: 12728316.2 | H15: 11771498.43 | J15: 7668541.13 | K15: 6783379.37 | L15: 6778311.08 | M15: Autres financements publics
E16: 0 | F16: 0 | J16: 15622973 | K16: 16286687.02 | L16: 13138834.42 | M16: Recettes propres
E17: 0 | F17: 0
E18: 0 | F18: 0 | J18: =SUM(J19:J21) -> 0 | K18: =SUM(K19:K21) -> 2221464 | L18: 2221464 | M18: Recettes fléchées **
E19: 0 | F19: 0 | L19: 0 | M19: Financements de l'Etat fléchés
B20: Investissement | C20: 7504491.88 | D20: 7258449.62 | E20: 7930552.15 | F20: 8523126.73 | G20: 6584973.14 | H20: 6412893.39 | K20: 2221464 | L20: 2221464 | M20: Autres financements publics fléchés
L21: 0 | M21: Recettes propres fléchées
B23: Enveloppes* destinées à des contrats de recherche | C23: =C24+C25+C26 -> 0 | D23: =D24+D25+D26 -> 0 | E23: 0 | F23: 0 | G23: =C23+E23 -> 0 | H23: =D23+F23 -> 0
B24: Personnel
B25: Fonctionnement
B26: Investissement
B28: TOTAL DES DÉPENSES | C28: =C20+C15+C11+C23 -> 97003640.5 | D28: =D20+D15+D11+D23 -> 96604264.9 | E28: =E20+E15+E11+E23 -> 97792903.74 | F28: 97370583.71 | G28: =G20+G15+G11+G23 -> 93661780.24 | H28: =H20+H15+H11+H23 -> 92517049.22 | J28: =J11+J18 -> 94730369.73 | K28: =K11+K18 -> 96529152.69 | L28: =L11+L18 -> 92522052.68 | M28: TOTAL DES RECETTES
B30: Solde budgétaire (excédent) | D30: =IF(J28-D28>=0,J28-D28,0) -> 0 | F30: =IF(K28-F28>=0,K28-F28,0) -> 0 | H30: =IF(L28-H28>=0,L28-H28,0) -> 5003.46 | J30: =IF(D28-J28>0,D28-J28,0) -> 1873895.17 | K30: =IF(F28-K28>0,F28-K28,0) -> 841431.02 | L30: =IF(H28-L28>0,H28-L28,0) -> 0 | M30: Solde budgétaire (déficit)
B32: * Chaque enveloppe peut être détaillée en fonction des besoins des organismes. | C32: =IF('3-tab_destination_origine_PRINC'!C31="","","! Incohérence total Personnel AE avec Tab3 PRINC") ->  | D32: =IF('3-tab_destination_origine_PRINC'!D31="","","! Incohérence total Personnel CP avec Tab3 PRINC") ->  | H32: =IF(AND(CONTROLES_TAB3_3_PRINC="",CONTROLES_TAB3_4_PRINC=""),"","! Incohérence solde budgétaire Tab3 PRINC") ->  | J32: =IF('3-tab_destination_origine_PRINC'!C53="","","! Incohérence Subv charges serv public avec Tab3 PRINC") ->  | K32: =IF('3-tab_destination_origine_PRINC'!D53="","","! Incohérence Autres financ. Etat avec Tab3 PRINC") -> 
B33: ** Montant issu du tableau "Opérations sur recettes fléchées" (tableau 8) | C33: =IF('3-tab_destination_origine_PRINC'!E31="","","! Incohérence total Fonct AE avec Tab3 PRINC") ->  | D33: =IF('3-tab_destination_origine_PRINC'!F31="","","! Incohérence total Fonct CP avec Tab3 PRINC") ->  | J33: =IF('3-tab_destination_origine_PRINC'!E53="","","! Incohérence Fiscalité affectée avec Tab3 PRINC") ->  | K33: =IF('3-tab_destination_origine_PRINC'!F531="","","! Incohérence Autres financements publics avec Tab3 PRINC") -> 
C34: =IF('3-tab_destination_origine_PRINC'!G31="","","! Incohérence total Invest AE avec Tab3 PRINC") ->  | D34: =IF('3-tab_destination_origine_PRINC'!H31="","","! Incohérence total Invest CP avec Tab3 PRINC") ->  | J34: =IF('3-tab_destination_origine_PRINC'!G53="","","! Incohérence Recettes propres avec Tab3 PRINC") -> 
C35: ="BI : Différence charges de personnel entre tableau 2 et tableau 6 est de : "&'6-tab CR_TF_PRINC'!B9-ROUND('2-tab_aut_budg_PRINC'!D11+'2-tab_aut_budg_PRINC'!D24,0) -> BI : Différence charges de personnel entre tableau 2 et tableau 6 est de : -789810 | D35: =IF(D12="",IF(ROUND(D12,0)<>ROUND('6-tab CR_TF_PRINC'!B10,0),"! Incohérence pensions civ. BI Tab6 PRINC",""),"") ->  | J35: =IF('3-tab_destination_origine_PRINC'!I53="","","! Incohérence Autres financ. fléchés avec Tab3 PRINC") -> 
C36: ="BR : Différence charges de personnel entre tableau 2 et tableau 6 est de : "&'6-tab CR_TF_PRINC'!C9-ROUND('2-tab_aut_budg_PRINC'!F11+'2-tab_aut_budg_PRINC'!F24,0) -> BR : Différence charges de personnel entre tableau 2 et tableau 6 est de : -788702,469999999 | D36: =IF(F12="",IF(ROUND(F12,0)<>ROUND('6-tab CR_TF_PRINC'!C10,0),"! Incohérence pensions civ. BR Tab6 PRINC",""),"") -> 
C37: ="COFI : Différence charges de personnel entre tableau 2 et tableau 6 est de : "&'6-tab CR_TF_PRINC'!D9-ROUND('2-tab_aut_budg_PRINC'!H11+'2-tab_aut_budg_PRINC'!H24,0) -> COFI : Différence charges de personnel entre tableau 2 et tableau 6 est de : -816889,840000004 | D37: =IF(H12="",IF(ROUND(H12,0)<>ROUND('6-tab CR_TF_PRINC'!D10,0),"! Incohérence pensions civ. total COFI Tab6 PRINC",""),"") -> 
B39: Comparaison COFI / BI
B40: Comparaison COFI / BI | C40: AE | E40: CP | K40: Comparaison COFI / BI
C41: en valeur | D41: en % | E41: en valeur | F41: en % | K41: en valeur | L41: en %
B42: Personnel | C42: =G11-C11 -> -1594762.8 | D42: =IF(G11=0,0,(G11-C11)/G11) -> -0.02144983416 | E42: =H11-D11 -> -1610596.3 | F42: =IF(H11=0,0,(H11-D11)/H11) -> -0.02166741183 | G42: Recettes globalisées | K42: =L11-J11 -> -4429781.05 | L42: =IF(L11=0,0,(L11-J11)/L11) -> -0.04905594875
B43: Fonctionnement | C43: =+G15-C15 -> -827578.72 | D43: =IF(G15=0,0,(G15-C15)/G15) -> -0.06501871159 | E43: =+H15-D15 -> -1631063.15 | F43: =IF(H15=0,0,(H15-D15)/H15) -> -0.1385603676 | G43: Subvention pour charges de service public | K43: =L12-J12 -> 1554102 | L43: =IF(L12=0,0,(L12-J12)/L12) -> 0.02285025353
B44: Investissement | C44: =+G20-C20 -> -919518.74 | D44: =IF(G20=0,0,(G20-C20)/G20) -> -0.1396389508 | E44: =+H20-D20 -> -845556.23 | F44: =IF(H20=0,0,(H20-D20)/H20) -> -0.1318525319 | G44: Autres financements de l'Etat | K44: -2483084.77 | L44: -1.308670073
B45: Enveloppes Recherche | C45: =G14-C14 -> 0 | D45: =IF(G14=0,0,(G14-C14)/G14) -> 0 | E45: =H14-D14 -> 0 | F45: =IF(H14=0,0,(H14-D14)/H14) -> 0 | G45: Fiscalité affectée | K45: -126429.65 | L45: -0.2669712114
B46: Personnel | D46: -0.06501871159 | F46: -0.1385603676 | G46: Autres financements publics | K46: -890230.05 | L46: -0.1313350833
B47: Fonctionnement | C47: 0 | D47: 0 | E47: 0 | F47: 0 | G47: Recettes propres | K47: -2484138.58 | L47: -0.1890684136
B48: Investissement | C48: 0 | D48: 0 | E48: 0 | F48: 0
G49: Recettes fléchées ** | K49: 2221464 | L49: 1
G50: Financements de l'Etat fléchés | K50: 0 | L50: 0
G51: Autres financements publics fléchés | K51: 2221464 | L51: 1
G52: Recettes propres fléchées | K52: 0 | L52: 0
B53: Comparaison COFI / BR
B54: Comparaison COFI / BR | C54: AE | E54: CP | K54: Comparaison COFI / BR
C55: en valeur | D55: en % | E55: en valeur | F55: en % | K55: en valeur | L55: en %
B56: Personnel | C56: =G11-E11 -> -1261484.33 | D56: =IF(G11=0,0,(G11-E11)/G11) -> -0.01696718137 | E56: =H11-F11 -> -1276210.72 | F56: =IF(H11=0,0,(H11-F11)/H11) -> -0.0171689102 | G56: Recettes globalisées | K56: =L11-K11 -> -4007100.01 | L56: =IF(L11=0,0,(L11-K11)/L11) -> -0.0443751261
B57: Fonctionnement | C57: =+G15-E15 -> -1524060.16 | D57: =IF(G15=0,0,(G15-E15)/G15) -> -0.119737767 | E57: =+H15-F15 -> -1467090.43 | F57: =IF(H15=0,0,(H15-F15)/H15) -> -0.1246307289 | G57: Subvention pour charges de service public | K57: 592509 | L57: =IF(L12=0,0,(L12-K12)/L12) -> 0.008711771087
B58: Investissement | C58: =+G20-E20 -> -1345579.01 | D58: =IF(G20=0,0,(G20-E20)/G20) -> -0.2043408502 | E58: =+H20-F20 -> -2110233.34 | F58: =IF(H20=0,0,(H20-F20)/H20) -> -0.3290610356 | G58: Autres financements de l'Etat | K58: -1320258.47 | L58: -0.695821089
B59: Enveloppes Recherche | G59: Fiscalité affectée | K59: -126429.65 | L59: -0.2669712114
B60: Personnel | G60: Autres financements publics | K60: -5068.29 | L60: -0.0007477216581
B61: Fonctionnement | G61: Recettes propres | K61: -3147852.6 | L61: -0.239583855
B62: Investissement
G63: Recettes fléchées ** | K63: =L18-K18 -> 0 | L63: 0
G64: Financements de l'Etat fléchés | K64: =L19-K19 -> 0 | L64: 0
G65: Autres financements publics fléchés | K65: =L20-K20 -> 0 | L65: 0
G66: Recettes propres fléchées | K66: =L21-K21 -> 0 | L66: 0

Sheet 2-tab_aut_budg_FU
B1: Tableau 2 - Université de Bretagne Sud (0561718N) : Fondation
B2: Autorisations budgétaires - Compte Financier 2022
B5: POUR VOTE DE L'ORGANE DÉLIBÉRANT
B8: Dépenses
C9: Budget initial 2022 | E9: Dernier Budget Modifié 2022 | G9: Compte Financier 2022 | J9: Budget initial 2022 | K9: Dernier Budget Modifié 2022 | L9: Compte Financier 2022
C10: AE | D10: CP | E10: AE | F10: CP | G10: AE | H10: CP | J10: Montants | K10: Montants | L10: Montants
B11: Personnel | C11: 193000 | D11: 193000 | E11: 113478.24 | F11: 113478.24 | G11: 105053.68 | H11: 105053.68 | J11: =SUM(J12:J16) -> 631000 | K11: =SUM(K12:K16) -> 317932 | L11: 325932.32 | M11: Recettes globalisées
B12: dont contributions employeur au CAS Pension | E12: 0 | F12: 0 | K12: 0 | L12: 0 | M12: Subvention pour charges de service public
E13: 0 | F13: 0 | K13: 19453 | L13: 20520.32 | M13: Autres financements de l'Etat
E14: 0 | F14: 0 | K14: 0 | L14: 0 | M14: Fiscalité affectée
B15: Fonctionnement et intervention | C15: 316000 | D15: 258325 | E15: 143096.88 | F15: 148837.88 | G15: 112622.91 | H15: 117299.33 | J15: 135000 | K15: 60067 | L15: 59000 | M15: Autres financements publics
E16: 0 | F16: 0 | J16: 496000 | K16: 238412 | L16: 246412 | M16: Recettes propres
E17: 0 | F17: 0
E18: 0 | F18: 0 | J18: =SUM(J19:J21) -> 0 | K18: =SUM(K19:K21) -> 0 | L18: 0 | M18: Recettes fléchées **
E19: 0 | F19: 0 | M19: Financements de l'Etat fléchés
B20: Investissement | C20: 75000 | D20: 45000 | E20: 2000 | F20: 2000 | G20: 987.66 | H20: 678 | M20: Autres financements publics fléchés
M21: Recettes propres fléchées
B23: Enveloppes* destinées à des contrats de recherche | C23: =C24+C25+C26 -> 0 | D23: =D24+D25+D26 -> 0 | E23: 0 | F23: 0 | G23: =C23+E23 -> 0 | H23: =D23+F23 -> 0
B24: Personnel
B25: Fonctionnement
B26: Investissement
B28: TOTAL DES DÉPENSES | C28: =C20+C15+C11+C23 -> 584000 | D28: =D20+D15+D11+D23 -> 496325 | E28: 258575.12 | F28: 264316.12 | G28: 218664.25 | H28: 223031.01 | J28: =J11+J18 -> 631000 | K28: =K11+K18 -> 317932 | L28: =L11+L18 -> 325932.32 | M28: TOTAL DES RECETTES
B30: Solde budgétaire (excédent) | D30: =IF(J28-D28>=0,J28-D28,0) -> 134675 | F30: =IF(K28-F28>=0,K28-F28,0) -> 53615.88 | H30: =IF(L28-H28>=0,L28-H28,0) -> 102901.31 | J30: =IF(D28-J28>0,D28-J28,0) -> 0 | K30: =IF(F28-K28>0,F28-K28,0) -> 0 | L30: =IF(H28-L28>0,H28-L28,0) -> 0 | M30: Solde budgétaire (déficit)
B32: * Chaque enveloppe peut être détaillée en fonction des besoins des organismes.
B33: ** Montant issu du tableau "Opérations sur recettes fléchées" (tableau 8)
C35: ="BI : Différence charges de personnel entre tableau 2 et tableau 6 est de : "&'6-tab CR_TF_FU'!B9-ROUND('2-tab_aut_budg_FU'!D11+'2-tab_aut_budg_FU'!D24,0) -> BI : Différence charges de personnel entre tableau 2 et tableau 6 est de : -2895
C36: ="BR : Différence charges de personnel entre tableau 2 et tableau 6 est de : "&'6-tab CR_TF_FU'!C9-ROUND('2-tab_aut_budg_FU'!F11+'2-tab_aut_budg_FU'!F24,0) -> BR : Différence charges de personnel entre tableau 2 et tableau 6 est de : -2894,75999999999
C37: ="COFI : Différence charges de personnel entre tableau 2 et tableau 6 est de : "&'6-tab CR_TF_FU'!D9-ROUND('2-tab_aut_budg_FU'!H11+'2-tab_aut_budg_FU'!H24,0) -> COFI : Différence charges de personnel entre tableau 2 et tableau 6 est de : -1474,63
B39: Comparaison COFI / BI
B40: Comparaison COFI / BI | C40: AE | E40: CP | K40: Comparaison COFI / BI
C41: en valeur | D41: en % | E41: en valeur | F41: en % | K41: en valeur | L41: en %
B42: Personnel | C42: =G11-C11 -> -87946.32 | D42: =IF(G11=0,0,(G11-C11)/G11) -> -0.837156014 | E42: =H11-D11 -> -87946.32 | F42: =IF(H11=0,0,(H11-D11)/H11) -> -0.837156014 | G42: Recettes globalisées | K42: =L11-J11 -> -305067.68 | L42: =IF(L11=0,0,(L11-J11)/L11) -> -0.9359847468
B43: Fonctionnement | C43: =+G15-C15 -> -203377.09 | D43: =IF(G15=0,0,(G15-C15)/G15) -> -1.805823433 | E43: =+H15-D15 -> -141025.67 | F43: =IF(H15=0,0,(H15-D15)/H15) -> -1.202271744 | G43: Subvention pour charges de service public | K43: =L12-J12 -> 0 | L43: =IF(L12=0,0,(L12-J12)/L12) -> 0
B44: Investissement | C44: =+G20-C20 -> -74012.34 | D44: =IF(G20=0,0,(G20-C20)/G20) -> -74.93706336 | E44: =+H20-D20 -> -44322 | F44: =IF(H20=0,0,(H20-D20)/H20) -> -65.37168142 | G44: Autres financements de l'Etat | K44: 20520.32 | L44: 1
B45: Enveloppes Recherche | C45: =G14-C14 -> 0 | D45: =IF(G14=0,0,(G14-C14)/G14) -> 0 | E45: =H14-D14 -> 0 | F45: =IF(H14=0,0,(H14-D14)/H14) -> 0 | G45: Fiscalité affectée | K45: 0 | L45: 0
B46: Personnel | D46: -1.805823433 | F46: -1.202271744 | G46: Autres financements publics | K46: -76000 | L46: -1.288135593
B47: Fonctionnement | C47: 0 | D47: 0 | E47: 0 | F47: 0 | G47: Recettes propres | K47: -249588 | L47: -1.012888983
B48: Investissement | C48: 0 | D48: 0 | E48: 0 | F48: 0
G49: Recettes fléchées ** | K49: 0 | L49: 0
G50: Financements de l'Etat fléchés | K50: 0 | L50: 0
G51: Autres financements publics fléchés | K51: 0 | L51: 0
G52: Recettes propres fléchées | K52: 0 | L52: 0
B53: Comparaison COFI / BR
B54: Comparaison COFI / BR | C54: AE | E54: CP | K54: Comparaison COFI / BR
C55: en valeur | D55: en % | E55: en valeur | F55: en % | K55: en valeur | L55: en %
B56: Personnel | C56: =+G11-E11 -> -8424.56 | D56: =IF(G11=0,0,(G11-E11)/G11) -> -0.08019290709 | E56: =+H11-F11 -> -8424.56 | F56: =IF(H11=0,0,(H11-F11)/H11) -> -0.08019290709 | G56: Recettes globalisées | K56: =L11-K11 -> 8000.32 | L56: =IF(L11=0,0,(L11-K11)/L11) -> 0.02454595482
B57: Fonctionnement | C57: =+G15-E15 -> -30473.97 | D57: =IF(G15=0,0,(G15-E15)/G15) -> -0.2705841112 | E57: =+H15-F15 -> -31538.55 | F57: =IF(H15=0,0,(H15-F15)/H15) -> -0.2688723797 | G57: Subvention pour charges de service public | K57: 0 | L57: =IF(L12=0,0,(L12-K12)/L12) -> 0
B58: Investissement | C58: =+G20-E20 -> -1012.34 | D58: =IF(G20=0,0,(G20-E20)/G20) -> -1.024988356 | E58: =+H20-F20 -> -1322 | F58: =IF(H20=0,0,(H20-F20)/H20) -> -1.949852507 | G58: Autres financements de l'Etat | K58: 1067.32 | L58: 0.05201283411
B59: Enveloppes Recherche | G59: Fiscalité affectée | K59: 0 | L59: 0
B60: Personnel | G60: Autres financements publics | K60: -1067 | L60: -0.01808474576
B61: Fonctionnement | G61: Recettes propres | K61: 8000 | L61: 0.03246595133
B62: Investissement
G63: Recettes fléchées ** | K63: =L18-K18 -> 0 | L63: 0
G64: Financements de l'Etat fléchés | K64: =L19-K19 -> 0 | L64: 0
G65: Autres financements publics fléchés | K65: =L20-K20 -> 0 | L65: 0
G66: Recettes propres fléchées | K66: =L21-K21 -> 0 | L66: 0

Sheet 3-tab_destination_origine_ETAB
B1: Tableau 3 - Université de Bretagne Sud (0561718N) : Etablissement principal + Fondation
B2: Dépenses par destination et recettes par origine - Compte Financier 2022
B4: POUR INFORMATION DE L'ORGANE DÉLIBÉRANT
B5: Tableau des dépenses par destination (obligatoire)
B6: Budget | C6: Dépenses de l’organisme
C7: Personnel | E7: Fonctionnement et intervention | G7: Investissement | I7: Total
C8: AE = CP | E8: AE | F8: CP | G8: AE | H8: CP | I8: AE | J8: CP
B9: Formation initiale et continue (d) = (a) + (b) + (c) | C9: =SUM(C10:C12) -> 43094877.75 | D9: =SUM(D10:D12) -> 43094977.75 | E9: 2270107.54 | F9: 2162107.93 | G9: 1797466.61 | H9: 1546958.71 | I9: =C9+E9+G9 -> 47162451.9 | J9: =D9+F9+H9 -> 46804044.39
B10: D101 - Formation initiale et continue de niveau Licence (a) | C10: =+'3-tab_destination_origine_PRINC'!C10+'3-tab_destination_origine_FU'!C10 -> 32522372.81 | D10: =+'3-tab_destination_origine_PRINC'!D10+'3-tab_destination_origine_FU'!D10 -> 32522472.81 | E10: =+'3-tab_destination_origine_PRINC'!E10+'3-tab_destination_origine_FU'!E10 -> 1573059.72 | F10: =+'3-tab_destination_origine_PRINC'!F10+'3-tab_destination_origine_FU'!F10 -> 1503692.68 | G10: =+'3-tab_destination_origine_PRINC'!G10+'3-tab_destination_origine_FU'!G10 -> 1114525.53 | H10: =+'3-tab_destination_origine_PRINC'!H10+'3-tab_destination_origine_FU'!H10 -> 990624.26 | I10: =C10+E10+G10 -> 35209958.06 | J10: 35016789.75
B11: D102 - Formation initiale et continue de niveau Master (b) | C11: =+'3-tab_destination_origine_PRINC'!C11+'3-tab_destination_origine_FU'!C11 -> 8612198.64 | D11: =+'3-tab_destination_origine_PRINC'!D11+'3-tab_destination_origine_FU'!D11 -> 8612198.64 | E11: =+'3-tab_destination_origine_PRINC'!E11+'3-tab_destination_origine_FU'!E11 -> 611869.23 | F11: =+'3-tab_destination_origine_PRINC'!F11+'3-tab_destination_origine_FU'!F11 -> 572999.74 | G11: =+'3-tab_destination_origine_PRINC'!G11+'3-tab_destination_origine_FU'!G11 -> 682941.08 | H11: =+'3-tab_destination_origine_PRINC'!H11+'3-tab_destination_origine_FU'!H11 -> 556334.45 | I11: 9907008.95 | J11: 9741532.83
B12: D103 - Formation initiale et continue de niveau Doctorat (c) | C12: =+'3-tab_destination_origine_PRINC'!C12+'3-tab_destination_origine_FU'!C12 -> 1960306.3 | D12: =+'3-tab_destination_origine_PRINC'!D12+'3-tab_destination_origine_FU'!D12 -> 1960306.3 | E12: =+'3-tab_destination_origine_PRINC'!E12+'3-tab_destination_origine_FU'!E12 -> 85178.59 | F12: =+'3-tab_destination_origine_PRINC'!F12+'3-tab_destination_origine_FU'!F12 -> 85415.51 | G12: =+'3-tab_destination_origine_PRINC'!G12+'3-tab_destination_origine_FU'!G12 -> 0 | H12: =+'3-tab_destination_origine_PRINC'!H12+'3-tab_destination_origine_FU'!H12 -> 0 | I12: 2045484.89 | J12: 2045721.81
B13: D105 - Bibliothèques et documentation | C13: =+'3-tab_destination_origine_PRINC'!C13+'3-tab_destination_origine_FU'!C13 -> 1517311.39 | D13: =+'3-tab_destination_origine_PRINC'!D13+'3-tab_destination_origine_FU'!D13 -> 1517143.67 | E13: =+'3-tab_destination_origine_PRINC'!E13+'3-tab_destination_origine_FU'!E13 -> 511333.96 | F13: =+'3-tab_destination_origine_PRINC'!F13+'3-tab_destination_origine_FU'!F13 -> 482439.24 | G13: =+'3-tab_destination_origine_PRINC'!G13+'3-tab_destination_origine_FU'!G13 -> 21442.06 | H13: =+'3-tab_destination_origine_PRINC'!H13+'3-tab_destination_origine_FU'!H13 -> 26122.91 | I13: 2050087.41 | J13: 2025705.82
B14: D106 - Recherche universitaire en sciences de la vie, biotechnologie et santé | C14: =+'3-tab_destination_origine_PRINC'!C14+'3-tab_destination_origine_FU'!C14 -> 1432772.43 | D14: =+'3-tab_destination_origine_PRINC'!D14+'3-tab_destination_origine_FU'!D14 -> 1432772.43 | E14: =+'3-tab_destination_origine_PRINC'!E14+'3-tab_destination_origine_FU'!E14 -> 241870.52 | F14: =+'3-tab_destination_origine_PRINC'!F14+'3-tab_destination_origine_FU'!F14 -> 229087.96 | G14: =+'3-tab_destination_origine_PRINC'!G14+'3-tab_destination_origine_FU'!G14 -> 133784.63 | H14: =+'3-tab_destination_origine_PRINC'!H14+'3-tab_destination_origine_FU'!H14 -> 138625.18 | I14: 1808427.58 | J14: 1800485.57
B15: D107 - Recherche universitaire en mathématiques, sciences et techniques de l'information et de la communication, micro et nanotechnologies | C15: =+'3-tab_destination_origine_PRINC'!C15+'3-tab_destination_origine_FU'!C15 -> 5793884.03 | D15: =+'3-tab_destination_origine_PRINC'!D15+'3-tab_destination_origine_FU'!D15 -> 5793884.03 | E15: =+'3-tab_destination_origine_PRINC'!E15+'3-tab_destination_origine_FU'!E15 -> 439300.09 | F15: =+'3-tab_destination_origine_PRINC'!F15+'3-tab_destination_origine_FU'!F15 -> 459342.15 | G15: =+'3-tab_destination_origine_PRINC'!G15+'3-tab_destination_origine_FU'!G15 -> 189439.46 | H15: =+'3-tab_destination_origine_PRINC'!H15+'3-tab_destination_origine_FU'!H15 -> 114891.23 | I15: 6422623.58 | J15: 6368117.41
B16: D108 - Recherche universitaire en physique, chimie et sciences pour l'ingénieur | C16: =+'3-tab_destination_origine_PRINC'!C16+'3-tab_destination_origine_FU'!C16 -> 5683724.89 | D16: =+'3-tab_destination_origine_PRINC'!D16+'3-tab_destination_origine_FU'!D16 -> 5683546.49 | E16: =+'3-tab_destination_origine_PRINC'!E16+'3-tab_destination_origine_FU'!E16 -> 1419089.68 | F16: =+'3-tab_destination_origine_PRINC'!F16+'3-tab_destination_origine_FU'!F16 -> 1314502.82 | G16: =+'3-tab_destination_origine_PRINC'!G16+'3-tab_destination_origine_FU'!G16 -> 623976.75 | H16: =+'3-tab_destination_origine_PRINC'!H16+'3-tab_destination_origine_FU'!H16 -> 636386.02 | I16: 7726791.32 | J16: 7634435.33
B17: D109 - Recherche universitaire en physique nucléaire et des hautes énergies | C17: =+'3-tab_destination_origine_PRINC'!C17+'3-tab_destination_origine_FU'!C17 -> 0 | D17: =+'3-tab_destination_origine_PRINC'!D17+'3-tab_destination_origine_FU'!D17 -> 0 | E17: =+'3-tab_destination_origine_PRINC'!E17+'3-tab_destination_origine_FU'!E17 -> 0 | F17: =+'3-tab_destination_origine_PRINC'!F17+'3-tab_destination_origine_FU'!F17 -> 0 | G17: =+'3-tab_destination_origine_PRINC'!G17+'3-tab_destination_origine_FU'!G17 -> 0 | H17: =+'3-tab_destination_origine_PRINC'!H17+'3-tab_destination_origine_FU'!H17 -> 0 | I17: 0 | J17: 0
B18: D110 - Recherche universitaire en sciences de la terre, de l'univers et de l'environnement | C18: =+'3-tab_destination_origine_PRINC'!C18+'3-tab_destination_origine_FU'!C18 -> 396040.26 | D18: =+'3-tab_destination_origine_PRINC'!D18+'3-tab_destination_origine_FU'!D18 -> 396040.26 | E18: =+'3-tab_destination_origine_PRINC'!E18+'3-tab_destination_origine_FU'!E18 -> 189308.22 | F18: =+'3-tab_destination_origine_PRINC'!F18+'3-tab_destination_origine_FU'!F18 -> 183855.64 | G18: =+'3-tab_destination_origine_PRINC'!G18+'3-tab_destination_origine_FU'!G18 -> 103362.03 | H18: =+'3-tab_destination_origine_PRINC'!H18+'3-tab_destination_origine_FU'!H18 -> 94082.15 | I18: 688710.51 | J18: 673978.05
B19: D111 - Recherche universitaire en sciences de l'homme et de la société | C19: =+'3-tab_destination_origine_PRINC'!C19+'3-tab_destination_origine_FU'!C19 -> 5440444.2 | D19: =+'3-tab_destination_origine_PRINC'!D19+'3-tab_destination_origine_FU'!D19 -> 5440444.2 | E19: =+'3-tab_destination_origine_PRINC'!E19+'3-tab_destination_origine_FU'!E19 -> 280642.09 | F19: =+'3-tab_destination_origine_PRINC'!F19+'3-tab_destination_origine_FU'!F19 -> 246720.11 | G19: =+'3-tab_destination_origine_PRINC'!G19+'3-tab_destination_origine_FU'!G19 -> 9742.28 | H19: =+'3-tab_destination_origine_PRINC'!H19+'3-tab_destination_origine_FU'!H19 -> 13470.68 | I19: 5730828.57 | J19: 5700634.99
B20: D112 - Recherche universitaire interdisciplinaire et transversale | C20: =+'3-tab_destination_origine_PRINC'!C20+'3-tab_destination_origine_FU'!C20 -> 538119.72 | D20: =+'3-tab_destination_origine_PRINC'!D20+'3-tab_destination_origine_FU'!D20 -> 538119.72 | E20: =+'3-tab_destination_origine_PRINC'!E20+'3-tab_destination_origine_FU'!E20 -> 277064.73 | F20: =+'3-tab_destination_origine_PRINC'!F20+'3-tab_destination_origine_FU'!F20 -> 289689.4 | G20: =+'3-tab_destination_origine_PRINC'!G20+'3-tab_destination_origine_FU'!G20 -> 1334.6 | H20: =+'3-tab_destination_origine_PRINC'!H20+'3-tab_destination_origine_FU'!H20 -> 3150.2 | I20: 816519.05 | J20: 830959.32
B21: D113 - Diffusion des savoirs et musées | C21: =+'3-tab_destination_origine_PRINC'!C21+'3-tab_destination_origine_FU'!C21 -> 0 | D21: =+'3-tab_destination_origine_PRINC'!D21+'3-tab_destination_origine_FU'!D21 -> 0 | E21: =+'3-tab_destination_origine_PRINC'!E21+'3-tab_destination_origine_FU'!E21 -> 0 | F21: =+'3-tab_destination_origine_PRINC'!F21+'3-tab_destination_origine_FU'!F21 -> 0 | G21: =+'3-tab_destination_origine_PRINC'!G21+'3-tab_destination_origine_FU'!G21 -> 0 | H21: =+'3-tab_destination_origine_PRINC'!H21+'3-tab_destination_origine_FU'!H21 -> 0 | I21: 0 | J21: 0
B22: D114 - Immobilier | C22: =+'3-tab_destination_origine_PRINC'!C22+'3-tab_destination_origine_FU'!C22 -> 2009565.84 | D22: =+'3-tab_destination_origine_PRINC'!D22+'3-tab_destination_origine_FU'!D22 -> 2009565.84 | E22: =+'3-tab_destination_origine_PRINC'!E22+'3-tab_destination_origine_FU'!E22 -> 3448783.43 | F22: =+'3-tab_destination_origine_PRINC'!F22+'3-tab_destination_origine_FU'!F22 -> 3415661.13 | G22: =+'3-tab_destination_origine_PRINC'!G22+'3-tab_destination_origine_FU'!G22 -> 2994298.65 | H22: =+'3-tab_destination_origine_PRINC'!H22+'3-tab_destination_origine_FU'!H22 -> 3437202.24 | I22: 8452647.92 | J22: 8862429.21
B23: D115 - Pilotage et support | C23: =+'3-tab_destination_origine_PRINC'!C23+'3-tab_destination_origine_FU'!C23 -> 6391251.06 | D23: =+'3-tab_destination_origine_PRINC'!D23+'3-tab_destination_origine_FU'!D23 -> 6375501.8 | E23: =+'3-tab_destination_origine_PRINC'!E23+'3-tab_destination_origine_FU'!E23 -> 2312481.82 | F23: =+'3-tab_destination_origine_PRINC'!F23+'3-tab_destination_origine_FU'!F23 -> 2187487.46 | G23: =+'3-tab_destination_origine_PRINC'!G23+'3-tab_destination_origine_FU'!G23 -> 414304.29 | H23: =+'3-tab_destination_origine_PRINC'!H23+'3-tab_destination_origine_FU'!H23 -> 240894.04 | I23: 9118037.17 | J23: 8803883.3
B24: Étudiants (h) = (e) + (f) + (g) | C24: =SUM(C25:C27) -> 2155553.01 | D24: =SUM(D25:D27) -> 2155714.89 | E24: 1450957.03 | F24: 917903.92 | G24: 296809.44 | H24: 161788.03 | I24: 3903319.48 | J24: 3235406.84
B25: D201 - Aides directes aux étudiants (e) | C25: =+'3-tab_destination_origine_PRINC'!C25+'3-tab_destination_origine_FU'!C25 -> 0 | D25: =+'3-tab_destination_origine_PRINC'!D25+'3-tab_destination_origine_FU'!D25 -> 0 | E25: =+'3-tab_destination_origine_PRINC'!E25+'3-tab_destination_origine_FU'!E25 -> 977212.01 | F25: =+'3-tab_destination_origine_PRINC'!F25+'3-tab_destination_origine_FU'!F25 -> 387183.27 | G25: =+'3-tab_destination_origine_PRINC'!G25+'3-tab_destination_origine_FU'!G25 -> 0 | H25: =+'3-tab_destination_origine_PRINC'!H25+'3-tab_destination_origine_FU'!H25 -> 0 | I25: 977212.01 | J25: 387183.27
B26: D202 - Aides indirectes (f) | C26: =+'3-tab_destination_origine_PRINC'!C26+'3-tab_destination_origine_FU'!C26 -> 8376.21 | D26: =+'3-tab_destination_origine_PRINC'!D26+'3-tab_destination_origine_FU'!D26 -> 8376.21 | E26: =+'3-tab_destination_origine_PRINC'!E26+'3-tab_destination_origine_FU'!E26 -> 0 | F26: =+'3-tab_destination_origine_PRINC'!F26+'3-tab_destination_origine_FU'!F26 -> 0 | G26: =+'3-tab_destination_origine_PRINC'!G26+'3-tab_destination_origine_FU'!G26 -> 0 | H26: =+'3-tab_destination_origine_PRINC'!H26+'3-tab_destination_origine_FU'!H26 -> 0 | I26: 8376.21 | J26: 8376.21
B27: D203 - Santé des étudiants et activités associatives, culturelles et sportives (g) | C27: =+'3-tab_destination_origine_PRINC'!C27+'3-tab_destination_origine_FU'!C27 -> 2147176.8 | D27: =+'3-tab_destination_origine_PRINC'!D27+'3-tab_destination_origine_FU'!D27 -> 2147338.68 | E27: =+'3-tab_destination_origine_PRINC'!E27+'3-tab_destination_origine_FU'!E27 -> 473745.02 | F27: =+'3-tab_destination_origine_PRINC'!F27+'3-tab_destination_origine_FU'!F27 -> 530720.65 | G27: =+'3-tab_destination_origine_PRINC'!G27+'3-tab_destination_origine_FU'!G27 -> 296809.44 | H27: =+'3-tab_destination_origine_PRINC'!H27+'3-tab_destination_origine_FU'!H27 -> 161788.03 | I27: 2917731.26 | J27: 2839847.36
B28: Total | C28: =SUM(C10:C24) -> 74453544.58 | D28: =SUM(D10:D24) -> 74437711.08 | E28: 12840939.11 | F28: 11888797.76 | G28: 6585960.8 | H28: 6413571.39 | I28: =C28+E28+G28 -> 93880444.49 | J28: =D28+F28+H28 -> 92740080.23
H30: SOLDE BUDGETAIRE (excédent) | J30: =IF(K50>J28,K50-J28,0) -> 107904.77 | K30: =IF(ROUND(J30,-1)<>ROUND('2-tab_aut_budg_ETAB'!H30,-1),"Incohérence solde budgétaire avec Tab2 ETAB","") -> 
C31: =IF(ROUND(C28,-1)<>ROUND('2-tab_aut_budg_ETAB'!G11+'2-tab_aut_budg_ETAB'!G24,-1),"! Incohérence total Personnel AE avec Tab2 ETAB","") ->  | D31: =IF(ROUND(D28,-1)<>ROUND('2-tab_aut_budg_ETAB'!H11+'2-tab_aut_budg_ETAB'!H24,-1),"! Incohérence total Personnel CP avec Tab2 ETAB","") ->  | E31: =IF(ROUND(E28,-1)<>ROUND('2-tab_aut_budg_ETAB'!G15+'2-tab_aut_budg_ETAB'!G25,-1),"! Incohérence total Fonctionnement AE avec Tab2 ETAB","") ->  | F31: =IF(ROUND(F28,-1)<>ROUND('2-tab_aut_budg_ETAB'!H15+'2-tab_aut_budg_ETAB'!H25,-1),"! Incohérence total Fonctionnement CP avec Tab2 ETAB","") ->  | G31: =IF(ROUND(G28,-1)<>ROUND('2-tab_aut_budg_ETAB'!G20+'2-tab_aut_budg_ETAB'!G26,-1),"! Incohérence total Investissement AE avec Tab2 ETAB","") ->  | H31: =IF(ROUND(H28,-1)<>ROUND('2-tab_aut_budg_ETAB'!H20+'2-tab_aut_budg_ETAB'!H26,-1),"! Incohérence total Investissement CP avec Tab2 ETAB","") ->  | I31: =IF(ROUND(I28,-1)<>ROUND('2-tab_aut_budg_ETAB'!G28,-1),"! Incohérence Total dépenses AE avec Tab2 ETAB","") ->  | J31: =IF(ROUND(J28,-1)<>ROUND('2-tab_aut_budg_ETAB'!H28,-1),"! Incohérence Total dépenses CP avec Tab2 ETAB","") -> 
B32: Tableau des recettes par origine (obligatoire)
B34: Budget | C34: Recettes de l'organisme
C35: Recettes globalisées | H35: Recettes fléchées | K35: Total
C36: Subvention pour charges de service public | D36: Autres financements de l'Etat | E36: Fiscalité affectée | F36: Autres financements publics | G36: Recettes propres | H36: Financements de l'Etat fléchés | I36: Autres financements publics fléchés | J36: Recettes propres fléchées
B37: Subvention pour charges de service public | C37: =+'3-tab_destination_origine_PRINC'!C37+'3-tab_destination_origine_FU'!C37 -> 68012462 | K37: =C37 -> 68012462
B38: Droits d'inscription | G38: =+'3-tab_destination_origine_PRINC'!G38+'3-tab_destination_origine_FU'!G38 -> 1303032.62 | H38: =+'3-tab_destination_origine_PRINC'!H38+'3-tab_destination_origine_FU'!H38 -> 0 | I38: =+'3-tab_destination_origine_PRINC'!I38+'3-tab_destination_origine_FU'!I38 -> 0 | J38: =+'3-tab_destination_origine_PRINC'!J38+'3-tab_destination_origine_FU'!J38 -> 0 | K38: =SUM(G38:J38) -> 1303032.62
B39: Formation continue, diplômes propres et VAE | G39: =+'3-tab_destination_origine_PRINC'!G39+'3-tab_destination_origine_FU'!G39 -> 5409002.27 | H39: =+'3-tab_destination_origine_PRINC'!H39+'3-tab_destination_origine_FU'!H39 -> 0 | I39: =+'3-tab_destination_origine_PRINC'!I39+'3-tab_destination_origine_FU'!I39 -> 0 | J39: =+'3-tab_destination_origine_PRINC'!J39+'3-tab_destination_origine_FU'!J39 -> 0 | K39: =SUM(G39:J39) -> 5409002.27
B40: Taxe d'apprentissage | G40: =+'3-tab_destination_origine_PRINC'!G40+'3-tab_destination_origine_FU'!G40 -> 664150.49 | H40: =+'3-tab_destination_origine_PRINC'!H40+'3-tab_destination_origine_FU'!H40 -> 0 | I40: =+'3-tab_destination_origine_PRINC'!I40+'3-tab_destination_origine_FU'!I40 -> 0 | J40: =+'3-tab_destination_origine_PRINC'!J40+'3-tab_destination_origine_FU'!J40 -> 0 | K40: 664150.49
B41: Contrats et prestations de recherche hors ANR | G41: =+'3-tab_destination_origine_PRINC'!G41+'3-tab_destination_origine_FU'!G41 -> 869595.88 | H41: =+'3-tab_destination_origine_PRINC'!H41+'3-tab_destination_origine_FU'!H41 -> 0 | I41: =+'3-tab_destination_origine_PRINC'!I41+'3-tab_destination_origine_FU'!I41 -> 0 | J41: =+'3-tab_destination_origine_PRINC'!J41+'3-tab_destination_origine_FU'!J41 -> 0 | K41: =SUM(G41:J41) -> 869595.88
B42: Valorisation | G42: =+'3-tab_destination_origine_PRINC'!G42+'3-tab_destination_origine_FU'!G42 -> 738101.38 | H42: =+'3-tab_destination_origine_PRINC'!H42+'3-tab_destination_origine_FU'!H42 -> 0 | I42: =+'3-tab_destination_origine_PRINC'!I42+'3-tab_destination_origine_FU'!I42 -> 0 | J42: =+'3-tab_destination_origine_PRINC'!J42+'3-tab_destination_origine_FU'!J42 -> 0 | K42: 738101.38
B43: ANR investissements d'avenir | F43: =+'3-tab_destination_origine_PRINC'!F43+'3-tab_destination_origine_FU'!F43 -> 264343.8 | H43: =+'3-tab_destination_origine_PRINC'!H43+'3-tab_destination_origine_FU'!H43 -> 0 | I43: =+'3-tab_destination_origine_PRINC'!I43+'3-tab_destination_origine_FU'!I43 -> 0 | J43: =+'3-tab_destination_origine_PRINC'!J43+'3-tab_destination_origine_FU'!J43 -> 0 | K43: =SUM(F43,H43:J43) -> 264343.8
B44: ANR hors investissements d'avenir | F44: =+'3-tab_destination_origine_PRINC'!F44+'3-tab_destination_origine_FU'!F44 -> 1110767.37 | H44: =+'3-tab_destination_origine_PRINC'!H44+'3-tab_destination_origine_FU'!H44 -> 0 | I44: =+'3-tab_destination_origine_PRINC'!I44+'3-tab_destination_origine_FU'!I44 -> 0 | J44: =+'3-tab_destination_origine_PRINC'!J44+'3-tab_destination_origine_FU'!J44 -> 0 | K44: =SUM(F44,H44:J44) -> 1110767.37
B45: Subventions d'exploitation et financement des actifs - Région | F45: =+'3-tab_destination_origine_PRINC'!F45+'3-tab_destination_origine_FU'!F45 -> 1418068.17 | H45: =+'3-tab_destination_origine_PRINC'!H45+'3-tab_destination_origine_FU'!H45 -> 0 | I45: =+'3-tab_destination_origine_PRINC'!I45+'3-tab_destination_origine_FU'!I45 -> 0 | J45: =+'3-tab_destination_origine_PRINC'!J45+'3-tab_destination_origine_FU'!J45 -> 0 | K45: 1418068.17
B46: Subventions d'exploitation et financement des actifs - Union Européenne | F46: =+'3-tab_destination_origine_PRINC'!F46+'3-tab_destination_origine_FU'!F46 -> 2111648.91 | H46: =+'3-tab_destination_origine_PRINC'!H46+'3-tab_destination_origine_FU'!H46 -> 0 | I46: =+'3-tab_destination_origine_PRINC'!I46+'3-tab_destination_origine_FU'!I46 -> 2221464 | J46: =+'3-tab_destination_origine_PRINC'!J46+'3-tab_destination_origine_FU'!J46 -> 0 | K46: 4333112.91
B47: Subventions d'exploitation et financement des actifs - Autres | D47: =+'3-tab_destination_origine_PRINC'!D47+'3-tab_destination_origine_FU'!D47 -> 1917931.15 | F47: =+'3-tab_destination_origine_PRINC'!F47+'3-tab_destination_origine_FU'!F47 -> 1932482.83 | G47: =+'3-tab_destination_origine_PRINC'!G47+'3-tab_destination_origine_FU'!G47 -> 139407.25 | H47: =+'3-tab_destination_origine_PRINC'!H47+'3-tab_destination_origine_FU'!H47 -> 0 | I47: =+'3-tab_destination_origine_PRINC'!I47+'3-tab_destination_origine_FU'!I47 -> 0 | J47: =+'3-tab_destination_origine_PRINC'!J47+'3-tab_destination_origine_FU'!J47 -> 0 | K47: =SUM(D47,F47:J47) -> 3989821.23
B48: Fondations - fonds propres, réserves, dons et legs | D48: =+'3-tab_destination_origine_PRINC'!D48+'3-tab_destination_origine_FU'!D48 -> 0 | F48: =+'3-tab_destination_origine_PRINC'!F48+'3-tab_destination_origine_FU'!F48 -> 0 | G48: =+'3-tab_destination_origine_PRINC'!G48+'3-tab_destination_origine_FU'!G48 -> 241912 | H48: =+'3-tab_destination_origine_PRINC'!H48+'3-tab_destination_origine_FU'!H48 -> 0 | I48: =+'3-tab_destination_origine_PRINC'!I48+'3-tab_destination_origine_FU'!I48 -> 0 | J48: =+'3-tab_destination_origine_PRINC'!J48+'3-tab_destination_origine_FU'!J48 -> 0 | K48: =SUM(D48,F48:J48) -> 241912
B49: Autres recettes | E49: =+'3-tab_destination_origine_PRINC'!E49+'3-tab_destination_origine_FU'!E49 -> 473570.35 | F49: =+'3-tab_destination_origine_PRINC'!F49+'3-tab_destination_origine_FU'!F49 -> 0 | G49: =+'3-tab_destination_origine_PRINC'!G49+'3-tab_destination_origine_FU'!G49 -> 4020044.53 | H49: =+'3-tab_destination_origine_PRINC'!H49+'3-tab_destination_origine_FU'!H49 -> 0 | I49: =+'3-tab_destination_origine_PRINC'!I49+'3-tab_destination_origine_FU'!I49 -> 0 | J49: =+'3-tab_destination_origine_PRINC'!J49+'3-tab_destination_origine_FU'!J49 -> 0 | K49: =SUM(E49:J49) -> 4493614.88
B50: Total | C50: =C37 -> 68012462 | D50: =SUM(D47:D48) -> 1917931.15 | E50: =+E49 -> 473570.35 | F50: =SUM(F43:F49) -> 6837311.08 | G50: =SUM(G38:G42,G47:G49) -> 13385246.42 | H50: =SUM(H38:H49) -> 0 | I50: =SUM(I38:I49) -> 2221464 | J50: 0 | K50: =SUM(C50:J50) -> 92847985
B52: La liste des destination est susceptible d'être modifiée par le ministre chargé de l'enseignement supérieur | I52: SOLDE BUDGETAIRE (déficit) | K52: =IF(J28>K50,J28-K50,0) -> 0 | L52: =IF(ROUND(K52,-1)<>ROUND('2-tab_aut_budg_ETAB'!L30,-1),"! Incohérence solde budgétaire avec Tab2 AGR","") -> 
C53: =IF(ROUND(C50,-1)<>ROUND('2-tab_aut_budg_ETAB'!L12,-1),"! Incohérence total Subv charges serv public avec Tab2 ETAB","") ->  | D53: =IF(ROUND(D50,-1)<>ROUND('2-tab_aut_budg_ETAB'!L13,-1),"! Incohérence total Autres financements Etat avec Tab2 ETAB","") ->  | E53: =IF(ROUND(E50,-1)<>ROUND('2-tab_aut_budg_ETAB'!L14,-1),"! Incohérence total Fiscalité affectée avec Tab2 ETAB","") ->  | F53: =IF(ROUND(F50,-1)<>ROUND('2-tab_aut_budg_ETAB'!L15,-1),"! Incohérence total Autres financements publics avec Tab2 ETAB","") ->  | G53: =IF(ROUND(G50,-1)<>ROUND('2-tab_aut_budg_ETAB'!L16,-1),"! Incohérence total Recettes propres avec Tab2 ETAB","") ->  | H53: =IF(ROUND(H50,-1)<>ROUND('2-tab_aut_budg_ETAB'!L19,-1),"! Incohérence total Financements Etat fléchés avec Tab2 AGR","") ->  | I53: =IF(ROUND(I50,-1)<>ROUND('2-tab_aut_budg_ETAB'!L20,-1),"! Incohérence total Autres financements fléchés avec Tab2 AGR","") ->  | J53: =IF(ROUND(J50,-1)<>ROUND('2-tab_aut_budg_ETAB'!L21,-1),"! Incohérence total Recettes propres fléchées avec Tab2 AGR","") ->  | K53: =IF(ROUND(K50,-1)<>ROUND('2-tab_aut_budg_ETAB'!L28,-1),"! Incohérence total avec Tab2 AGR","") -> 

Sheet 3-tab_destination_origine_PRINC
B1: Tableau 3 - Université de Bretagne Sud (0561718N) : Etablissement principal
B2: Dépenses par destination et recettes par origine - Compte Financier 2022
B4: POUR INFORMATION DE L'ORGANE DÉLIBÉRANT
B5: Tableau des dépenses par destination (obligatoire)
B6: Budget | C6: Dépenses de l’organisme
C7: Personnel | E7: Fonctionnement et intervention | G7: Investissement | I7: Total
C8: AE = CP | E8: AE | F8: CP | G8: AE | H8: CP | I8: AE | J8: CP
B9: Formation initiale et continue (d) = (a) + (b) + (c) | C9: =SUM(C10:C12) -> 43077024.24 | D9: =SUM(D10:D12) -> 43077124.24 | E9: 2270107.54 | F9: 2162107.93 | G9: 1797466.61 | H9: 1546958.71 | I9: =C9+E9+G9 -> 47144598.39 | J9: =D9+F9+H9 -> 46786190.88
B10: D101 - Formation initiale et continue de niveau Licence (a) | C10: 32522372.81 | D10: 32522472.81 | E10: 1573059.72 | F10: 1503692.68 | G10: 1114525.53 | H10: 990624.26 | I10: =C10+E10+G10 -> 35209958.06 | J10: 35016789.75
B11: D102 - Formation initiale et continue de niveau Master (b) | C11: 8612198.64 | D11: 8612198.64 | E11: 611869.23 | F11: 572999.74 | G11: 682941.08 | H11: 556334.45 | I11: 9907008.95 | J11: 9741532.83
B12: D103 - Formation initiale et continue de niveau Doctorat (c) | C12: 1942452.79 | D12: 1942452.79 | E12: 85178.59 | F12: 85415.51 | G12: 0 | H12: 0 | I12: 2027631.38 | J12: 2027868.3
B13: D105 - Bibliothèques et documentation | C13: 1517311.39 | D13: 1517143.67 | E13: 511333.96 | F13: 482439.24 | G13: 21442.06 | H13: 26122.91 | I13: 2050087.41 | J13: 2025705.82
B14: D106 - Recherche universitaire en sciences de la vie, biotechnologie et santé | C14: 1432772.43 | D14: 1432772.43 | E14: 241870.52 | F14: 229087.96 | G14: 133784.63 | H14: 138625.18 | I14: 1808427.58 | J14: 1800485.57
B15: D107 - Recherche universitaire en mathématiques, sciences et techniques de l'information et de la communication, micro et nanotechnologies | C15: 5750754.17 | D15: 5750754.17 | E15: 425410.08 | F15: 440453.47 | G15: 189301.46 | H15: 114213.23 | I15: 6365465.71 | J15: 6305420.87
B16: D108 - Recherche universitaire en physique, chimie et sciences pour l'ingénieur | C16: 5683724.89 | D16: 5683546.49 | E16: 1419089.68 | F16: 1314502.82 | G16: 623976.75 | H16: 636386.02 | I16: 7726791.32 | J16: 7634435.33
B17: D109 - Recherche universitaire en physique nucléaire et des hautes énergies | C17: 0 | D17: 0 | E17: 0 | F17: 0 | G17: 0 | H17: 0 | I17: 0 | J17: 0
B18: D110 - Recherche universitaire en sciences de la terre, de l'univers et de l'environnement | C18: 396040.26 | D18: 396040.26 | E18: 83925.5 | F18: 78976.97 | G18: 102512.37 | H18: 94082.15 | I18: 582478.13 | J18: 569099.38
B19: D111 - Recherche universitaire en sciences de l'homme et de la société | C19: 5440444.2 | D19: 5440444.2 | E19: 275945.14 | F19: 242003 | G19: 9742.28 | H19: 13470.68 | I19: 5726131.62 | J19: 5695917.88
B20: D112 - Recherche universitaire interdisciplinaire et transversale | C20: 538119.72 | D20: 538119.72 | E20: 276761.83 | F20: 289569.4 | G20: 1334.6 | H20: 3150.2 | I20: 816216.15 | J20: 830839.32
B21: D113 - Diffusion des savoirs et musées | I21: 0 | J21: 0
B22: D114 - Immobilier | C22: 2009565.84 | D22: 2009565.84 | E22: 3448550.73 | F22: 3415428.43 | G22: 2994298.65 | H22: 3437202.24 | I22: 8452415.22 | J22: 8862196.51
B23: D115 - Pilotage et support | C23: 6347180.75 | D23: 6331431.49 | E23: 2324364.19 | F23: 2199025.29 | G23: 414304.29 | H23: 240894.04 | I23: 9085849.23 | J23: 8771350.82
B24: Étudiants (h) = (e) + (f) + (g) | C24: =SUM(C25:C27) -> 2155553.01 | D24: =SUM(D25:D27) -> 2155714.89 | E24: 1450957.03 | F24: 917903.92 | G24: 296809.44 | H24: 161788.03 | I24: 3903319.48 | J24: 3235406.84
B25: D201 - Aides directes aux étudiants (e) | C25: 0 | D25: 0 | E25: 977212.01 | F25: 387183.27 | G25: 0 | H25: 0 | I25: 977212.01 | J25: 387183.27
B26: D202 - Aides indirectes (f) | C26: 8376.21 | D26: 8376.21 | E26: 0 | F26: 0 | G26: 0 | H26: 0 | I26: 8376.21 | J26: 8376.21
B27: D203 - Santé des étudiants et activités associatives, culturelles et sportives (g) | C27: 2147176.8 | D27: 2147338.68 | E27: 473745.02 | F27: 530720.65 | G27: 296809.44 | H27: 161788.03 | I27: 2917731.26 | J27: 2839847.36
B28: Total | C28: =SUM(C10:C24) -> 74348490.9 | D28: =SUM(D10:D24) -> 74332657.4 | E28: 12728316.2 | F28: 11771498.43 | G28: 6584973.14 | H28: 6412893.39 | I28: =C28+E28+G28 -> 93661780.24 | J28: =D28+F28+H28 -> 92517049.22
H30: SOLDE BUDGETAIRE (excédent) | J30: =IF(K50>J28,K50-J28,0) -> 5003.46 | K30: =IF(ROUND(J30,-1)<>ROUND('2-tab_aut_budg_PRINC'!H30,-1),"Incohérence solde budgétaire avec Tab2 PRINC","") -> 
C31: =IF(ROUND(C28,-1)<>ROUND('2-tab_aut_budg_PRINC'!G11+'2-tab_aut_budg_PRINC'!G24,-1),"! Incohérence total Personnel AE avec Tab2 PRINC","") ->  | D31: =IF(ROUND(D28,-1)<>ROUND('2-tab_aut_budg_PRINC'!H11+'2-tab_aut_budg_PRINC'!H24,-1),"! Incohérence total Personnel CP avec Tab2 PRINC","") ->  | E31: =IF(ROUND(E28,-1)<>ROUND('2-tab_aut_budg_PRINC'!G15+'2-tab_aut_budg_PRINC'!G25,-1),"! Incohérence total Fonctionnement AE avec Tab2 PRINC","") ->  | F31: =IF(ROUND(F28,-1)<>ROUND('2-tab_aut_budg_PRINC'!H15+'2-tab_aut_budg_PRINC'!H25,-1),"! Incohérence total Fonctionnement CP avec Tab2 PRINC","") ->  | G31: =IF(ROUND(G28,-1)<>ROUND('2-tab_aut_budg_PRINC'!G20+'2-tab_aut_budg_PRINC'!G26,-1),"! Incohérence total Investissement AE avec Tab2 PRINC","") ->  | H31: =IF(ROUND(H28,-1)<>ROUND('2-tab_aut_budg_PRINC'!H20+'2-tab_aut_budg_PRINC'!H26,-1),"! Incohérence total Investissement CP avec Tab2 PRINC","") ->  | I31: =IF(ROUND(I28,-1)<>ROUND('2-tab_aut_budg_PRINC'!G28,-1),"! Incohérence Total dépenses AE avec Tab2 PRINC","") ->  | J31: =IF(ROUND(J28,-1)<>ROUND('2-tab_aut_budg_PRINC'!H28,-1),"! Incohérence Total dépenses CP avec Tab2 PRINC","") -> 
B32: Tableau des recettes par origine (obligatoire)
B34: Budget | C34: Recettes de l'organisme
C35: Recettes globalisées | H35: Recettes fléchées | K35: Total
C36: Subvention pour charges de service public | D36: Autres financements de l'Etat | E36: Fiscalité affectée | F36: Autres financements publics | G36: Recettes propres | H36: Financements de l'Etat fléchés | I36: Autres financements publics fléchés | J36: Recettes propres fléchées
B37: Subvention pour charges de service public | C37: 68012462 | D37: 0 | E37: 0 | F37: 0 | G37: 0 | H37: 0 | I37: 0 | J37: 0 | K37: =C37 -> 68012462
B38: Droits d'inscription | C38: 0 | D38: 0 | E38: 0 | F38: 0 | G38: 1303032.62 | H38: 0 | I38: 0 | J38: 0 | K38: =SUM(G38:J38) -> 1303032.62
B39: Formation continue, diplômes propres et VAE | C39: 0 | D39: 0 | E39: 0 | F39: 0 | G39: 5409002.27 | H39: 0 | I39: 0 | J39: 0 | K39: =SUM(G39:J39) -> 5409002.27
B40: Taxe d'apprentissage | C40: 0 | D40: 0 | E40: 0 | F40: 0 | G40: 664150.49 | H40: 0 | I40: 0 | J40: 0 | K40: 664150.49
B41: Contrats et prestations de recherche hors ANR | C41: 0 | D41: 0 | E41: 0 | F41: 0 | G41: 869595.88 | H41: 0 | I41: 0 | J41: 0 | K41: 869595.88
B42: Valorisation | C42: 0 | D42: 0 | E42: 0 | F42: 0 | G42: 735101.38 | H42: 0 | I42: 0 | J42: 0 | K42: 735101.38
B43: ANR investissements d'avenir | C43: 0 | D43: 0 | E43: 0 | F43: 264343.8 | G43: 0 | H43: 0 | I43: 0 | J43: 0 | K43: =SUM(F43,H43:J43) -> 264343.8
B44: ANR hors investissements d'avenir | C44: 0 | D44: 0 | E44: 0 | F44: 1110767.37 | G44: 0 | H44: 0 | I44: 0 | J44: 0 | K44: =SUM(F44,H44:J44) -> 1110767.37
B45: Subventions d'exploitation et financement des actifs - Région | C45: 0 | D45: 0 | E45: 0 | F45: 1418068.17 | G45: 0 | H45: 0 | I45: 0 | J45: 0 | K45: 1418068.17
B46: Subventions d'exploitation et financement des actifs - Union Européenne | C46: 0 | D46: 0 | E46: 0 | F46: 2111648.91 | G46: 0 | H46: 0 | I46: 2221464 | J46: 0 | K46: 4333112.91
B47: Subventions d'exploitation et financement des actifs - Autres | C47: 0 | D47: 1897410.83 | E47: 0 | F47: 1873482.83 | G47: 139407.25 | H47: 0 | I47: 0 | J47: 0 | K47: =SUM(D47,F47:J47) -> 3910300.91
B48: Fondations - fonds propres, réserves, dons et legs | C48: 0 | D48: 0 | E48: 0 | F48: 0 | G48: 0 | H48: 0 | I48: 0 | J48: 0 | K48: =SUM(D48,F48:J48) -> 0
B49: Autres recettes | C49: 0 | D49: 0 | E49: 473570.35 | F49: 0 | G49: 4018544.53 | H49: 0 | I49: 0 | J49: 0 | K49: =SUM(E49:J49) -> 4492114.88
B50: Total | C50: =C37 -> 68012462 | D50: =SUM(D47:D48) -> 1897410.83 | E50: =E49 -> 473570.35 | F50: =SUM(F43:F49) -> 6778311.08 | G50: =SUM(G38:G42,G47:G49) -> 13138834.42 | H50: =SUM(H38:H49) -> 0 | I50: =SUM(I38:I49) -> 2221464 | J50: 0 | K50: =SUM(K37:K49) -> 92522052.68
B52: La liste des destination est susceptible d'être modifiée par le ministre chargé de l'enseignement supérieur | I52: SOLDE BUDGETAIRE (déficit) | K52: =IF(J28>K50,J28-K50,0) -> 0 | L52: =IF(ROUND(K52,-1)<>ROUND('2-tab_aut_budg_PRINC'!L30,-1),"! Incohérence solde budgétaire avec Tab2 PRINC","") -> 
C53: =IF(ROUND(C50,-1)<>ROUND('2-tab_aut_budg_PRINC'!L12,-1),"! Incohérence total Subv charges serv public avec Tab2 PRINC","") ->  | D53: =IF(ROUND(D50,-1)<>ROUND('2-tab_aut_budg_PRINC'!L13,-1),"! Incohérence total Autres financements Etat avec Tab2 PRINC","") ->  | E53: =IF(ROUND(E50,-1)<>ROUND('2-tab_aut_budg_PRINC'!L14,-1),"! Incohérence total Fiscalité affectée avec Tab2 PRINC","") ->  | F53: =IF(ROUND(F50,-1)<>ROUND('2-tab_aut_budg_PRINC'!L15,-1),"! Incohérence total Autres financements publics avec Tab2 PRINC","") ->  | G53: =IF(ROUND(G50,-1)<>ROUND('2-tab_aut_budg_PRINC'!L16,-1),"! Incohérence total Recettes propres avec Tab2 PRINC","") ->  | H53: =IF(ROUND(H50,-1)<>ROUND('2-tab_aut_budg_PRINC'!L19,-1),"! Incohérence total Financements Etat fléchés avec Tab2 PRINC","") ->  | I53: =IF(ROUND(I50,-1)<>ROUND('2-tab_aut_budg_PRINC'!L20,-1),"! Incohérence total Autres financements fléchés avec Tab2 PRINC","") ->  | J53: =IF(ROUND(J50,-1)<>ROUND('2-tab_aut_budg_PRINC'!L21,-1),"! Incohérence total Recettes propres fléchées avec Tab2 PRINC","") ->  | K53: =IF(ROUND(K50,-1)<>ROUND('2-tab_aut_budg_PRINC'!L28,-1),"! Incohérence total avec Tab2 PRINC","") -> 

Sheet 3-tab_destination_origine_FU
B1: Tableau 3 - Université de Bretagne Sud (0561718N) : Fondation universitaire
B2: Dépenses par destination et recettes par origine - Compte Financier 2022
B4: POUR INFORMATION DE L'ORGANE DÉLIBÉRANT
B5: Tableau des dépenses par destination (obligatoire)
B6: Budget | C6: Dépenses de l’organisme
C7: Personnel | E7: Fonctionnement et intervention | G7: Investissement | I7: Total
C8: AE = CP | E8: AE | F8: CP | G8: AE | H8: CP | I8: AE | J8: CP
B9: Formation initiale et continue (d) = (a) + (b) + (c) | C9: =SUM(C10:C12) -> 17853.51 | D9: =SUM(D10:D12) -> 17853.51 | E9: 0 | F9: 0 | G9: 0 | H9: 0 | I9: =C9+E9+G9 -> 17853.51 | J9: =D9+F9+H9 -> 17853.51
B10: D101 - Formation initiale et continue de niveau Licence (a) | C10: 0 | D10: 0 | E10: 0 | F10: 0 | G10: 0 | H10: 0 | I10: =C10+E10+G10 -> 0 | J10: 0
B11: D102 - Formation initiale et continue de niveau Master (b) | C11: 0 | D11: 0 | E11: 0 | F11: 0 | G11: 0 | H11: 0 | I11: 0 | J11: 0
B12: D103 - Formation initiale et continue de niveau Doctorat (c) | C12: 17853.51 | D12: 17853.51 | E12: 0 | F12: 0 | G12: 0 | H12: 0 | I12: 17853.51 | J12: 17853.51
B13: D105 - Bibliothèques et documentation | D13: 0 | I13: 0 | J13: 0
B14: D106 - Recherche universitaire en sciences de la vie, biotechnologie et santé | C14: 0 | D14: 0 | E14: 0 | F14: 0 | G14: 0 | H14: 0 | I14: 0 | J14: 0
B15: D107 - Recherche universitaire en mathématiques, sciences et techniques de l'information et de la communication, micro et nanotechnologies | C15: 43129.86 | D15: 43129.86 | E15: 13890.01 | F15: 18888.68 | G15: 138 | H15: 678 | I15: 57157.87 | J15: 62696.54
B16: D108 - Recherche universitaire en physique, chimie et sciences pour l'ingénieur | C16: 0 | D16: 0 | E16: 0 | F16: 0 | G16: 0 | H16: 0 | I16: 0 | J16: 0
B17: D109 - Recherche universitaire en physique nucléaire et des hautes énergies | C17: 0 | D17: 0 | E17: 0 | F17: 0 | G17: 0 | H17: 0 | I17: 0 | J17: 0
B18: D110 - Recherche universitaire en sciences de la terre, de l'univers et de l'environnement | C18: 0 | D18: 0 | E18: 105382.72 | F18: 104878.67 | G18: 849.66 | H18: 0 | I18: 106232.38 | J18: 104878.67
B19: D111 - Recherche universitaire en sciences de l'homme et de la société | C19: 0 | D19: 0 | E19: 4696.95 | F19: 4717.11 | G19: 0 | H19: 0 | I19: 4696.95 | J19: 4717.11
B20: D112 - Recherche universitaire interdisciplinaire et transversale | C20: 0 | D20: 0 | E20: 302.9 | F20: 120 | G20: 0 | H20: 0 | I20: 302.9 | J20: 120
B21: D113 - Diffusion des savoirs et musées | I21: 0 | J21: 0
B22: D114 - Immobilier | C22: 0 | D22: 0 | E22: 232.7 | F22: 232.7 | G22: 0 | H22: 0 | I22: 232.7 | J22: 232.7
B23: D115 - Pilotage et support | C23: 44070.31 | D23: 44070.31 | E23: -11882.37 | F23: -11537.83 | G23: 0 | H23: 0 | I23: 32187.94 | J23: 32532.48
B24: Étudiants (h) = (e) + (f) + (g) | I24: 0 | J24: 0
B25: D201 - Aides directes aux étudiants (e) | I25: 0 | J25: 0
B26: D202 - Aides indirectes (f) | I26: 0 | J26: 0
B27: D203 - Santé des étudiants et activités associatives, culturelles et sportives (g) | D27: =+C27 -> 0 | I27: 0 | J27: 0
B28: Total | C28: =SUM(C10:C24) -> 105053.68 | D28: =SUM(D10:D24) -> 105053.68 | E28: 112622.91 | F28: 117299.33 | G28: 987.66 | H28: 678 | I28: =C28+E28+G28 -> 218664.25 | J28: =D28+F28+H28 -> 223031.01
C30: =IF(SUM(C9:C28)<>SUM(D9:D28),"! Dépenses de personnel AE <> CP","") ->  | H30: SOLDE BUDGETAIRE (excédent) | J30: =IF(K50>J28,K50-J28,0) -> 102901.31
B32: Tableau des recettes par origine (obligatoire)
B34: Budget | C34: Recettes de l'organisme
C35: Recettes globalisées | H35: Recettes fléchées | K35: Total
C36: Subvention pour charges de service public | D36: Autres financements de l'Etat | E36: Fiscalité affectée | F36: Autres financements publics | G36: Recettes propres | H36: Financements de l'Etat fléchés | I36: Autres financements publics fléchés | J36: Recettes propres fléchées
B37: Subvention pour charges de service public | C37: 0 | D37: 0 | E37: 0 | F37: 0 | G37: 0 | H37: 0 | I37: 0 | J37: 0 | K37: =C37 -> 0
B38: Droits d'inscription | C38: 0 | D38: 0 | E38: 0 | F38: 0 | G38: 0 | H38: 0 | I38: 0 | J38: 0 | K38: =SUM(G38:J38) -> 0
B39: Formation continue, diplômes propres et VAE | C39: 0 | D39: 0 | E39: 0 | F39: 0 | G39: 0 | H39: 0 | I39: 0 | J39: 0 | K39: =SUM(G39:J39) -> 0
B40: Taxe d'apprentissage | C40: 0 | D40: 0 | E40: 0 | F40: 0 | G40: 0 | H40: 0 | I40: 0 | J40: 0 | K40: 0
B41: Contrats et prestations de recherche hors ANR | C41: 0 | D41: 0 | E41: 0 | F41: 0 | G41: 0 | H41: 0 | I41: 0 | J41: 0 | K41: 0
B42: Valorisation | C42: 0 | D42: 0 | E42: 0 | F42: 0 | G42: 3000 | H42: 0 | I42: 0 | J42: 0 | K42: 3000
B43: ANR investissements d'avenir | C43: 0 | D43: 0 | E43: 0 | F43: 0 | G43: 0 | H43: 0 | I43: 0 | J43: 0 | K43: =SUM(F43,H43:J43) -> 0
B44: ANR hors investissements d'avenir | C44: 0 | D44: 0 | E44: 0 | F44: 0 | G44: 0 | H44: 0 | I44: 0 | J44: 0 | K44: =SUM(F44,H44:J44) -> 0
B45: Subventions d'exploitation et financement des actifs - Région | C45: 0 | D45: 0 | E45: 0 | F45: 0 | G45: 0 | H45: 0 | I45: 0 | J45: 0 | K45: 0
B46: Subventions d'exploitation et financement des actifs - Union Européenne | C46: 0 | D46: 0 | E46: 0 | F46: 0 | G46: 0 | H46: 0 | I46: 0 | J46: 0 | K46: 0
B47: Subventions d'exploitation et financement des actifs - Autres | C47: 0 | D47: 20520.32 | E47: 0 | F47: 59000 | G47: 0 | H47: 0 | I47: 0 | J47: 0 | K47: =SUM(D47,F47:J47) -> 79520.32
B48: Fondations - fonds propres, réserves, dons et legs | C48: 0 | D48: 0 | E48: 0 | F48: 0 | G48: 241912 | H48: 0 | I48: 0 | J48: 0 | K48: =SUM(D48,F48:J48) -> 241912
B49: Autres recettes | C49: 0 | D49: 0 | E49: 0 | F49: 0 | G49: 1500 | H49: 0 | I49: 0 | J49: 0 | K49: =SUM(F49:J49) -> 1500
B50: Total | C50: =C37 -> 0 | D50: =SUM(D47:D48) -> 20520.32 | E50: =SUM(E47:E48) -> 0 | F50: =SUM(F43:F49) -> 59000 | G50: =SUM(G38:G42,G47:G49) -> 246412 | H50: =SUM(H38:H49) -> 0 | I50: =SUM(I38:I49) -> 0 | J50: 0 | K50: =SUM(K37:K49) -> 325932.32
B52: La liste des destination est susceptible d'être modifiée par le ministre chargé de l'enseignement supérieur | I52: SOLDE BUDGETAIRE (déficit) | K52: =IF(J28>K50,J28-K50,0) -> 0 | L52: =IF(ROUND(K52,-1)<>ROUND('2-tab_aut_budg_FU'!L30,-1),"! Incohérence solde budgétaire avec Tab2 FU","") -> 
C53: =IF(ROUND(C50,-1)<>ROUND('2-tab_aut_budg_FU'!L12,-1),"! Incohérence total Subv charges serv public avec Tab2 FU","") ->  | D53: =IF(ROUND(D50,-1)<>ROUND('2-tab_aut_budg_FU'!L13,-1),"! Incohérence total Autres financements Etat avec Tab2 FU","") ->  | E53: =IF(ROUND(E50,-1)<>ROUND('2-tab_aut_budg_FU'!L14,-1),"! Incohérence total Fiscalité affectée avec Tab2 FU","") ->  | F53: =IF(ROUND(F50,-1)<>ROUND('2-tab_aut_budg_FU'!L15,-1),"! Incohérence total Autres financements publics avec Tab2 FU","") ->  | G53: =IF(ROUND(G50,-1)<>ROUND('2-tab_aut_budg_FU'!L16,-1),"! Incohérence total Recettes propres avec Tab2 FU","") ->  | H53: =IF(ROUND(H50,-1)<>ROUND('2-tab_aut_budg_PRINC'!L19,-1),"! Incohérence total Financements Etat fléchés avec Tab2 PRINC","") ->  | I53: =IF(ROUND(I50,-1)<>ROUND('2-tab_aut_budg_FU'!L20,-1),"! Incohérence total Autres financements fléchés avec Tab2 PRINC","") ->  | J53: =IF(ROUND(J50,-1)<>ROUND('2-tab_aut_budg_PRINC'!L21,-1),"! Incohérence total Recettes propres fléchées avec Tab2 PRINC","") -> 

Sheet 4-tab_financier_ETAB
B1: Tableau 4 - Université de Bretagne Sud (0561718N) : Etablissement principal + Fondation
B2: Equilibre financier - Compte Financier 2022
B5: POUR VOTE DE L'ORGANE DÉLIBÉRANT
B9: Besoins (utilisation des financements)
C10: Budget initial 2022 | D10: Dernier Budget Modifié 2022 | E10: Compte Financier 2022 | G10: Budget initial 2022 | H10: Dernier Budget Modifié 2022 | I10: Compte Financier 2022
B11: Solde budgétaire (déficit) * (D2) | C11: =+'2-tab_aut_budg_ETAB'!J30 -> 1739220.17 | D11: =+'2-tab_aut_budg_ETAB'!K30 -> 787815.14 | E11: =+'2-tab_aut_budg_ETAB'!L30 -> 0 | G11: ='2-tab_aut_budg_ETAB'!D30 -> 0 | H11: ='2-tab_aut_budg_ETAB'!F30 -> 0 | I11: ='2-tab_aut_budg_ETAB'!H30 -> 107904.77 | J11: Solde budgétaire (excédent) * (D1) | N11: Opérations ayant un impact sur la trésorerie
B12: dont solde budgétaire budget principal | C12: ='2-tab_aut_budg_PRINC'!J30 -> 1873895.17 | D12: ='2-tab_aut_budg_PRINC'!K30 -> 841431.02 | E12: ='2-tab_aut_budg_PRINC'!L30 -> 0 | G12: ='2-tab_aut_budg_PRINC'!D30 -> 0 | H12: ='2-tab_aut_budg_PRINC'!F30 -> 0 | I12: ='2-tab_aut_budg_PRINC'!H30 -> 5003.46 | J12: dont solde budgétaire budget principal
B13: dont solde budgétaire budget du SAIC | J13: dont solde budgétaire budget du SAIC | L13: Opérations budgétaires
B14: dont solde budgétaire FU | C14: ='2-tab_aut_budg_FU'!J30 -> 0 | D14: ='2-tab_aut_budg_FU'!K30 -> 0 | E14: ='2-tab_aut_budg_FU'!L30 -> 0 | G14: ='2-tab_aut_budg_FU'!D30 -> 134675 | H14: ='2-tab_aut_budg_FU'!F30 -> 53615.88 | I14: ='2-tab_aut_budg_FU'!H30 -> 102901.31 | J14: dont solde budgétaire FU
B15: dont solde budgétaire BAI | J15: dont solde budgétaire BAI
B17: Remboursements d'emprunts (capital) ; Nouveaux prêts (capital) ; Dépôts et cautionnements (b1) | E17: ='7-tab Plan_tréso_ETAB'!O42 -> 0 | I17: ='7-tab Plan_tréso_ETAB'!O22 -> 0 | J17: Nouveaux emprunts (capital) ; Remboursements de prêts (capital) ; Dépôts et cautionnements (b2)
B19: Opérations au nom et pour le compte de tiers ** (décaissements de l’exercice) (c1) | C19: ='5-tab compte de tiers_ETAB'!E15 -> 2487504.991 | D19: 1807052 | E19: ='5-tab compte de tiers_ETAB'!I15 -> 2263175.54 | G19: ='5-tab compte de tiers_ETAB'!F15 -> 2948410.391 | H19: 1976404 | I19: ='5-tab compte de tiers_ETAB'!J15 -> 2461090.61 | J19: Opérations au nom et pour le compte de tiers ** (encaissements de l’exercice) (c2) | L19: Opérations non budgétaires
D20: 0 | H20: 0
B21: Autres décaissements sur comptes de tiers (non budgétaires) (e1) | E21: ='7-tab Plan_tréso_ETAB'!O46 -> 1024155.44 | H21: 0 | I21: ='7-tab Plan_tréso_ETAB'!O26 -> 1322007.4 | J21: Autres encaissements sur comptes de tiers (non budgétaires) (e2)
B23: Sous-total des opérations ayant un impact négatif sur la trésorerie de l'organisme (1= D2+b1+c1+e1) | C23: =C11+C17+C19+C21 -> 4226725.161 | D23: =D11+D17+D19+D21 -> 2594867.14 | E23: =E11+E17+E19+E21 -> 3287330.98 | F23: et | G23: =G11+G17+G19+G21 -> 2948410.391 | H23: =H11+H17+H19+H21 -> 1976404 | I23: =I11+I17+I19+I21 -> 3891002.78 | J23: Sous-total des opérations ayant un impact positif sur la trésorerie de l'organisme (2=D1+b2+c2+e2) | L23: La variation de trésorerie : - se détermine par différence entre (1) et (2), - se décompose en (a) et (d), - s'explique par D, (b), (c), (e).
B24: Variation de trésorerie (I) | C24: =IF(G23-C23>0,G23-C23,) -> 0 | D24: =IF(H23-D23>0,H23-D23,) -> 0 | E24: =IF(I23-E23>0,I23-E23,) -> 603671.8 | F24: ou | G24: =IF(C23-G23>0,C23-G23,0) -> 1278314.77 | H24: =IF(D23-H23>0,D23-H23,0) -> 618463.14 | I24: =IF(E23-I23>0,E23-I23,0) -> 0 | J24: Variation de trésorerie (II)
N25: Décomposition de la variation de trésorerie
B26: dont Abondement de la trésorerie fléchée *** (a1) | D26: 1929527 | E26: ='7-tab Plan_tréso_ETAB'!O15-'7-tab Plan_tréso_ETAB'!O34 -> 2019075.04 | F26: ou | J26: dont Prélèvement sur la trésorerie fléchée *** (a2)
B28: dont Abondement sur la trésorerie non fléchée (d1) | F28: ou | G28: =G24 -> 1278314.77 | H28: 2547990.14 | I28: =E26-E24 -> 1415403.24 | J28: dont Prélèvement sur la trésorerie non fléchée (d2) | L28: = différence entre variation de trésorerie (I ou II) et (a)
B30: TOTAL DES BESOINS (1 + I) | C30: =C24+C23 -> 4226725.161 | D30: =D24+D23 -> 2594867.14 | E30: =E24+E23 -> 3891002.78 | F30: et | G30: =G24+G23 -> 4226725.161 | H30: 2594867.14 | I30: 3891002.78 | J30: TOTAL DES FINANCEMENTS (2 + II)
B32: * solde budgétaire à détailler pour chaque composante du budget de l'établissement | C32: =IF(ROUND(C11,-1)<>ROUND('2-tab_aut_budg_ETAB'!J30,-1),"! Incohérence solde budgétaire BI avec Tab2 ETAB","") ->  | D32: =IF(ROUND(D11,-1)<>ROUND('2-tab_aut_budg_ETAB'!K30,-1),"! Incohérence solde budgétaire BR avec Tab2 ETAB","") ->  | E32: =IF(ROUND(E11,-1)<>ROUND('2-tab_aut_budg_ETAB'!L30,-1),"! Incohérence solde budgétaire COFI avec Tab2 ETAB","") ->  | G32: =IF(ROUND(G11,-1)<>ROUND('2-tab_aut_budg_ETAB'!D30,-1),"! Incohérence solde budgétaire BI avec Tab2 ETAB","") ->  | H32: =IF(ROUND(H11,-1)<>ROUND('2-tab_aut_budg_ETAB'!F30,-1),"! Incohérence solde budgétaire BR avec Tab2 ETAB","") ->  | I32: =IF(ROUND(I11,-1)<>ROUND('2-tab_aut_budg_ETAB'!H30,-1),"! Incohérence solde budgétaire COFI avec Tab2 ETAB","") -> 
B33: Montant issu du tableau "Autorisations budgétaires" (tableau 2) | D33: =IF(ROUND(E11,-1)<>ROUND('3-tab_destination_origine_ETAB'!K52,-1),"! Incohérence solde budgétaire avec Tab3 ETAB","") ->  | E33: =IF(ROUND(E19,-1)<>ROUND('5-tab compte de tiers_ETAB'!I15,-1),"! Incohérence décaissements tiers avec Tab5","") ->  | H33: =IF(ROUND(I11,-1)<>ROUND('3-tab_destination_origine_ETAB'!J30,-1),"! Incohérence solde budgétaire avec Tab3 ETAB","") ->  | I33: =IF(ROUND(I19,-1)<>ROUND('5-tab compte de tiers_ETAB'!J15,-1),"! Incohérence encaissements tiers avec Tab5","") -> 
B34: ** Montants issus du tableau "Opérations pour compte de tiers" (tableau 5) | E34: =IF(ROUND(E19+E21,-1)<>ROUND('7-tab Plan_tréso_ETAB'!O43,-1),"! Incohérence décaissements tiers avec Tab7","") ->  | I34: =IF(ROUND(I19+I21,-1)<>ROUND('7-tab Plan_tréso_ETAB'!O23,-1),"! Incohérence encaissements tiers avec Tab7","") -> 
B35: *** Montant issu du tableau "Opérations sur recettes fléchées" (tableau 8) | C35: =IF('6-tab CR_TF_ETAB'!F48<=0,IF(ROUND('6-tab CR_TF_ETAB'!F48,-1)<>-ROUND(G24,-1),"! Incohérence var trésorerie BI Tab6 ETAB",""),IF(ROUND('6-tab CR_TF_ETAB'!F48,-1)<>ROUND(C25,-1),"! Incohérence var trésorerie BI Tab6 ETAB","")) ->  | D35: =IF('6-tab CR_TF_ETAB'!G48<=0,IF(ROUND('6-tab CR_TF_ETAB'!G48,-1)<>-ROUND(H24,-1),"! Incohérence var trésorerie BR tot Tab6 ETAB",""),IF(ROUND('6-tab CR_TF_ETAB'!G48,-1)<>ROUND(D25,-1),"! Incohérence var trésorerie BR tot Tab6 ETAB","")) ->  | E35: =IF('6-tab CR_TF_ETAB'!H48<=0,IF(ROUND('6-tab CR_TF_ETAB'!H48,-1)<>-ROUND(I24,-1),"! Incohérence var trésorerie Total Tab6 ETAB",""),IF(ROUND('6-tab CR_TF_ETAB'!H48,-1)<>ROUND(E24,-1),"! Incohérence var trésorerie Total Tab6 ETAB","")) ->  | I35: =IF('7-tab Plan_tréso_ETAB'!O48<=0,IF(-ROUND('7-tab Plan_tréso_ETAB'!O48,-1)<>ROUND('4-tab_financier_ETAB'!I24,-1),"! Incohérence variation de trésorerie Tab7",""),IF(ROUND('7-tab Plan_tréso_ETAB'!O48,-1)<>ROUND('4-tab_financier_ETAB'!E24,-1),"! Incohérence variation trésorerie Tab7","")) -> 
B37: SAIC : service d'activités industrielles et commerciales
B38: FU : fondation universitaire
B39: BAI : budget annexe immobilier
B40: SIE : service inter-établissements
B43: COMPARAISON COFI / BI et COFI / BR
B44: Besoins (utilisation des financements)
C45: Evolution COFI / BI | E45: Evolution COFI / BR | H45: Evolution COFI / BI | J45: Evolution COFI / BR
C46: en valeur | D46: en % | E46: en valeur | F46: en % | H46: en valeur | I46: en % | J46: en valeur | K46: en %
B47: Solde budgétaire (déficit) * (D2) | C47: =E11-C11 -> -1739220.17 | D47: =IF(E11=0,0,(E11-C11)/E11) -> 0 | E47: =E11-D11 -> -787815.14 | F47: =IF(E11=0,0,(E11-D11)/E11) -> 0 | H47: =I11-G11 -> 107904.77 | I47: =IF(I11=0,0,(I11-G11)/I11) -> 1 | J47: =I11-H11 -> 107904.77 | K47: =IF(I11=0,0,(I11-H11)/I11) -> 1 | L47: Solde budgétaire (excédent) * (D1)
B48: dont solde budgétaire budget principal | C48: =E12-C12 -> -1873895.17 | D48: =IF(E12=0,0,(E12-C12)/E12) -> 0 | E48: =E12-D12 -> -841431.02 | F48: =IF(E12=0,0,(E12-D12)/E12) -> 0 | H48: =I12-G12 -> 5003.46 | I48: =IF(I12=0,0,(I12-G12)/I12) -> 1 | J48: =I12-H12 -> 5003.46 | K48: =IF(I12=0,0,(I12-H12)/I12) -> 1 | L48: dont solde budgétaire budget principal
B49: dont solde budgétaire budget du SAIC | C49: =E13-C13 -> 0 | D49: =IF(E13=0,0,(E13-C13)/E13) -> 0 | E49: =E13-D13 -> 0 | F49: =IF(E13=0,0,(E13-D13)/E13) -> 0 | H49: =I13-G13 -> 0 | I49: =IF(I13=0,0,(I13-G13)/I13) -> 0 | J49: =I13-H13 -> 0 | K49: =IF(I13=0,0,(I13-H13)/I13) -> 0 | L49: dont solde budgétaire budget du SAIC
B50: dont solde budgétaire FU | C50: =E14-C14 -> 0 | D50: =IF(E14=0,0,(E14-C14)/E14) -> 0 | E50: =E14-D14 -> 0 | F50: =IF(E14=0,0,(E14-D14)/E14) -> 0 | H50: =I14-G14 -> -31773.69 | I50: =IF(I14=0,0,(I14-G14)/I14) -> -0.3087782847 | J50: =I14-H14 -> 49285.43 | K50: =IF(I14=0,0,(I14-H14)/I14) -> 0.4789582368 | L50: dont solde budgétaire FU
B51: dont solde budgétaire BAI | C51: =E15-C15 -> 0 | D51: =IF(E15=0,0,(E15-C15)/E15) -> 0 | E51: =E15-D15 -> 0 | F51: =IF(E15=0,0,(E15-D15)/E15) -> 0 | H51: =I15-G15 -> 0 | I51: =IF(I15=0,0,(I15-G15)/I15) -> 0 | J51: =I15-H15 -> 0 | K51: =IF(I15=0,0,(I15-H15)/I15) -> 0 | L51: dont solde budgétaire BAI
B52: dont solde budgétaire SIE | C52: =#REF!-#REF! ->  | D52: =IF(#REF!=0,0,(#REF!-#REF!)/#REF!) ->  | E52: =#REF!-#REF! ->  | F52: =IF(#REF!=0,0,(#REF!-#REF!)/#REF!) ->  | H52: =#REF!-#REF! ->  | I52: =IF(#REF!=0,0,(#REF!-#REF!)/#REF!) ->  | J52: =#REF!-#REF! ->  | K52: =IF(#REF!=0,0,(#REF!-#REF!)/#REF!) ->  | L52: dont solde budgétaire SIE
B54: Remboursements d'emprunts (capital) ; Nouveaux prêts (capital) ; Dépôts et cautionnements (b1) | C54: =E17-C17 -> 0 | D54: =IF(E17=0,0,(E17-C17)/E17) -> 0 | E54: =E17-D17 -> 0 | F54: =IF(E17=0,0,(E17-D17)/E17) -> 0 | H54: =I17-G17 -> 0 | I54: =IF(I17=0,0,(I17-G17)/I17) -> 0 | J54: =I17-H17 -> 0 | K54: =IF(I17=0,0,(I17-H17)/I17) -> 0 | L54: Nouveaux emprunts (capital) ; Remboursements de prêts (capital) ; Dépôts et cautionnements (b2)
B56: Opérations au nom et pour le compte de tiers ** (décaissements de l’exercice) (c1) | C56: -224329.451 | D56: -0.09912154272 | E56: 456123.54 | F56: 0.2015413882 | H56: -487319.7811 | I56: -0.1980096869 | J56: 484686.61 | K56: 0.1969397665 | L56: Opérations au nom et pour le compte de tiers ** (encaissements de l’exercice) (c2)
B58: Autres décaissements sur comptes de tiers (non budgétaires) (e1) | C58: 1024155.44 | D58: 1 | E58: 1024155.44 | F58: 1 | H58: 1322007.4 | I58: 1 | J58: 1322007.4 | K58: 1 | L58: Autres encaissements sur comptes de tiers (non budgétaires) (e2)
B60: Sous-total des opérations ayant un impact négatif sur la trésorerie de l'organisme (1= D2+b1+c1+e1) | C60: -939394.181 | D60: -0.2857619712 | E60: 692463.84 | F60: 0.2106462185 | G60: et | H60: 942592.3889 | I60: 0.2422492201 | J60: 1914598.78 | K60: 0.4920579317 | L60: Sous-total des opérations ayant un impact positif sur la trésorerie de l'organisme (2=D1+b2+c2+e2)
B61: Variation de trésorerie (I) | C61: 603671.8 | D61: 1 | E61: 603671.8 | F61: 1 | G61: ou | H61: -1278314.77 | I61: 0 | J61: -618463.14 | K61: 0 | L61: Variation de trésorerie (II)
B63: dont Abondement de la trésorerie fléchée *** (a1) | C63: 2019075.04 | D63: 1 | E63: 89548.04 | F63: 0.04435102125 | G63: ou | H63: 0 | I63: 0 | J63: 0 | K63: 0 | L63: dont Prélèvement sur la trésorerie fléchée *** (a2)
B65: dont Abondement sur la trésorerie non fléchée (d1) | C65: 0 | D65: 0 | E65: 0 | F65: 0 | G65: ou | H65: 137088.4701 | I65: 0.09685470982 | J65: -1132586.9 | K65: -0.8001867369 | L65: dont Prélèvement sur la trésorerie non fléchée (d2)
B67: TOTAL DES BESOINS (1 + I) | C67: -335722.381 | D67: -0.08628171193 | E67: 1296135.64 | F67: 0.3331109519 | G67: et | H67: -335722.381 | I67: -0.08628171193 | J67: 1296135.64 | K67: 0.3331109519 | L67: TOTAL DES FINANCEMENTS (2 + II)

Sheet 5-tab compte de tiers_ETAB
B1: Tableau 5 - Université de Bretagne Sud (0561718N) : Etablissement principal + Fondation
B2: Opérations pour le compte de tiers - Compte Financier 2022
B5: POUR INFORMATION DE L'ORGANE DÉLIBÉRANT
E8: Budget Initial | G8: Dernier Budget Modifié | I8: Compte Financier
B9: Opérations ou regroupement d'opérations de même nature | C9: Comptes | D9: Libellé | E9: Prévisions de décaissements | F9: Prévisions d'encaissements | G9: Prévisions de décaissements | H9: Prévisions d'encaissements | I9: décaissements | J9: encaissements
B10: Opération 1 | C10: C 4731 | D10: Bourse mobilité internationale | E10: 97200 | F10: 162000 | G10: 77184 | H10: 160800 | I10: 112000 | J10: 160800
B11: Opération 2 | C11: C 4731 | D11: TVA | E11: 876254.991 | F11: 841410.3911 | G11: 680000 | H11: 400000 | I11: 654538.53 | J11: 437917.6
B12: Opération 3 | C12: C 44571 et C 44551 | D12: Projet Flower (Interreg) | E12: 351550 | F12: 445000 | G12: 550002 | H12: 550002 | I12: 631035.04 | J12: 631035.04
B13: Opération 4 | C13: C 4731 | D13: Projet Indigo (Interreg) | E13: 1162500 | F13: 1500000 | G13: 499866 | H13: 499866 | I13: 499865.97 | J13: 499865.97
B14: Opération 5 | D14: Projet Cyberus | G14: 0 | H14: 365736 | I14: 365736 | J14: 731472
B15: TOTAL | E15: =+SUM(E10:E13) -> 2487504.991 | F15: =+SUM(F10:F13) -> 2948410.391 | G15: =+SUM(G10:G14) -> 1807052 | H15: =+SUM(H10:H14) -> 1976404 | I15: =+SUM(I10:I14) -> 2263175.54 | J15: =+SUM(J10:J14) -> 2461090.61
E16: (c1) | F16: (c2)
D17: (c1) et (c2) étant repris au tableau "Équilibre financier" (tableau 4)
B18: N.B. : Dans l'hypothèse d'un écart entre les crédits et les débits d'un même compte, l'opération concernée devra faire l'objet d'une explication spécifique.
A20: * | B20: L'écart entre les encaissements et les décaissements "bourse de mobilité internationale" s'explique par un décalage habituel compte tenu des périodes de mobilité des bénéficiaires | E20: =IF(ROUND(E15,-1)<>ROUND('4-tab_financier_ETAB'!C19,-1),"! Incohérence total décaissements tiers avec Tab4","") ->  | F20: =IF(ROUND(F15,-1)<>ROUND('4-tab_financier_ETAB'!G19,-1),"! Incohérence total encaissements tiers avec Tab4","") ->  | G20: =IF(ROUND(G15,-1)<>ROUND('4-tab_financier_ETAB'!D19,-1),"! Incohérence total décaissements tiers avec Tab4","") ->  | H20: =IF(ROUND(H15,-1)<>ROUND('4-tab_financier_ETAB'!H19,-1),"! Incohérence total encaissements tiers avec Tab4","") ->  | I20: =IF(ROUND(I15,-1)<>ROUND('4-tab_financier_ETAB'!E19,-1),"! Incohérence total décaissements tiers avec Tab4","") ->  | J20: =IF(ROUND(J15,-1)<>ROUND('4-tab_financier_ETAB'!I19,-1),"! Incohérence total encaissements tiers avec Tab4","") -> 
A21: ** | B21: Le décalage sur les opérations d'encaissement et de décaissement de TVA est classique compte tenu de l'activité économique

Sheet 6-tab CR_TF_ETAB
A1: Tableau 6 - Université de Bretagne Sud (0561718N) : Etablissement principal + Fondation
A2: Situation patrimoniale - Compte Financier 2022
A4: POUR VOTE DE L'ORGANE DÉLIBÉRANT
A6: Compte de résultat prévisionnel | L6: CHARGES | Q6: PRODUITS
L7: Evolution COFI / BI | N7: Evolution COFI / BR | Q7: Evolution COFI / BI | S7: Evolution COFI / BR
A8: CHARGES | B8: Budget initial 2022 | C8: Dernier Budget Modifié 2022 | D8: Compte Financier 2022 | E8: PRODUITS | F8: Budget initial 2022 | G8: Dernier Budget Modifié 2022 | H8: Compte Financier 2022 | L8: en valeur | M8: en % | N8: en valeur | O8: en % | Q8: en valeur | R8: en % | S8: en valeur | T8: en %
A9: Personnel | B9: ='6-tab CR_TF_PRINC'!B9+'6-tab CR_TF_FU'!B9 -> 75343549 | C9: ='6-tab CR_TF_PRINC'!C9+'6-tab CR_TF_FU'!C9 -> 74930748.77 | D9: ='6-tab CR_TF_PRINC'!D9+'6-tab CR_TF_FU'!D9 -> 73619346.53 | E9: Subventions de l'Etat | F9: ='6-tab CR_TF_PRINC'!F9+'6-tab CR_TF_FU'!F9 -> 70854541 | G9: ='6-tab CR_TF_PRINC'!G9+'6-tab CR_TF_FU'!G9 -> 71034662.69 | H9: ='6-tab CR_TF_PRINC'!H9+'6-tab CR_TF_FU'!H9 -> 71315703.88 | K9: Personnel | L9: =D9-B9 -> -1724202.47 | M9: =IF(D9=0,0,(D9-B9)/D9) -> -0.02342050767 | N9: =D9-C9 -> -1311402.24 | O9: =IF(D9=0,0,(D9-C9)/D9) -> -0.01781328281 | Q9: =H9-F9 -> 461162.88 | R9: =IF(H9=0,0,(H9-F9)/H9) -> 0.006466498329 | S9: =H9-G9 -> 281041.19 | T9: =IF(H9=0,0,(H9-G9)/H9) -> 0.003940803704 | U9: Subventions de l'Etat
A10: dont charges de pensions civiles* | B10: ='6-tab CR_TF_PRINC'!B10+'6-tab CR_TF_FU'!B10 -> 20455893 | C10: ='6-tab CR_TF_PRINC'!C10+'6-tab CR_TF_FU'!C10 -> 19827314 | D10: ='6-tab CR_TF_PRINC'!D10+'6-tab CR_TF_FU'!D10 -> 19889158.25 | E10: Fiscalité affectée | F10: ='6-tab CR_TF_PRINC'!F10+'6-tab CR_TF_FU'!F10 -> 600000 | G10: ='6-tab CR_TF_PRINC'!G10+'6-tab CR_TF_FU'!G10 -> 600000 | H10: ='6-tab CR_TF_PRINC'!H10+'6-tab CR_TF_FU'!H10 -> 473570.35 | K10: dont charges de pensions civiles* | L10: =D10-B10 -> -566734.75 | M10: =IF(D10=0,0,(D10-B10)/D10) -> -0.02849465738 | N10: =D10-C10 -> 61844.25 | O10: =IF(D10=0,0,(D10-C10)/D10) -> 0.003109445318 | Q10: =H10-F10 -> -126429.65 | R10: =IF(H10=0,0,(H10-F10)/H10) -> -0.2669712114 | S10: =H10-G10 -> -126429.65 | T10: =IF(H10=0,0,(H10-G10)/H10) -> -0.2669712114 | U10: Fiscalité affectée
A11: Fonctionnement (autre que les charges de personnel) et intervention | B11: ='6-tab CR_TF_PRINC'!B11+'6-tab CR_TF_FU'!B11 -> 22087759 | C11: ='6-tab CR_TF_PRINC'!C11+'6-tab CR_TF_FU'!C11 -> 21008402.65 | D11: ='6-tab CR_TF_PRINC'!D11+'6-tab CR_TF_FU'!D11 -> 20399917.12 | E11: Autres subventions | F11: ='6-tab CR_TF_PRINC'!F11+'6-tab CR_TF_FU'!F11 -> 5777910 | G11: ='6-tab CR_TF_PRINC'!G11+'6-tab CR_TF_FU'!G11 -> 5536440.61 | H11: ='6-tab CR_TF_PRINC'!H11+'6-tab CR_TF_FU'!H11 -> 4586564.18 | K11: Fonctionnement | L11: -1687841.88 | M11: -0.0827376832 | N11: -608485.53 | O11: -0.02982784324 | Q11: -1191345.82 | R11: -0.2597468984 | S11: -949876.43 | T11: -0.2070997794 | U11: Autres subventions
B12: ='6-tab CR_TF_PRINC'!B12+'6-tab CR_TF_FU'!B12 -> 0 | C12: ='6-tab CR_TF_PRINC'!C12+'6-tab CR_TF_FU'!C12 -> 0 | D12: ='6-tab CR_TF_PRINC'!D12+'6-tab CR_TF_FU'!D12 -> 0 | E12: Autres produits | F12: ='6-tab CR_TF_PRINC'!F12+'6-tab CR_TF_FU'!F12 -> 19869459 | G12: ='6-tab CR_TF_PRINC'!G12+'6-tab CR_TF_FU'!G12 -> 19336263.35 | H12: ='6-tab CR_TF_PRINC'!H12+'6-tab CR_TF_FU'!H12 -> 20019373.37 | Q12: 149914.37 | R12: 0.00748846466 | S12: 683110.02 | T12: 0.03412244766 | U12: Autres produits
A13: TOTAL DES CHARGES (1) | B13: =B9+B11 -> 97431308 | C13: =C9+C11 -> 95939151.42 | D13: =D9+D11 -> 94019263.65 | E13: TOTAL DES PRODUITS (2) | F13: =SUM(F9:F12) -> 97101910 | G13: 96507366.65 | H13: =SUM(H9:H12) -> 96395211.78 | K13: TOTAL CHARGES | L13: -3412044.35 | M13: -0.03629090696 | N13: -1919887.77 | O13: -0.02042015323 | Q13: -706698.22 | R13: -0.007331258544 | S13: -112154.87 | T13: -0.001163490052 | U13: TOTAL PRODUITS
A14: Résultat prévisionnel : bénéfice (3) = (2) - (1) | B14: =IF(F13-B13>0,F13-B13,0) -> 0 | C14: =IF(G13-C13>0,G13-C13,0) -> 568215.23 | D14: =IF(H13-D13>0,H13-D13,0) -> 2375948.13 | E14: Résultat prévisionnel : perte (4) = (1) - (2) | F14: =IF(B13-F13>0,B13-F13,0) -> 329398 | G14: =IF(C13-G13>0,C13-G13,0) -> 0 | H14: =IF(D13-H13>0,D13-H13,0) -> 0 | K14: Résultat | L14: 2375948.13 | M14: 1 | N14: 1807732.9 | O14: 0.760846955 | Q14: -329398 | R14: 0 | S14: 0 | T14: 0 | U14: Résultat
A15: TOTAL EQUILIBRE du compte de résultat prévisionnel (1) + (3) = (2) + (4) | B15: =B13+B14 -> 97431308 | C15: =C13+C14 -> 96507366.65 | D15: =D13+D14 -> 96395211.78 | E15: TOTAL EQUILIBRE du compte de résultat prévisionnel (1) + (3) = (2) + (4) | F15: =F13+F14 -> 97431308 | G15: 96507366.65 | H15: =H13+H14 -> 96395211.78 | K15: TOTAL | L15: -1036096.22 | M15: -0.01074841998 | N15: -112154.87 | O15: -0.001163490052 | Q15: -1036096.22 | R15: -0.01074841998 | S15: -112154.87 | T15: -0.001163490052 | U15: TOTAL
A16: * Il s'agit des sous catégories de comptes présentant les contributions employeur au CAS Pensions. | B16: ="BI : Différence charges de personnel entre tableau 2 et tableau 6 est de : "&'6-tab CR_TF_ETAB'!B9-ROUND('2-tab_aut_budg_ETAB'!D11+'2-tab_aut_budg_ETAB'!D24,0) -> BI : Différence charges de personnel entre tableau 2 et tableau 6 est de : -792705 | C16: ="BR : Différence charges de personnel entre tableau 2 et tableau 6 est de : "&'6-tab CR_TF_ETAB'!C9-ROUND('2-tab_aut_budg_ETAB'!F11+'2-tab_aut_budg_ETAB'!F24,0) -> BR : Différence charges de personnel entre tableau 2 et tableau 6 est de : -791597,230000004 | D16: ="COFI : Différence charges de personnel entre tableau 2 et tableau 6 est de : "&'6-tab CR_TF_ETAB'!D9-ROUND('2-tab_aut_budg_ETAB'!H11+'2-tab_aut_budg_ETAB'!H24,0) -> COFI : Différence charges de personnel entre tableau 2 et tableau 6 est de : -818364,469999999
B17: =IF('2-tab_aut_budg_ETAB'!D12="",IF(ROUND(B10,0)<>ROUND('2-tab_aut_budg_ETAB'!D12,0),"! Incohérence charges PC Tab2 AGR",""),"") ->  | C17: =IF('2-tab_aut_budg_ETAB'!F12="",IF(ROUND(C10,0)<>ROUND('2-tab_aut_budg_ETAB'!F12,0),"! Incohérence charges PC Tab2 AGR",""),"") ->  | D17: =IF('2-tab_aut_budg_ETAB'!H12="",IF(ROUND(D10,0)<>ROUND('2-tab_aut_budg_ETAB'!H12,0),"! Incohérence charges PCl Tab2 AGR",""),"") -> 
A19: Calcul de la capacité d'autofinancement (CAF)
L20: Evolution COFI / BI | N20: Evolution COFI / BR
B21: Budget initial 2022 | C21: Dernier Budget Modifié 2022 | D21: Compte Financier 2022 | L21: en valeur | M21: en % | N21: en valeur | O21: en %
A22: Résultat prévisionnel de l'exercice (bénéfice (3) ou perte (-4) | B22: =IF(B14>0,B14,-F14) -> -329398 | C22: =IF(C14>0,C14,-G14) -> 568215.23 | D22: =IF(D14>0,D14,-H14) -> 2375948.13 | L22: =D22-B22 -> 2705346.13 | M22: =IF(D22=0,0,(D22-B22)/D22) -> 1.138638548 | N22: =D22-C22 -> 1807732.9 | O22: =IF(D22=0,0,(D22-C22)/D22) -> 0.760846955 | Q22: Résultat
A23: + dotations aux amortissements, dépréciations et provisions | B23: ='6-tab CR_TF_PRINC'!B23+'6-tab CR_TF_FU'!B23 -> 7659161 | C23: ='6-tab CR_TF_PRINC'!C23+'6-tab CR_TF_FU'!C23 -> 7091877 | D23: ='6-tab CR_TF_PRINC'!D23+'6-tab CR_TF_FU'!D23 -> 7519105.41 | L23: =D23-B23 -> -140055.59 | M23: =IF(D23=0,0,(D23-B23)/D23) -> -0.01862662941 | N23: =D23-C23 -> 427228.41 | O23: =IF(D23=0,0,(D23-C23)/D23) -> 0.05681904784 | Q23: + dotations aux amortissements, dépréciations et provisions
A24: - reprises sur amortissements, dépréciations et provisions | B24: ='6-tab CR_TF_PRINC'!B24+'6-tab CR_TF_FU'!B24 -> 0 | C24: ='6-tab CR_TF_PRINC'!C24+'6-tab CR_TF_FU'!C24 -> 0 | D24: ='6-tab CR_TF_PRINC'!D24+'6-tab CR_TF_FU'!D24 -> -540769.59 | L24: -540769.59 | M24: 1 | N24: -540769.59 | O24: 1 | Q24: - reprises sur amortissements, dépréciations et provisions
A25: + valeur nette comptable des éléments d'actifs cédés | B25: ='6-tab CR_TF_PRINC'!B25+'6-tab CR_TF_FU'!B25 -> 0 | C25: ='6-tab CR_TF_PRINC'!C25+'6-tab CR_TF_FU'!C25 -> 0 | D25: ='6-tab CR_TF_PRINC'!D25+'6-tab CR_TF_FU'!D25 -> 0 | L25: 0 | M25: 0 | N25: 0 | O25: 0 | Q25: + valeur nette comptable des éléments d'actifs cédés
A26: - produits de cession d'éléments d'actifs | B26: ='6-tab CR_TF_PRINC'!B26+'6-tab CR_TF_FU'!B26 -> 0 | C26: ='6-tab CR_TF_PRINC'!C26+'6-tab CR_TF_FU'!C26 -> 0 | D26: ='6-tab CR_TF_PRINC'!D26+'6-tab CR_TF_FU'!D26 -> -2090 | L26: -2090 | M26: 1 | N26: -2090 | O26: 1 | Q26: - produits de cession d'éléments d'actifs
A27: - quote-part des subventions d’investissement virée au résultat de l’exercice | B27: ='6-tab CR_TF_PRINC'!B27+'6-tab CR_TF_FU'!B27 -> -5072618 | C27: ='6-tab CR_TF_PRINC'!C27+'6-tab CR_TF_FU'!C27 -> -4749988 | D27: ='6-tab CR_TF_PRINC'!D27+'6-tab CR_TF_FU'!D27 -> -4780993.97 | L27: 291624.03 | M27: -0.06099652746 | N27: -31005.97 | O27: 0.006485256036 | Q27: - quote-part des subventions d’investissement virée au résultat de l’exercice
A28: = CAF ou IAF* | B28: =SUM(B22:B27) -> 2257145 | C28: =SUM(C22:C27) -> 2910104.23 | D28: =SUM(D22:D27) -> 4571199.98 | L28: 2314054.98 | M28: 0.5062248403 | N28: 1661095.75 | O28: 0.363382866 | Q28: = CAF ou IAF*
A29: * capacité d'autofinancement ou insuffisance d'autofinancement
A32: État prévisionnel de l'évolution de la situation patrimoniale en droits constatés | L32: EMPLOIS | Q32: RESSOURCES
L33: Evolution COFI / BI | N33: Evolution COFI / BR | Q33: Evolution COFI / BI | S33: Evolution COFI / BR
A34: EMPLOIS | B34: Budget initial 2022 | C34: Dernier Budget Modifié 2022 | D34: Compte Financier 2022 | E34: RESSOURCES | F34: Budget initial 2022 | G34: Dernier Budget Modifié 2022 | H34: Compte Financier 2022 | L34: en valeur | M34: en % | N34: en valeur | O34: en % | Q34: en valeur | R34: en % | S34: en valeur | T34: en %
A35: Insuffisance d'autofinancement* | B35: =IF(B28<0,-B28,0) -> 0 | C35: =IF(C28<0,-C28,0) -> 0 | D35: =IF(D28<0,-D28,0) -> 0 | E35: Capacité d'autofinancement* | F35: =IF(B28>0,B28,0) -> 2257145 | G35: =IF(C28>0,C28,0) -> 2910104.23 | H35: =IF(D28>0,D28,0) -> 4571199.98 | K35: Insuffisance d'autofinancement | L35: =D35-B35 -> 0 | M35: =IF(D35=0,0,(D35-B35)/D35) -> 0 | N35: =D35-C35 -> 0 | O35: =IF(D35=0,0,(D35-C35)/D35) -> 0 | Q35: =H35-F35 -> 2314054.98 | R35: =IF(H35=0,0,(H35-F35)/H35) -> 0.5062248403 | S35: =H35-G35 -> 1661095.75 | T35: =IF(H35=0,0,(H35-G35)/H35) -> 0.363382866 | U35: Capacité d'autofinancement*
A36: Investissements | B36: ='6-tab CR_TF_PRINC'!B36+'6-tab CR_TF_FU'!B36 -> 7103450 | C36: ='6-tab CR_TF_PRINC'!C36+'6-tab CR_TF_FU'!C36 -> 8344355.42 | D36: ='6-tab CR_TF_PRINC'!D36+'6-tab CR_TF_FU'!D36 -> 6729956.06 | E36: Financement de l'actif par l'État | F36: ='6-tab CR_TF_PRINC'!F36+'6-tab CR_TF_FU'!F36 -> 150000 | G36: ='6-tab CR_TF_PRINC'!G36+'6-tab CR_TF_FU'!G36 -> 1217182.02 | H36: ='6-tab CR_TF_PRINC'!H36+'6-tab CR_TF_FU'!H36 -> 1351960.02 | K36: Investissements | L36: =D36-B36 -> -373493.94 | M36: -0.05549723307 | N36: -1614399.36 | O36: -0.2398826004 | Q36: =H36-F36 -> 1201960.02 | R36: 0.8890499735 | S36: 134778 | T36: 0.09969081778 | U36: Financement de l'actif par l'État
E37: Financement de l'actif par des tiers autres que l'Etat | F37: ='6-tab CR_TF_PRINC'!F37+'6-tab CR_TF_FU'!F37 -> 2100000 | G37: ='6-tab CR_TF_PRINC'!G37+'6-tab CR_TF_FU'!G37 -> 2201214.04 | H37: ='6-tab CR_TF_PRINC'!H37+'6-tab CR_TF_FU'!H37 -> 1727861.44 | Q37: -372138.56 | R37: -0.2153752329 | S37: -473352.6 | T37: -0.2739528697 | U37: Financement de l'actif par des tiers autres que l'Etat
E38: Autres ressources | F38: ='6-tab CR_TF_PRINC'!F38+'6-tab CR_TF_FU'!F38 -> 488495 | G38: ='6-tab CR_TF_PRINC'!G38+'6-tab CR_TF_FU'!G38 -> 458086 | H38: ='6-tab CR_TF_PRINC'!H38+'6-tab CR_TF_FU'!H38 -> -330912.15 | Q38: -819407.15 | R38: 2.476207507 | S38: -788998.15 | T38: 2.384313027 | U38: Autres ressources
A39: Remboursement des dettes financières | B39: ='6-tab CR_TF_PRINC'!B39+'6-tab CR_TF_FU'!B39 -> 0 | C39: ='6-tab CR_TF_PRINC'!C39+'6-tab CR_TF_FU'!C39 -> 0 | D39: ='6-tab CR_TF_PRINC'!D39+'6-tab CR_TF_FU'!D39 -> 0 | E39: Augmentation des dettes financières | F39: ='6-tab CR_TF_PRINC'!F39+'6-tab CR_TF_FU'!F39 -> 0 | G39: ='6-tab CR_TF_PRINC'!G39+'6-tab CR_TF_FU'!G39 -> 0 | H39: ='6-tab CR_TF_PRINC'!H39+'6-tab CR_TF_FU'!H39 -> 0 | K39: Remboursement des dettes financières | L39: 0 | M39: 0 | N39: 0 | O39: 0 | Q39: 0 | R39: 0 | S39: 0 | T39: 0 | U39: Augmentation des dettes financières
A40: TOTAL DES EMPLOIS (5) | B40: =SUM(B35:B39) -> 7103450 | C40: =SUM(C35:C39) -> 8344355.42 | D40: =SUM(D35:D39) -> 6729956.06 | E40: TOTAL DES RESSOURCES (6) | F40: =SUM(F35:F39) -> 4995640 | G40: 6786586.29 | H40: =SUM(H35:H39) -> 7320109.29 | K40: TOTAL DES EMPLOIS | L40: -373493.94 | M40: -0.05549723307 | N40: -1614399.36 | O40: -0.2398826004 | Q40: 2324469.29 | R40: 0.3175457084 | S40: 533523 | T40: 0.07288456755 | U40: TOTAL DES RESSOURCES
A41: APPORT au FONDS DE ROULEMENT (7) = (6)-(5) | B41: =IF(F40-B40>0,F40-B40,0) -> 0 | C41: =IF(G40-C40>0,G40-C40,0) -> 0 | D41: =IF(H40-D40>0,H40-D40,0) -> 590153.23 | E41: PRELEVEMENT sur FONDS DE ROULEMENT (8) = (5)-(6) | F41: =IF(B40-F40>0,B40-F40,0) -> 2107810 | G41: =IF(C40-G40>0,C40-G40,0) -> 1557769.13 | H41: =IF(D40-H40>0,D40-H40,0) -> 0 | K41: APPORT au FONDS DE ROULEMENT | L41: 590153.23 | M41: 1 | N41: 590153.23 | O41: 1 | Q41: -2107810 | R41: 0 | S41: -1557769.13 | T41: 0 | U41: PRELEVEMENT sur FONDS DE ROULEMENT
A43: POUR INFORMATION DE L'ORGANE DÉLIBÉRANT
L44: Evolution COFI / BI | N44: Evolution COFI / BR
F45: Budget initial 2022 | G45: Dernier Budget Modifié 2022 | H45: Compte Financier 2022 | L45: en valeur | M45: en % | N45: en valeur | O45: en %
A46: VARIATION DU FONDS DE ROULEMENT : APPORT (7) ou PRELEVEMENT (8) | F46: =IF(B41>0,B41,-F41) -> -2107810 | G46: =IF(C41>0,C41,-G41) -> -1557769.13 | H46: =IF(D41>0,D41,-H41) -> 590153.23 | L46: =H46-F46 -> 2697963.23 | M46: =IF(H46=0,0,(H46-F46)/H46) -> 4.571631727 | N46: =H46-G46 -> 2147922.36 | O46: =IF(H46=0,0,(H46-G46)/H46) -> 3.639601125 | Q46: VARIATION DU FONDS DE ROULEMENT : APPORT (7) ou PRELEVEMENT (8)
A47: Variation du BESOIN en FONDS DE ROULEMENT | F47: ='6-tab CR_TF_PRINC'!F47+'6-tab CR_TF_FU'!F47 -> -829495 | G47: ='6-tab CR_TF_PRINC'!G47+'6-tab CR_TF_FU'!G47 -> -939306.16 | H47: ='6-tab CR_TF_PRINC'!H47+'6-tab CR_TF_FU'!H47 -> -13518.57 | L47: =H47-F47 -> 815976.43 | M47: =IF(H47=0,0,(H47-F47)/H47) -> -60.35967044 | N47: =H47-G47 -> 925787.59 | O47: =IF(H47=0,0,(H47-G47)/H47) -> -68.48265682 | Q47: Variation du BESOIN en FONDS DE ROULEMENT
A48: Variation de la TRESORERIE : ABONDEMENT (I) ou PRELEVEMENT (II) * | F48: ='6-tab CR_TF_PRINC'!F48+'6-tab CR_TF_FU'!F48+0.23 -> -1278314.77 | G48: ='6-tab CR_TF_PRINC'!G48+'6-tab CR_TF_FU'!G48 -> -618462.97 | H48: ='6-tab CR_TF_PRINC'!H48+'6-tab CR_TF_FU'!H48 -> 603671.8 | L48: 1881986.57 | M48: 3.11756582 | N48: 1222134.77 | O48: 2.024502006 | Q48: Variation de la TRESORERIE : ABONDEMENT (I) ou PRELEVEMENT (II) *
A49: Niveau du FONDS DE ROULEMENT | F49: ='6-tab CR_TF_PRINC'!F49+'6-tab CR_TF_FU'!F49 -> 9422941.97 | G49: ='6-tab CR_TF_PRINC'!G49+'6-tab CR_TF_FU'!G49 -> 12189108.68 | H49: ='6-tab CR_TF_PRINC'!H49+'6-tab CR_TF_FU'!H49 -> 14337031.04 | L49: 4914089.07 | M49: 0.3427549997 | N49: 2147922.36 | O49: 0.1498163988 | Q49: Niveau du FONDS DE ROULEMENT
A50: Niveau du BESOIN EN FONDS DE ROULEMENT | F50: ='6-tab CR_TF_PRINC'!F50+'6-tab CR_TF_FU'!F50 -> 616021.83 | G50: =+G49-G51 -> -776867.55 | H50: ='6-tab CR_TF_PRINC'!H50+'6-tab CR_TF_FU'!H50 -> 148920.04 | L50: -467101.79 | M50: -3.136594578 | N50: 925787.59 | O50: 6.216675674 | Q50: Niveau du BESOIN EN FONDS DE ROULEMENT
A51: Niveau de la TRESORERIE | F51: ='6-tab CR_TF_PRINC'!F51+'6-tab CR_TF_FU'!F51 -> 8806920.14 | G51: ='6-tab CR_TF_PRINC'!G51+'6-tab CR_TF_FU'!G51 -> 12965976.23 | H51: ='6-tab CR_TF_PRINC'!H51+'6-tab CR_TF_FU'!H51 -> 14188111 | L51: 5381190.86 | M51: 0.3792746519 | N51: 1222134.77 | O51: 0.08613794817 | Q51: Niveau de la TRESORERIE
A53: * : montant issu du tableau "équilibre financier"

Sheet 6-tab CR_TF_PRINC
A1: Tableau 6 - Université de Bretagne Sud (0561718N) : Etablissement principal
A2: Situation patrimoniale - Compte Financier 2022
A4: POUR VOTE DE L'ORGANE DÉLIBÉRANT
A6: Compte de résultat prévisionnel | L6: CHARGES | Q6: PRODUITS
L7: Evolution COFI / BI | N7: Evolution COFI / BR | Q7: Evolution COFI / BI | S7: Evolution COFI / BR
A8: CHARGES | B8: Budget initial 2022 | C8: Dernier Budget Modifié 2022 | D8: Compte Financier 2022 | E8: PRODUITS | F8: Budget initial 2022 | G8: Dernier Budget Modifié 2022 | H8: Compte Financier 2022 | L8: en valeur | M8: en % | N8: en valeur | O8: en % | Q8: en valeur | R8: en % | S8: en valeur | T8: en %
A9: Personnel | B9: 75153444 | C9: 74820165.53 | D9: =53565896.11+19949871.05 -> 73515767.16 | E9: Subventions de l'Etat | F9: 70854541 | G9: 70981184.69 | H9: 71266963.22 | K9: Personnel | L9: =D9-B9 -> -1637676.84 | M9: =IF(D9=0,0,(D9-B9)/D9) -> -0.02227653881 | N9: =D9-C9 -> -1304398.37 | O9: =IF(D9=0,0,(D9-C9)/D9) -> -0.01774311036 | Q9: =H9-F9 -> 412422.22 | R9: =IF(H9=0,0,(H9-F9)/H9) -> 0.005787004263 | S9: =H9-G9 -> 285778.53 | T9: =IF(H9=0,0,(H9-G9)/H9) -> 0.004009972042 | U9: Subventions de l'Etat
A10: dont charges de pensions civiles* | B10: 20455893 | C10: 19827314 | D10: 19889158.25 | E10: Fiscalité affectée | F10: 600000 | G10: 600000 | H10: 473570.35 | K10: dont charges de pensions civiles* | L10: =D10-B10 -> -566734.75 | M10: =IF(D10=0,0,(D10-B10)/D10) -> -0.02849465738 | N10: =D10-C10 -> 61844.25 | O10: =IF(D10=0,0,(D10-C10)/D10) -> 0.003109445318 | Q10: =H10-F10 -> -126429.65 | R10: =IF(H10=0,0,(H10-F10)/H10) -> -0.2669712114 | S10: =H10-G10 -> -126429.65 | T10: =IF(H10=0,0,(H10-G10)/H10) -> -0.2669712114 | U10: Fiscalité affectée
A11: Fonctionnement (autre que les charges de personnel) et intervention | B11: 21774575 | C11: 20832121.65 | D11: 20008135.56 | E11: Autres subventions | F11: 5567910 | G11: 5477440.61 | H11: 4527564.18 | K11: Fonctionnement | L11: -1766439.44 | M11: -0.08828605917 | N11: -823986.09 | O11: -0.04118255234 | Q11: -1040345.82 | R11: -0.2297804688 | S11: -949876.43 | T11: -0.2097985566 | U11: Autres subventions
E12: Autres produits | F12: 19521701 | G12: 19158171.35 | H12: 19631753.1 | Q12: 110052.1 | R12: 0.005605821316 | S12: 473581.75 | T12: 0.02412325316 | U12: Autres produits
A13: TOTAL DES CHARGES (1) | B13: =B9+B11 -> 96928019 | C13: =C9+C11 -> 95652287.18 | D13: =D9+D11 -> 93523902.72 | E13: TOTAL DES PRODUITS (2) | F13: =SUM(F9:F12) -> 96544152 | G13: 96216796.65 | H13: =SUM(H9:H12) -> 95899850.85 | K13: TOTAL CHARGES | L13: -3404116.28 | M13: -0.03639835573 | N13: -2128384.46 | O13: -0.0227576523 | Q13: -644301.15 | R13: -0.006718479166 | S13: -316945.8 | T13: -0.003304966558 | U13: TOTAL PRODUITS
A14: Résultat prévisionnel : bénéfice (3) = (2) - (1) | B14: =IF(F13-B13>0,F13-B13,0) -> 0 | C14: =IF(G13-C13>0,G13-C13,0) -> 564509.47 | D14: =IF(H13-D13>0,H13-D13,0) -> 2375948.13 | E14: Résultat prévisionnel : perte (4) = (1) - (2) | F14: =IF(B13-F13>0,B13-F13,0) -> 383867 | G14: =IF(C13-G13>0,C13-G13,0) -> 0 | H14: =IF(D13-H13>0,D13-H13,0) -> 0 | K14: Résultat | L14: 2375948.13 | M14: 1 | N14: 1811438.66 | O14: 0.7624066524 | Q14: -383867 | R14: 0 | S14: 0 | T14: 0 | U14: Résultat
A15: TOTAL EQUILIBRE du compte de résultat prévisionnel (1) + (3) = (2) + (4) | B15: =B13+B14 -> 96928019 | C15: =C13+C14 -> 96216796.65 | D15: =D13+D14 -> 95899850.85 | E15: TOTAL EQUILIBRE du compte de résultat prévisionnel (1) + (3) = (2) + (4) | F15: =F13+F14 -> 96928019 | G15: 96216796.65 | H15: =H13+H14 -> 95899850.85 | K15: TOTAL | L15: -1028168.15 | M15: -0.01072126954 | N15: -316945.8 | O15: -0.003304966558 | Q15: -1028168.15 | R15: -0.01072126954 | S15: -316945.8 | T15: -0.003304966558 | U15: TOTAL
A16: * Il s'agit des sous catégories de comptes présentant les contributions employeur au CAS Pensions. | B16: ="BI : Différence charges de personnel entre tableau 2 et tableau 6 est de : "&'6-tab CR_TF_PRINC'!B9-ROUND('2-tab_aut_budg_PRINC'!D11+'2-tab_aut_budg_PRINC'!D24,0) -> BI : Différence charges de personnel entre tableau 2 et tableau 6 est de : -789810 | C16: ="BR : Différence charges de personnel entre tableau 2 et tableau 6 est de : "&'6-tab CR_TF_PRINC'!C9-ROUND('2-tab_aut_budg_PRINC'!F11+'2-tab_aut_budg_PRINC'!F24,0) -> BR : Différence charges de personnel entre tableau 2 et tableau 6 est de : -788702,469999999 | D16: ="COFI : Différence charges de personnel entre tableau 2 et tableau 6 est de : "&'6-tab CR_TF_PRINC'!D9-ROUND('2-tab_aut_budg_PRINC'!H11+'2-tab_aut_budg_PRINC'!H24,0) -> COFI : Différence charges de personnel entre tableau 2 et tableau 6 est de : -816889,840000004
B17: =IF('2-tab_aut_budg_PRINC'!H24="",IF(ROUND(B10,0)<>ROUND('2-tab_aut_budg_PRINC'!D12,0),"! Incohérence charges PC Tab2 PRINC",""),"") ->  | C17: =IF('2-tab_aut_budg_PRINC'!H24="",IF(ROUND(C10,0)<>ROUND('2-tab_aut_budg_PRINC'!F12,0),"! Incohérence charges PC Tab2 PRINC",""),"") ->  | D17: =IF('2-tab_aut_budg_PRINC'!H24="",IF(ROUND(D10,0)<>ROUND('2-tab_aut_budg_PRINC'!H12,0),"! Incohérence charges PCl Tab2 PRINC",""),"") -> 
A19: Calcul de la capacité d'autofinancement (CAF)
L20: Evolution COFI / BI | N20: Evolution COFI / BR
B21: Budget initial 2022 | C21: Dernier Budget Modifié 2022 | D21: Compte Financier 2022 | L21: en valeur | M21: en % | N21: en valeur | O21: en %
A22: Résultat prévisionnel de l'exercice (bénéfice (3) ou perte (-4) | B22: =IF(B14>0,B14,-F14) -> -383867 | C22: =IF(C14>0,C14,-G14) -> 564509.47 | D22: =IF(D14>0,D14,-H14) -> 2375948.13 | L22: =D22-B22 -> 2759815.13 | M22: =IF(D22=0,0,(D22-B22)/D22) -> 1.161563712 | N22: =D22-C22 -> 1811438.66 | O22: =IF(D22=0,0,(D22-C22)/D22) -> 0.7624066524 | Q22: Résultat
A23: + dotations aux amortissements, dépréciations et provisions | B23: 7628872 | C23: 7061588 | D23: 7251091.55 | L23: =D23-B23 -> -377780.45 | M23: =IF(D23=0,0,(D23-B23)/D23) -> -0.0520998042 | N23: =D23-C23 -> 189503.55 | O23: =IF(D23=0,0,(D23-C23)/D23) -> 0.02613448592 | Q23: + dotations aux amortissements, dépréciations et provisions
A24: - reprises sur amortissements, dépréciations et provisions | C24: 0 | D24: -306028.15 | L24: -306028.15 | M24: 1 | N24: -306028.15 | O24: 1 | Q24: - reprises sur amortissements, dépréciations et provisions
A25: + valeur nette comptable des éléments d'actifs cédés | C25: 0 | L25: 0 | M25: 0 | N25: 0 | O25: 0 | Q25: + valeur nette comptable des éléments d'actifs cédés
A26: - produits de cession d'éléments d'actifs | C26: 0 | D26: -2090 | L26: -2090 | M26: 1 | N26: -2090 | O26: 1 | Q26: - produits de cession d'éléments d'actifs
A27: - quote-part des subventions d’investissement virée au résultat de l’exercice | B27: -5062535 | C27: -4743688 | D27: -4752465.38 | L27: 310069.62 | M27: -0.06524395134 | N27: -8777.38 | O27: 0.001846910876 | Q27: - quote-part des subventions d’investissement virée au résultat de l’exercice
A28: = CAF ou IAF* | B28: =SUM(B22:B27) -> 2182470 | C28: =SUM(C22:C27) -> 2882409.47 | D28: =SUM(D22:D27) -> 4566456.15 | L28: 2383986.15 | M28: 0.5220648292 | N28: 1684046.68 | O28: 0.3687863465 | Q28: = CAF ou IAF*
A29: * capacité d'autofinancement ou insuffisance d'autofinancement
A32: État prévisionnel de l'évolution de la situation patrimoniale en droits constatés | L32: EMPLOIS | Q32: RESSOURCES
L33: Evolution COFI / BI | N33: Evolution COFI / BR | Q33: Evolution COFI / BI | S33: Evolution COFI / BR
A34: EMPLOIS | B34: Budget initial 2022 | C34: Dernier Budget Modifié 2022 | D34: Compt2 Financier 2020 | E34: RESSOURCES | F34: Budget initial 2022 | G34: Dernier Budget Modifié 2022 | H34: Compte Financier 2022 | L34: en valeur | M34: en % | N34: en valeur | O34: en % | Q34: en valeur | R34: en % | S34: en valeur | T34: en %
A35: Insuffisance d'autofinancement* | B35: =IF(B28<0,-B28,0) -> 0 | C35: =IF(C28<0,-C28,0) -> 0 | D35: =IF(D28<0,-D28,0) -> 0 | E35: Capacité d'autofinancement* | F35: =IF(B28>0,B28,0) -> 2182470 | G35: =IF(C28>0,C28,0) -> 2882409.47 | H35: =IF(D28>0,D28,0) -> 4566456.15 | K35: Insuffisance d'autofinancement | L35: =D35-B35 -> 0 | M35: =IF(D35=0,0,(D35-B35)/D35) -> 0 | N35: =D35-C35 -> 0 | O35: =IF(D35=0,0,(D35-C35)/D35) -> 0 | Q35: =H35-F35 -> 2383986.15 | R35: =IF(H35=0,0,(H35-F35)/H35) -> 0.5220648292 | S35: =H35-G35 -> 1684046.68 | T35: =IF(H35=0,0,(H35-G35)/H35) -> 0.3687863465 | U35: Capacité d'autofinancement*
A36: Investissements | B36: 7058450 | C36: 8342355.42 | D36: 6728968.4 | E36: Financement de l'actif par l'État | F36: 150000 | G36: 1217182.02 | H36: 1351960.02 | K36: Investissements | L36: =D36-B36 -> -329481.6 | M36: -0.04896465259 | N36: -1613387.02 | O36: -0.2397673646 | Q36: =H36-F36 -> 1201960.02 | R36: 0.8890499735 | S36: 134778 | T36: 0.09969081778 | U36: Financement de l'actif par l'État
E37: Financement de l'actif par des tiers autres que l'Etat | F37: 2100000 | G37: 2201214.04 | H37: 1727861.44 | Q37: =H37-#REF! ->  | R37: =IF(H37=0,0,(H37-#REF!)/H37) ->  | S37: -473352.6 | T37: -0.2739528697 | U37: Financement de l'actif par des tiers autres que l'Etat
E38: Autres ressources | F38: 312278 | G38: 330878 | H38: -480912.15 | Q38: =H38-F37 -> -2580912.15 | R38: =IF(H38=0,0,(H38-F37)/H38) -> 5.366701902 | S38: -811790.15 | T38: 1.68802171 | U38: Autres ressources
A39: Remboursement des dettes financières | E39: Augmentation des dettes financières | G39: 0 | K39: Remboursement des dettes financières | L39: 0 | M39: 0 | N39: 0 | O39: 0 | Q39: 0 | R39: 0 | S39: 0 | T39: 0 | U39: Augmentation des dettes financières
A40: TOTAL DES EMPLOIS (5) | B40: =SUM(B35:B39) -> 7058450 | C40: =SUM(C35:C39) -> 8342355.42 | D40: =SUM(D35:D39) -> 6728968.4 | E40: TOTAL DES RESSOURCES (6) | F40: =SUM(F35:F39) -> 4744748 | G40: 6631683.53 | H40: =SUM(H35:H39) -> 7165365.46 | K40: TOTAL DES EMPLOIS | L40: -329481.6 | M40: -0.04896465259 | N40: -1613387.02 | O40: -0.2397673646 | Q40: 2420617.46 | R40: 0.337821912 | S40: 533681.93 | T40: 0.07448076905 | U40: TOTAL DES RESSOURCES
A41: APPORT au FONDS DE ROULEMENT (7) = (6)-(5) | B41: =IF(F40-B40>0,F40-B40,0) -> 0 | C41: =IF(G40-C40>0,G40-C40,0) -> 0 | D41: =IF(H40-D40>0,H40-D40,0) -> 436397.06 | E41: PRELEVEMENT sur FONDS DE ROULEMENT (8) = (5)-(6) | F41: =IF(B40-F40>0,B40-F40,0) -> 2313702 | G41: =IF(C40-G40>0,C40-G40,0) -> 1710671.89 | H41: =IF(D40-H40>0,D40-H40,0) -> 0 | K41: APPORT au FONDS DE ROULEMENT | L41: 436397.06 | M41: 1 | N41: 436397.06 | O41: 1 | Q41: -2313702 | R41: 0 | S41: -1710671.89 | T41: 0 | U41: PRELEVEMENT sur FONDS DE ROULEMENT
A43: POUR INFORMATION DE L'ORGANE DÉLIBÉRANT
L44: Evolution COFI / BI | N44: Evolution COFI / BR
F45: Budget initial 2022 | G45: Dernier Budget Modifié 2022 | H45: Compte Financier 2022 | L45: en valeur | M45: en % | N45: en valeur | O45: en %
A46: VARIATION DU FONDS DE ROULEMENT : APPORT (7) ou PRELEVEMENT (8) | F46: =IF(B41>0,B41,-F41) -> -2313702 | G46: =IF(C41>0,C41,-G41) -> -1710671.89 | H46: =IF(D41>0,D41,-H41) -> 436397.06 | J46: =IF(H46<0,IF(ROUND(H46,0)=-ROUND('2-tab_aut_budg_PRINC'!L30,0),"! Impossibilité Var fonds de roulement = Solde budg Tab2 PRINC",""),IF(H46>0,IF(ROUND(H46,0)=ROUND('2-tab_aut_budg_PRINC'!H30,0),"! Impossibilité Var fonds de roulement = Solde budg Tab2 PRINC",""),"")) ->  | M46: =IF(H46=0,0,(H46-F46)/H46) -> 6.301827652 | N46: =H46-G46 -> 2147068.95 | O46: =IF(H46=0,0,(H46-G46)/H46) -> 4.919989493 | Q46: VARIATION DU FONDS DE ROULEMENT : APPORT (7) ou PRELEVEMENT (8)
A47: Variation du BESOIN en FONDS DE ROULEMENT | F47: =F46-F48 -> -900712 | G47: =G46-G48 -> -1038593.04 | H47: =H46-H48 -> -64232.4 | L47: =H47-F47 -> 836479.6 | M47: =IF(H47=0,0,(H47-F47)/H47) -> -13.02270505 | N47: =H47-G47 -> 974360.64 | O47: =IF(H47=0,0,(H47-G47)/H47) -> -15.16930147 | Q47: Variation du BESOIN en FONDS DE ROULEMENT
A48: Variation de la TRESORERIE : ABONDEMENT (I) ou PRELEVEMENT (II) * | F48: -1412990 | G48: -672078.85 | H48: 500629.46 | L48: 1913619.46 | M48: 3.82242679 | N48: 1172708.31 | O48: 2.342467641 | Q48: Variation de la TRESORERIE : ABONDEMENT (I) ou PRELEVEMENT (II) *
A49: Niveau du FONDS DE ROULEMENT | F49: 9118931.04 | G49: 11862976.93 | H49: =13573648.82+H46 -> 14010045.88 | L49: 4891114.84 | M49: 0.3491148339 | N49: 2147068.95 | O49: 0.1532520998 | Q49: Niveau du FONDS DE ROULEMENT
A50: Niveau du BESOIN EN FONDS DE ROULEMENT | F50: =F49-F51 -> 569860.03 | G50: -875363.44 | H50: =H49-H51 -> 98997.2 | L50: -470862.83 | M50: -4.756324724 | N50: 974360.64 | O50: 9.842305035 | Q50: Niveau du BESOIN EN FONDS DE ROULEMENT
A51: Niveau de la TRESORERIE | F51: 8549071.01 | G51: 12738340.37 | H51: =13410419.22+H48 -> 13911048.68 | L51: 5361977.67 | M51: 0.385447409 | N51: 1172708.31 | O51: 0.08430049646 | Q51: Niveau de la TRESORERIE
A53: * : montant issu du tableau "équilibre financier"

Sheet 6-tab CR_TF_FU
A1: Tableau 6 - Université de Bretagne Sud (0561718N) : Fondation
A2: Situation patrimoniale - Compte Financier 2022
A4: POUR VOTE DE L'ORGANE DÉLIBÉRANT
A6: Compte de résultat prévisionnel | L6: CHARGES | Q6: PRODUITS
L7: Evolution COFI / BI | N7: Evolution COFI / BR | Q7: Evolution COFI / BI | S7: Evolution COFI / BR
A8: CHARGES | B8: Budget initial 2022 | C8: Dernier Budget Modifié 2022 | D8: Compte Financier 2022 | E8: PRODUITS | F8: Budget initial 2022 | G8: Dernier Budget Modifié 2022 | H8: Compte Financier 2022 | L8: en valeur | M8: en % | N8: en valeur | O8: en % | Q8: en valeur | R8: en % | S8: en valeur | T8: en %
A9: Personnel | B9: 190105 | C9: 110583.24 | D9: 103579.37 | E9: Subventions de l'Etat | G9: 53478 | H9: 48740.66 | K9: Personnel | L9: =D9-B9 -> -86525.63 | M9: =IF(D9=0,0,(D9-B9)/D9) -> -0.8353558242 | N9: =D9-C9 -> -7003.87 | O9: =IF(D9=0,0,(D9-C9)/D9) -> -0.06761838772 | Q9: =H9-F9 -> 48740.66 | R9: =IF(H9=0,0,(H9-F9)/H9) -> 1 | S9: =H9-G9 -> -4737.34 | T9: =IF(H9=0,0,(H9-G9)/H9) -> -0.09719482666 | U9: Subventions de l'Etat
A10: dont charges de pensions civiles* | C10: 0 | E10: Fiscalité affectée | G10: 0 | K10: dont charges de pensions civiles* | L10: =D10-B10 -> 0 | M10: =IF(D10=0,0,(D10-B10)/D10) -> 0 | N10: =D10-C10 -> 0 | O10: =IF(D10=0,0,(D10-C10)/D10) -> 0 | Q10: =H10-F10 -> 0 | R10: =IF(H10=0,0,(H10-F10)/H10) -> 0 | S10: =H10-G10 -> 0 | T10: =IF(H10=0,0,(H10-G10)/H10) -> 0 | U10: Fiscalité affectée
A11: Fonctionnement (autre que les charges de personnel) et intervention | B11: 313184 | C11: 176281 | D11: 391781.56 | E11: Autres subventions | F11: 210000 | G11: 59000 | H11: 59000 | K11: Fonctionnement | L11: 78597.56 | M11: 0.2006157717 | N11: 215500.56 | O11: 0.5500528407 | Q11: -151000 | R11: -2.559322034 | S11: 0 | T11: 0 | U11: Autres subventions
E12: Autres produits | F12: 347758 | G12: 178092 | H12: 387620.27 | Q12: 39862.27 | R12: 0.1028384558 | S12: 209528.27 | T12: 0.5405503433 | U12: Autres produits
A13: TOTAL DES CHARGES (1) | B13: =B9+B11 -> 503289 | C13: =C9+C11 -> 286864.24 | D13: =D9+D11 -> 495360.93 | E13: TOTAL DES PRODUITS (2) | F13: =SUM(F9:F12) -> 557758 | G13: 290570 | H13: =SUM(H9:H12) -> 495360.93 | K13: TOTAL CHARGES | L13: -7928.07 | M13: -0.01600463323 | N13: 208496.69 | O13: 0.4208985355 | Q13: -62397.07 | R13: -0.1259628409 | S13: 204790.93 | T13: 0.4134176064 | U13: TOTAL PRODUITS
A14: Résultat prévisionnel : bénéfice (3) = (2) - (1) | B14: =IF(F13-B13>0,F13-B13,0) -> 54469 | C14: =IF(G13-C13>0,G13-C13,0) -> 3705.76 | D14: =IF(H13-D13>0,H13-D13,0) -> 5.820766091e-11 | E14: Résultat prévisionnel : perte (4) = (1) - (2) | F14: =IF(B13-F13>0,B13-F13,0) -> 0 | G14: =IF(C13-G13>0,C13-G13,0) -> 0 | H14: =IF(D13-H13>0,D13-H13,0) -> 0 | K14: Résultat | L14: -54469 | M14: -935770294583295 | N14: -3705.76 | O14: -63664472027299 | Q14: 0 | R14: 0 | S14: 0 | T14: 0 | U14: Résultat
A15: TOTAL EQUILIBRE du compte de résultat prévisionnel (1) + (3) = (2) + (4) | B15: =B13+B14 -> 557758 | C15: =C13+C14 -> 290570 | D15: =D13+D14 -> 495360.93 | E15: TOTAL EQUILIBRE du compte de résultat prévisionnel (1) + (3) = (2) + (4) | F15: =F13+F14 -> 557758 | G15: 290570 | H15: =H13+H14 -> 495360.93 | K15: TOTAL | L15: -62397.07 | M15: -0.1259628409 | N15: 204790.93 | O15: 0.4134176064 | Q15: -62397.07 | R15: -0.1259628409 | S15: 204790.93 | T15: 0.4134176064 | U15: TOTAL
A16: * Il s'agit des sous catégories de comptes présentant les contributions employeur au CAS Pensions. | B16: ="BI : Différence charges de personnel entre tableau 2 et tableau 6 est de : "&'6-tab CR_TF_FU'!B9-ROUND('2-tab_aut_budg_FU'!D11+'2-tab_aut_budg_FU'!D24,0) -> BI : Différence charges de personnel entre tableau 2 et tableau 6 est de : -2895 | C16: ="BR : Différence charges de personnel entre tableau 2 et tableau 6 est de : "&'6-tab CR_TF_FU'!C9-ROUND('2-tab_aut_budg_FU'!F11+'2-tab_aut_budg_FU'!F24,0) -> BR : Différence charges de personnel entre tableau 2 et tableau 6 est de : -2894,75999999999 | D16: ="COFI : Différence charges de personnel entre tableau 2 et tableau 6 est de : "&'6-tab CR_TF_FU'!D9-ROUND('2-tab_aut_budg_FU'!H11+'2-tab_aut_budg_FU'!H24,0) -> COFI : Différence charges de personnel entre tableau 2 et tableau 6 est de : -1474,63
B17: =IF('2-tab_aut_budg_FU'!H24="",IF(ROUND(B10,0)<>ROUND('2-tab_aut_budg_FU'!D12,0),"! Incohérence charges PC Tab2 FU",""),"") ->  | C17: =IF('2-tab_aut_budg_FU'!H24="",IF(ROUND(C10,0)<>ROUND('2-tab_aut_budg_FU'!F12,0),"! Incohérence charges PC Tab2 FU",""),"") ->  | D17: =IF('2-tab_aut_budg_FU'!H24="",IF(ROUND(D10,0)<>ROUND('2-tab_aut_budg_FU'!H12,0),"! Incohérence charges PCl Tab2 FU",""),"") -> 
A19: Calcul de la capacité d'autofinancement (CAF)
L20: Evolution COFI / BI | N20: Evolution COFI / BR
B21: Budget initial 2022 | C21: Dernier Budget Modifié 2022 | D21: Compte Financier 2022 | L21: en valeur | M21: en % | N21: en valeur | O21: en %
A22: Résultat prévisionnel de l'exercice (bénéfice (3) ou perte (-4) | B22: =IF(B14>0,B14,-F14) -> 54469 | C22: =IF(C14>0,C14,-G14) -> 3705.76 | D22: =IF(D14>0,D14,-H14) -> 5.820766091e-11 | L22: =D22-B22 -> -54469 | M22: =IF(D22=0,0,(D22-B22)/D22) -> -935770294583295 | N22: =D22-C22 -> -3705.76 | O22: =IF(D22=0,0,(D22-C22)/D22) -> -63664472027299 | Q22: Résultat
A23: + dotations aux amortissements, dépréciations et provisions | B23: 30289 | C23: 30289 | D23: 268013.86 | L23: =D23-B23 -> 237724.86 | M23: =IF(D23=0,0,(D23-B23)/D23) -> 0.8869871879 | N23: =D23-C23 -> 237724.86 | O23: =IF(D23=0,0,(D23-C23)/D23) -> 0.8869871879 | Q23: + dotations aux amortissements, dépréciations et provisions
A24: - reprises sur amortissements, dépréciations et provisions | C24: 0 | D24: -234741.44 | L24: -234741.44 | M24: 1 | N24: -234741.44 | O24: 1 | Q24: - reprises sur amortissements, dépréciations et provisions
A25: + valeur nette comptable des éléments d'actifs cédés | C25: 0 | L25: 0 | M25: 0 | N25: 0 | O25: 0 | Q25: + valeur nette comptable des éléments d'actifs cédés
A26: - produits de cession d'éléments d'actifs | C26: 0 | L26: 0 | M26: 0 | N26: 0 | O26: 0 | Q26: - produits de cession d'éléments d'actifs
A27: - quote-part des subventions d’investissement virée au résultat de l’exercice | B27: -10083 | C27: -6300 | D27: -28528.59 | L27: -18445.59 | M27: 0.6465650773 | N27: -22228.59 | O27: 0.7791688969 | Q27: - quote-part des subventions d’investissement virée au résultat de l’exercice
A28: = CAF ou IAF* | B28: =SUM(B22:B27) -> 74675 | C28: =SUM(C22:C27) -> 27694.76 | D28: =SUM(D22:D27) -> 4743.83 | L28: -69931.17 | M28: -14.74150001 | N28: -22950.93 | O28: -4.838059121 | Q28: = CAF ou IAF*
A29: * capacité d'autofinancement ou insuffisance d'autofinancement
A32: État prévisionnel de l'évolution de la situation patrimoniale en droits constatés | L32: EMPLOIS | Q32: RESSOURCES
L33: Evolution COFI / BI | N33: Evolution COFI / BR | Q33: Evolution COFI / BI | S33: Evolution COFI / BR
A34: EMPLOIS | B34: Budget initial 2022 | C34: Dernier Budget Modifié 2022 | D34: Compte Financier 2022 | E34: RESSOURCES | F34: Budget initial 2022 | G34: Dernier Budget Modifié 2022 | H34: Compte Financier 2022 | L34: en valeur | M34: en % | N34: en valeur | O34: en % | Q34: en valeur | R34: en % | S34: en valeur | T34: en %
A35: Insuffisance d'autofinancement* | B35: =IF(B28<0,-B28,0) -> 0 | C35: =IF(C28<0,-C28,0) -> 0 | D35: =IF(D28<0,-D28,0) -> 0 | E35: Capacité d'autofinancement* | F35: =IF(B28>0,B28,0) -> 74675 | G35: =IF(C28>0,C28,0) -> 27694.76 | H35: =IF(D28>0,D28,0) -> 4743.83 | K35: Insuffisance d'autofinancement | L35: =D35-B35 -> 0 | M35: =IF(D35=0,0,(D35-B35)/D35) -> 0 | N35: =D35-C35 -> 0 | O35: =IF(D35=0,0,(D35-C35)/D35) -> 0 | Q35: =H35-F35 -> -69931.17 | R35: =IF(H35=0,0,(H35-F35)/H35) -> -14.74150001 | S35: =H35-G35 -> -22950.93 | T35: =IF(H35=0,0,(H35-G35)/H35) -> -4.838059121 | U35: Capacité d'autofinancement*
A36: Investissements | B36: 45000 | C36: 2000 | D36: 987.66 | E36: Financement de l'actif par l'État | G36: 0 | K36: Investissements | L36: =D36-B36 -> -44012.34 | M36: -44.56223802 | N36: -1012.34 | O36: -1.024988356 | Q36: =H36-F36 -> 0 | R36: 0 | S36: 0 | T36: 0 | U36: Financement de l'actif par l'État
E37: Financement de l'actif par des tiers autres que l'Etat | G37: 0 | Q37: 0 | R37: 0 | S37: 0 | T37: 0 | U37: Financement de l'actif par des tiers autres que l'Etat
E38: Autres ressources | F38: 176217 | G38: 127208 | H38: 150000 | Q38: -26217 | R38: -0.17478 | S38: 22792 | T38: 0.1519466667 | U38: Autres ressources
A39: Remboursement des dettes financières | E39: Augmentation des dettes financières | G39: 0 | K39: Remboursement des dettes financières | L39: 0 | M39: 0 | N39: 0 | O39: 0 | Q39: 0 | R39: 0 | S39: 0 | T39: 0 | U39: Augmentation des dettes financières
A40: TOTAL DES EMPLOIS (5) | B40: =SUM(B35:B39) -> 45000 | C40: =SUM(C35:C39) -> 2000 | D40: =SUM(D35:D39) -> 987.66 | E40: TOTAL DES RESSOURCES (6) | F40: =SUM(F35:F39) -> 250892 | G40: 154902.76 | H40: =SUM(H35:H39) -> 154743.83 | K40: TOTAL DES EMPLOIS | L40: -44012.34 | M40: -44.56223802 | N40: -1012.34 | O40: -1.024988356 | Q40: -96148.17 | R40: -0.621337665 | S40: -158.93 | T40: -0.001027052258 | U40: TOTAL DES RESSOURCES
A41: APPORT au FONDS DE ROULEMENT (7) = (6)-(5) | B41: =IF(F40-B40>0,F40-B40,0) -> 205892 | C41: =IF(G40-C40>0,G40-C40,0) -> 152902.76 | D41: =IF(H40-D40>0,H40-D40,0) -> 153756.17 | E41: PRELEVEMENT sur FONDS DE ROULEMENT (8) = (5)-(6) | F41: =IF(B40-F40>0,B40-F40,0) -> 0 | G41: =IF(C40-G40>0,C40-G40,0) -> 0 | H41: =IF(D40-H40>0,D40-H40,0) -> 0 | K41: APPORT au FONDS DE ROULEMENT | L41: -52135.83 | M41: -0.3390812219 | N41: 853.41 | O41: 0.005550411408 | Q41: 0 | R41: 0 | S41: 0 | T41: 0 | U41: PRELEVEMENT sur FONDS DE ROULEMENT
A43: POUR INFORMATION DE L'ORGANE DÉLIBÉRANT
L44: Evolution COFI / BI | N44: Evolution COFI / BR
F45: Budget initial 2022 | G45: Dernier Budget Modifié 2022 | H45: Compte Financier 2022 | L45: en valeur | M45: en % | N45: en valeur | O45: en %
A46: VARIATION DU FONDS DE ROULEMENT : APPORT (7) ou PRELEVEMENT (8) | F46: =IF(B41>0,B41,-F41) -> 205892 | G46: =IF(C41>0,C41,-G41) -> 152902.76 | H46: =IF(D41>0,D41,-H41) -> 153756.17 | J46: =IF(H46<0,IF(ROUND(H46,0)=-ROUND('2-tab_aut_budg_FU'!L30,0),"! Impossibilité Var fonds de roulement = Solde budg Tab2 FU",""),IF(H46>0,IF(ROUND(H46,0)=ROUND('2-tab_aut_budg_FU'!H30,0),"! Impossibilité Var fonds de roulement = Solde budg Tab2 FU",""),"")) ->  | M46: =IF(H46=0,0,(H46-F46)/H46) -> -0.3390812219 | N46: =H46-G46 -> 853.41 | O46: =IF(H46=0,0,(H46-G46)/H46) -> 0.005550411408 | Q46: VARIATION DU FONDS DE ROULEMENT : APPORT (7) ou PRELEVEMENT (8)
A47: Variation du BESOIN en FONDS DE ROULEMENT | F47: =F46-F48 -> 71217 | G47: =G46-G48 -> 99286.88 | H47: 50713.83 | L47: =H47-F47 -> -20503.17 | M47: =IF(H47=0,0,(H47-F47)/H47) -> -0.4042914921 | N47: =H47-G47 -> -48573.05 | O47: =IF(H47=0,0,(H47-G47)/H47) -> -0.9577870573 | Q47: Variation du BESOIN en FONDS DE ROULEMENT
A48: Variation de la TRESORERIE : ABONDEMENT (I) ou PRELEVEMENT (II) * | F48: 134675 | G48: 53615.88 | H48: 103042.34 | L48: -31632.66 | M48: -0.3069870114 | N48: 49426.46 | O48: 0.4796713662 | Q48: Variation de la TRESORERIE : ABONDEMENT (I) ou PRELEVEMENT (II) *
A49: Niveau du FONDS DE ROULEMENT | F49: 304010.93 | G49: 326131.75 | H49: =173228.99+H46 -> 326985.16 | L49: 22974.23 | M49: 0.07026077269 | N49: 853.41 | O49: 0.002609934959 | Q49: Niveau du FONDS DE ROULEMENT
A50: Niveau du BESOIN EN FONDS DE ROULEMENT | F50: =F49-F51 -> 46161.8 | G50: =G49-G51 -> 98495.89 | H50: 49922.84 | L50: 3761.04 | M50: 0.07533706015 | N50: -48573.05 | O50: -0.9729624757 | Q50: Niveau du BESOIN EN FONDS DE ROULEMENT
A51: Niveau de la TRESORERIE | F51: 257849.13 | G51: 227635.86 | H51: =174019.98+H48 -> 277062.32 | L51: 19213.19 | M51: 0.06934609513 | N51: 49426.46 | O51: 0.1783947381 | Q51: Niveau de la TRESORERIE
A53: * : montant issu du tableau "équilibre financier"

Sheet 7-tab Plan_tréso_ETAB
B1: Tableau 7 - Université de Bretagne Sud (0561718N) : Etablissement principal + Fondation
B2: Plan de trésorerie - Compte Financier 2022
B4: POUR INFORMATION DE L'ORGANE DÉLIBÉRANT
B6: ( K€ ) | C6: janvier | D6: février | E6: mars | F6: avril | G6: mai | H6: juin | I6: juillet | J6: août | K6: septembre | L6: octobre | M6: novembre | N6: décembre | O6: TOTAL Variation de la trésorerie annuelle
B7: (1) SOLDE INITIAL (début de mois) | C7: 13584439.2 | D7: =C49 -> 25985406.27 | E7: =D49 -> 22788389.98 | F7: 16807537.16 | G7: 28071272.57 | H7: 22846202.03 | I7: 17262924.2 | J7: 34916808.29 | K7: 28915064.9 | L7: 22225946.99 | M7: 26772529.16 | N7: 20324764.14
B8: ENCAISSEMENTS
B9: Recettes budgétaires globalisées | C9: =SUM(C10:C14) -> 2257255.01 | D9: =SUM(D10:D14) -> 17909362.69 | E9: 2352976.64 | F9: 18319388.01 | G9: 1409772.47 | H9: 1454856.61 | I9: 28875404.73 | J9: 1099545.34 | K9: 1320146.58 | L9: 919104.98 | M9: 7966435.08 | N9: 6742272.86 | O9: 90626521
B10: Subvention pour charges de service public | C10: 0 | D10: 16544431 | E10: 0 | F10: 17089896 | G10: 0 | H10: 0 | I10: 27292670 | J10: 0 | K10: 0 | L10: 0 | M10: 5795412 | N10: 1290053 | O10: =SUM(C10:N10) -> 68012462 | P10: =IF(ROUND(O10,-1)<>ROUND('2-tab_aut_budg_ETAB'!L12,-1),"! Incohérence subv serv publ. Tab2 ETAB","") -> 
B11: Autres financements de l'Etat | C11: 50295.64 | D11: 292855.87 | E11: 83153.69 | F11: 36250 | G11: 5682 | H11: 115530.56 | I11: 212225.89 | J11: 33727.72 | K11: 303300 | L11: 0 | M11: 515782.53 | N11: 269127.25 | O11: =SUM(C11:N11) -> 1917931.15 | P11: =IF(ROUND(O11,-1)<>ROUND('2-tab_aut_budg_ETAB'!L13,-1),"! Incohérence autres financ. Etat Tab2 ETAB","") -> 
B12: Fiscalité affectée | C12: 0 | D12: 0 | E12: 0 | F12: 0 | G12: 0 | H12: 0 | I12: 473570.35 | J12: 0 | K12: 0 | L12: 0 | M12: 0 | N12: 0 | O12: 473570.35 | P12: =IF(ROUND(O12,-1)<>ROUND('2-tab_aut_budg_ETAB'!L14,-1),"! Incohérence fiscalité affectée Tab2 ETAB","") -> 
B13: Autres financements publics | C13: 365872.91 | D13: 521076.62 | E13: 626356.94 | F13: 128469.12 | G13: 256194.66 | H13: 341369.29 | I13: 452913.33 | J13: 534822.13 | K13: 457034.93 | L13: 592782.32 | M13: 748561.27 | N13: 1811857.56 | O13: 6837311.08 | P13: =IF(ROUND(O13,-1)<>ROUND('2-tab_aut_budg_ETAB'!L15,-1),"! Incohérence autres financ. publics Tab2 ETAB","") -> 
B14: Recettes propres | C14: 1841086.46 | D14: 550999.2 | E14: 1643466.01 | F14: 1064772.89 | G14: 1147895.81 | H14: 997956.76 | I14: 444025.16 | J14: 530995.49 | K14: 559811.65 | L14: 326322.66 | M14: 906679.28 | N14: 3371235.05 | O14: 13385246.42 | P14: =IF(ROUND(O14,-1)<>ROUND('2-tab_aut_budg_ETAB'!L16,-1),"! Incohérence recettes propres Tab2 ETAB","") -> 
B15: Recettes budgétaires fléchées | C15: =SUM(C16:C18) -> 0 | D15: =SUM(D16:D18) -> 0 | E15: 0 | F15: 0 | G15: 0 | H15: 2221464 | I15: 0 | J15: 0 | K15: 249144 | L15: -249144 | M15: 0 | N15: 0 | O15: =SUM(C15:N15) -> 2221464
B16: Financements de l'Etat fléchés | C16: 0 | D16: 0 | E16: 0 | F16: 0 | G16: 0 | H16: 0 | I16: 0 | J16: 0 | K16: 0 | L16: 0 | M16: 0 | N16: 0 | O16: 0 | P16: =IF(ROUND(O16,-1)<>ROUND('2-tab_aut_budg_ETAB'!L19,-1),"! Incohérence Financ. Etat fléchés Tab2 ETAB","") -> 
B17: Autres financements publics fléchés | C17: 0 | D17: 0 | E17: 0 | F17: 0 | G17: 0 | H17: 2221464 | I17: 0 | J17: 0 | K17: 249144 | L17: -249144 | M17: 0 | N17: 0 | O17: 2221464 | P17: =IF(ROUND(O17,-1)<>ROUND('2-tab_aut_budg_ETAB'!L20,-1),"! Incohérence Autres financ. fléchés Tab2 ETAB","") -> 
B18: Recettes propres fléchées | C18: 0 | D18: 0 | E18: 0 | F18: 0 | G18: 0 | H18: 0 | I18: 0 | J18: 0 | K18: 0 | L18: 0 | M18: 0 | N18: 0 | O18: 0 | P18: =IF(ROUND(O18,-1)<>ROUND('2-tab_aut_budg_ETAB'!L21,-1),"! Incohérence recettes propres fléchées Tab2 ETAB","") -> 
B19: Opérations non budgétaires | C19: =SUM(C20:C22) -> 0 | D19: =SUM(D20:D22) -> 0 | E19: 0 | F19: 0 | G19: 0 | H19: 0 | I19: 0 | J19: 0 | K19: 0 | L19: 0 | M19: 0 | N19: 0 | O19: 0
B20: Emprunts : encaissements en capital | C20: 0 | D20: 0 | E20: 0 | F20: 0 | G20: 0 | H20: 0 | I20: 0 | J20: 0 | K20: 0 | L20: 0 | M20: 0 | N20: 0 | O20: 0
B21: Prêts : encaissements en capital | C21: 0 | D21: 0 | E21: 0 | F21: 0 | G21: 0 | H21: 0 | I21: 0 | J21: 0 | K21: 0 | L21: 0 | M21: 0 | N21: 0 | O21: 0
B22: Dépôts et cautionnements | C22: 0 | D22: 0 | E22: 0 | F22: 0 | G22: 0 | H22: 0 | I22: 0 | J22: 0 | K22: 0 | L22: 0 | M22: 0 | O22: 0
B23: Opérations gérées en comptes de tiers : | C23: =SUM(C24:C26) -> 17166357.84 | D23: =SUM(D24:D26) -> -13530209.74 | E23: 321355.08 | F23: -400327.83 | G23: 769747.4 | H23: -1809767.45 | I23: -2401237.67 | J23: 425535.56 | K23: 12165.81 | L23: 12037679.33 | M23: -5271126.13 | N23: -3537074.19 | O23: 3783098.01
B24: TVA encaissée | C24: 28731.39 | D24: 42141.57 | E24: 29864.5 | F24: 46155.46 | G24: 45415.86 | H24: 32970.83 | I24: 21331.96 | J24: 23258.57 | K24: 9761.13 | L24: 28360.58 | M24: 28017.12 | N24: 101908.63 | O24: 437917.6
B25: Dispositifs d'intervention pour compte de tiers : encaissements | C25: 0 | D25: 300001.93 | E25: 232629.24 | F25: 0 | G25: 112560 | H25: 365736 | I25: 0 | J25: 0 | K25: 315476.73 | L25: 365736 | M25: 331033.11 | N25: 0 | O25: 2023173.01
B26: Autres encaissements d'opérations gérées en comptes de tiers | C26: 17137626.45 | D26: -13872353.24 | E26: 58861.34 | F26: -446483.29 | G26: 611771.54 | H26: -2208474.28 | I26: -2422569.63 | J26: 402276.99 | K26: -313072.05 | L26: 11643582.75 | M26: -5630176.36 | N26: -3638982.82 | O26: 1322007.4
B27: A. TOTAL | C27: =C23+C19+C15+C9 -> 19423612.85 | D27: =D23+D19+D15+D9 -> 4379152.95 | E27: 2674331.72 | F27: 17919060.18 | G27: 2179519.87 | H27: 1866553.16 | I27: 26474167.06 | J27: 1525080.9 | K27: 1581456.39 | L27: 12707640.31 | M27: 2695308.95 | N27: 3205198.67 | O27: 96631083.01
B28: DECAISSEMENTS
B29: Dépenses liées à des recettes globalisées | C29: =SUM(C30:C33) -> 6957641.41 | D29: =SUM(D30:D33) -> 7196178.24 | E29: 8370071.35 | F29: 6626599.3 | G29: 7354703.84 | H29: 7374699.47 | I29: 8773368.71 | J29: 7496341.62 | K29: 7866623.32 | L29: 7608922.36 | M29: 7669494.02 | N29: 9243047.63 | O29: =SUM(C29:N29) -> 92537691.27
B30: Personnel | C30: 5890239.53 | D30: 6040550.99 | E30: 6329809.89 | F30: 5819695.93 | G30: 5908624.69 | H30: 5759065.61 | I30: 7355561.9 | J30: 6975855.56 | K30: 5904660.35 | L30: 6242899.08 | M30: 6038452.56 | N30: 6150361.28 | O30: =SUM(C30:N30) -> 74415777.37 | P30: =IF(ROUND(SUM(O30,O35),-1)<>ROUND('2-tab_aut_budg_ETAB'!H11+'2-tab_aut_budg_ETAB'!H24,-1),"! Incohérence Personnel Tab2 ETAB","") -> 
B31: Fonctionnement | C31: 859650.95 | D31: 788089.78 | E31: 1409412.32 | F31: 585690.09 | G31: 1130652.15 | H31: 1204496.17 | I31: 668101.92 | J31: 408881.2 | K31: 1045799.21 | L31: 826833.92 | M31: 864569.24 | N31: 1924329.16 | O31: 11716506.11 | P31: =IF(ROUND(SUM(O31:O32,O36:O37),-1)<>ROUND('2-tab_aut_budg_ETAB'!H15+'2-tab_aut_budg_ETAB'!H25,-1),"! Incohérence Fonct et Interv. Tab2 ETAB","") -> 
B32: Intervention | O32: 0
B33: Investissement | C33: 207750.93 | D33: 367537.47 | E33: 630849.14 | F33: 221213.28 | G33: 315427 | H33: 411137.69 | I33: 749704.89 | J33: 111604.86 | K33: 916163.76 | L33: 539189.36 | M33: 766472.22 | N33: 1168357.19 | O33: 6405407.79
B34: Dépenses liées à des recettes fléchées | C34: =SUM(C35:C38) -> 0 | D34: =SUM(D35:D38) -> 0 | E34: 0 | F34: 0 | G34: 0 | H34: 0 | I34: 1754.56 | J34: 2159.54 | K34: 13290.51 | L34: 65478.65 | M34: 39006.34 | N34: 80699.36 | O34: 202388.96
B35: Personnel | C35: 0 | D35: 0 | E35: 0 | F35: 0 | G35: 0 | H35: 0 | I35: 1754.56 | J35: 1295.54 | K35: 2732.53 | L35: 2021.85 | M35: 8206.34 | N35: 5922.89 | O35: 21933.71 | P35: =IF(ROUND(SUM(O30,O35),-1)<>ROUND('2-tab_aut_budg_ETAB'!H11+'2-tab_aut_budg_ETAB'!H24,-1),"! Incohérence Personnel Tab2 ETAB","") -> 
B36: Fonctionnement | C36: 0 | D36: 0 | E36: 0 | F36: 0 | G36: 0 | H36: 0 | I36: 0 | J36: 864 | K36: 2394.38 | L36: 63456.8 | M36: 30800 | N36: 74776.47 | O36: 172291.65
B37: Intervention | C37: 0 | D37: 0 | E37: 0 | F37: 0 | G37: 0 | H37: 0 | I37: 0 | J37: 0 | K37: 0 | L37: 0 | M37: 0 | N37: 0 | O37: 0 | P37: =IF(ROUND(SUM(O31:O32,O36:O37),-1)<>ROUND('2-tab_aut_budg_ETAB'!H15+'2-tab_aut_budg_ETAB'!H25,-1),"! Incohérence Fonct et Interv. Tab2 ETAB","") -> 
B38: Investissement | C38: 0 | D38: 0 | E38: 0 | F38: 0 | G38: 0 | H38: 0 | I38: 0 | J38: 0 | K38: 8163.6 | L38: 0 | M38: 0 | N38: 0 | O38: 8163.6 | P38: =IF(ROUND(SUM(O33,O38),-1)<>ROUND('2-tab_aut_budg_ETAB'!H20+'2-tab_aut_budg_ETAB'!H26,-1),"! Incohérence Invt Tab2 ETAB","") -> 
B39: Opérations non budgétaires | C39: =SUM(C40:C42) -> 0 | D39: =SUM(D40:D42) -> 0 | E39: 0 | F39: 0 | G39: 0 | H39: 0 | I39: 0 | J39: 0 | K39: 0 | L39: 0 | M39: 0 | N39: 0 | O39: 0 | P39: =IF(ROUND(O39,-1)<>ROUND('4-tab_financier_ETAB'!E17,-1),"! Incohérence Emprunts Tab4","") -> 
B40: Emprunts : remboursements en capital | C40: 0 | D40: 0 | E40: 0 | F40: 0 | G40: 0 | H40: 0 | I40: 0 | J40: 0 | K40: 0 | L40: 0 | M40: 0 | N40: 0 | O40: 0
B41: Prêts : décaissements en capital | C41: 0 | D41: 0 | E41: 0 | F41: 0 | G41: 0 | H41: 0 | I41: 0 | J41: 0 | K41: 0 | L41: 0 | M41: 0 | N41: 0 | O41: 0
B42: Dépôts et cautionnements | C42: 0 | D42: 0 | E42: 0 | F42: 0 | G42: 0 | H42: 0 | I42: 0 | J42: 0 | K42: 0 | M42: 0 | N42: 0 | O42: 0
B43: Opérations gérées en compte de tiers : | C43: =SUM(C44:C46) -> 65004.37 | D43: =SUM(D44:D46) -> 379991 | E43: 285113.19 | F43: 28725.47 | G43: 49886.57 | H43: 75131.52 | I43: 45159.7 | J43: 28323.13 | K43: 390660.47 | L43: 486657.13 | M43: 1434573.61 | N43: 18104.82 | O43: 3287330.98 | P43: =IF(ROUND(O43,-1)<>ROUND('4-tab_financier_ETAB'!E19+'4-tab_financier_ETAB'!E21,-1),"! Incohérence Compte tiers Tab4","") -> 
B44: TVA décaissée | C44: 49270.07 | D44: 31833.8 | E44: 68220.66 | F44: 31714.49 | G44: 39584.92 | H44: 54347.38 | I44: 39147.02 | J44: 17356.33 | K44: 61852.96 | L44: 59776.08 | M44: 71340.83 | N44: 130093.99 | O44: 654538.53
B45: Dispositifs d'intervention pour compte de tiers : décaissements | C45: 2000 | D45: 328001.93 | E45: 199589.24 | F45: 1840 | G45: 4000 | H45: 3920 | I45: 5440 | J45: 3200 | K45: 315876.73 | L45: 380136 | M45: 355033.11 | N45: 9600 | O45: 1608637.01
B46: Autres décaissements d'opérations gérées en comptes de tiers | C46: 13734.3 | D46: 20155.27 | E46: 17303.29 | F46: -4829.02 | G46: 6301.65 | H46: 16864.14 | I46: 572.68 | J46: 7766.8 | K46: 12930.78 | L46: 46745.05 | M46: 1008199.67 | N46: -121589.17 | O46: 1024155.44
B47: B. TOTAL | C47: =C43+C39+C34+C29 -> 7022645.78 | D47: =D43+D39+D34+D29 -> 7576169.24 | E47: 8655184.54 | F47: 6655324.77 | G47: 7404590.41 | H47: 7449830.99 | I47: 8820282.97 | J47: 7526824.29 | K47: 8270574.3 | L47: 8161058.14 | M47: 9143073.97 | N47: 9341851.81 | O47: 96027411.21
B48: (2) SOLDE DU MOIS = A - B | C48: =C27-C47 -> 12400967.07 | D48: =D27-D47 -> -3197016.29 | E48: -5980852.82 | F48: 11263735.41 | G48: -5225070.54 | H48: -5583277.83 | I48: 17653884.09 | J48: -6001743.39 | K48: -6689117.91 | L48: 4546582.17 | M48: -6447765.02 | N48: -6136653.14 | O48: =SUM(C48:N48) -> 603671.8 | P48: =IF(O48<0,IF(-ROUND(O48,-1)<>ROUND('4-tab_financier_ETAB'!I24,-1),"! Incohérence variation trésorerie Tab4",""),IF(ROUND('7-tab Plan_tréso_ETAB'!O48,-1)<>ROUND('4-tab_financier_ETAB'!E24,-1),"! Incohérence variation trésorerie Tab4","")) -> 
B49: SOLDE CUMULE (1) + (2) | C49: =C48+C7 -> 25985406.27 | D49: =D48+D7 -> 22788389.98 | E49: 16807537.16 | F49: 28071272.57 | G49: 22846202.03 | H49: 17262924.2 | I49: 34916808.29 | J49: 28915064.9 | K49: 22225946.99 | L49: 26772529.16 | M49: 20324764.14 | N49: =N48+N7 -> 14188111
O50: Variation de trésorerie correspondant à celle du tableau d'équilibre financier (I) ou (II)

Sheet 9-tab op_pluriannuelles_ETAB (hidden)
B1: Tableau 9 - Université de Bretagne Sud (0561718N) : Etablissement principal + Fondation + CFA
B2: Tableau des opérations pluriannuelles - Compte financier 2017
B3: POUR VOTE DE L'ORGANE DÉLIBÉRANT
B5: Suivi par opération (ou par regroupement d'opérations) des autorisations d'engagement, des crédits de paiement et des recettes
B7: A - Exécution des autorisations d'engagement et de crédits de paiement
F9: Prévision | H9: Exécution | Q9: Prévision N+1 et suivantes
B10: Opérations | E10: Nature | F10: Coût total de l'opération | H10: AE consommées les années antérieures à N | I10: AE consommées en N | K10: Total des AE consommées | L10: CP consommés les années antérieures à N | M10: CP consommés en N | N10: Total des CP consommés | O10: Restes à payer | Q10: Solde à engager | R10: Solde à payer
F11: (1) | H11: (2) | I11: (3) | K11: (4) = (2) + (3) | L11: (5) | M11: (6) | N11: (7) = (5) + (6) | O11: (8) = (4) - (7) | Q11: (9) = (1) - (4) | R11: (10) = (1) - (7)
B12: Contrats de recherche | E12: Personnel | F12: =331795.87+306635.59+2681703.12+26996.06+5813568.04 -> 9160698.68 | H12: 3347130.64 | I12: 2198805.05 | K12: =H12+I12 -> 5545935.69 | L12: =H12 -> 3347130.64 | M12: 2198805.05 | N12: =L12+M12 -> 5545935.69 | O12: =K12-N12 -> 0 | Q12: =F12-K12 -> 3614762.99 | R12: =F12-N12 -> 3614762.99
E13: Fonctionnement | F13: =428.31+201701.71+1700376.26+120851.01+3224529.81 -> 5247887.1 | H13: 2023357.29 | I13: 1201193.18 | K13: =H13+I13 -> 3224550.47 | L13: =H13 -> 2023357.29 | M13: 1060595.19 | N13: =L13+M13 -> 3083952.48 | O13: =K13-N13 -> 140597.99 | Q13: =F13-K13 -> 2023336.63 | R13: =F13-N13 -> 2163934.62
E14: Investissement | F14: =3865.25+220664.32+5781.29+142555.7 -> 372866.56 | H14: 230310.86 | I14: 59513.32 | K14: =H14+I14 -> 289824.18 | L14: =H14 -> 230310.86 | M14: 34743.69 | N14: =L14+M14 -> 265054.55 | O14: =K14-N14 -> 24769.63 | Q14: =F14-K14 -> 83042.38 | R14: =F14-N14 -> 107812.01
B15: Total Contrats de recherche | F15: =SUM(F12:F14) -> 14781452.34 | H15: =SUM(H12:H14) -> 5600798.79 | I15: 3459511.55 | K15: =SUM(K12:K14) -> 9060310.34 | L15: =SUM(L12:L14) -> 5600798.79 | M15: 3294143.93 | N15: =SUM(N12:N14) -> 8894942.72 | O15: =SUM(O12:O14) -> 165367.62 | Q15: =SUM(Q12:Q14) -> 5721142 | R15: =SUM(R12:R14) -> 5886509.62
B16: Contrats de formation continue | E16: Personnel | F16: 42000 | H16: 0 | I16: 6797.09 | K16: =H16+I16 -> 6797.09 | L16: =H16 -> 0 | M16: 6797.09 | N16: =L16+M16 -> 6797.09 | O16: =K16-N16 -> 0 | Q16: =F16-K16 -> 35202.91 | R16: =F16-N16 -> 35202.91
E17: Fonctionnement | F17: 148000 | H17: 0 | I17: 40761.66 | K17: =H17+I17 -> 40761.66 | L17: =H17 -> 0 | M17: 15854.02 | N17: =L17+M17 -> 15854.02 | O17: =K17-N17 -> 24907.64 | Q17: =F17-K17 -> 107238.34 | R17: =F17-N17 -> 132145.98
E18: Investissement | F18: 0 | H18: 0 | I18: 0 | K18: =H18+I18 -> 0 | L18: =H18 -> 0 | M18: 0 | N18: =L18+M18 -> 0 | O18: =K18-N18 -> 0 | Q18: =F18-K18 -> 0 | R18: =F18-N18 -> 0
B19: Total Contrats de formation continue | F19: =SUM(F16:F18) -> 190000 | H19: =SUM(H16:H18) -> 0 | I19: 47558.75 | K19: =SUM(K16:K18) -> 47558.75 | L19: =SUM(L16:L18) -> 0 | M19: 22651.11 | N19: =SUM(N16:N18) -> 22651.11 | O19: =SUM(O16:O18) -> 24907.64 | Q19: =SUM(Q16:Q18) -> 142441.25 | R19: =SUM(R16:R18) -> 167348.89
B20: Contrats d'enseignement | E20: Personnel | F20: 31750 | H20: 0 | I20: 3740.59 | K20: =H20+I20 -> 3740.59 | L20: =H20 -> 0 | M20: 3740.59 | N20: =L20+M20 -> 3740.59 | O20: =K20-N20 -> 0 | Q20: =F20-K20 -> 28009.41 | R20: =F20-N20 -> 28009.41
E21: Fonctionnement | F21: =38482+605335 -> 643817 | H21: 38482 | I21: 163809.54 | K21: =H21+I21 -> 202291.54 | L21: =H21 -> 38482 | M21: 144957.46 | N21: =L21+M21 -> 183439.46 | O21: =K21-N21 -> 18852.08 | Q21: =F21-K21 -> 441525.46 | R21: =F21-N21 -> 460377.54
E22: Investissement | F22: 0 | H22: 0 | I22: 0 | K22: =H22+I22 -> 0 | L22: =H22 -> 0 | M22: 0 | N22: =L22+M22 -> 0 | O22: =K22-N22 -> 0 | Q22: =F22-K22 -> 0 | R22: =F22-N22 -> 0
B23: Total Contrats d'enseignement | F23: =SUM(F20:F22) -> 675567 | H23: =SUM(H20:H22) -> 38482 | I23: 167550.13 | K23: =SUM(K20:K22) -> 206032.13 | L23: =SUM(L20:L22) -> 38482 | M23: 148698.05 | N23: =SUM(N20:N22) -> 187180.05 | O23: =SUM(O20:O22) -> 18852.08 | Q23: =SUM(Q20:Q22) -> 469534.87 | R23: =SUM(R20:R22) -> 488386.95
B24: Programmes pluriannuels d'inv | E24: Personnel | F24: 0 | H24: 0 | I24: 0 | K24: =H24+I24 -> 0 | L24: =H24 -> 0 | M24: 0 | N24: =L24+M24 -> 0 | O24: =K24-N24 -> 0 | Q24: =F24-K24 -> 0 | R24: =F24-N24 -> 0
E25: Fonctionnement | F25: 4507.5 | H25: 0 | I25: 3807.5 | K25: =H25+I25 -> 3807.5 | L25: =H25 -> 0 | M25: 3807.5 | N25: =L25+M25 -> 3807.5 | O25: =K25-N25 -> 0 | Q25: =F25-K25 -> 700 | R25: =F25-N25 -> 700
E26: Investissement | F26: =2320329.73+10795788.31 -> 13116118.04 | H26: 2320329.73 | I26: 1259997.44 | K26: =H26+I26 -> 3580327.17 | L26: 2121846.44 | M26: 1337570.33 | N26: =L26+M26 -> 3459416.77 | O26: =K26-N26 -> 120910.4 | Q26: =F26-K26 -> 9535790.87 | R26: =F26-N26 -> 9656701.27
B27: Total Programmes pluriannuels d'inv | F27: =SUM(F24:F26) -> 13120625.54 | H27: =SUM(H24:H26) -> 2320329.73 | I27: 1263804.94 | K27: =SUM(K24:K26) -> 3584134.67 | L27: =SUM(L24:L26) -> 2121846.44 | M27: 1341377.83 | N27: =SUM(N24:N26) -> 3463224.27 | O27: =SUM(O24:O26) -> 120910.4 | Q27: =SUM(Q24:Q26) -> 9536490.87 | R27: =SUM(R24:R26) -> 9657401.27
E28: Ss total Personnel | F28: =F12+F16+F20+F24 -> 9234448.68 | H28: =H12+H16+H20+H24 -> 3347130.64 | I28: 2209342.73 | K28: =H28+I28 -> 5556473.37 | L28: =L12+L16+L20+L24 -> 3347130.64 | M28: 2209342.73 | N28: =N12+N16+N20+N24 -> 5556473.37 | O28: 0 | Q28: =Q12+Q16+Q20+Q24 -> 3677975.31 | R28: 3677975.31
E29: Ss total Fonctionnement | F29: =F13+F17+F21+F25 -> 6044211.6 | H29: =H13+H17+H21+H25 -> 2061839.29 | I29: 1409571.88 | K29: =H29+I29 -> 3471411.17 | L29: =L13+L17+L21+L25 -> 2061839.29 | M29: 1225214.17 | N29: 3287053.46 | O29: 184357.71 | Q29: 2572800.43 | R29: 2757158.14
E30: Ss total Investissement | F30: =F14+F18+F22+F26 -> 13488984.6 | H30: =H14+H18+H22+H26 -> 2550640.59 | I30: 1319510.76 | K30: =H30+I30 -> 3870151.35 | L30: =L14+L18+L22+L26 -> 2352157.3 | M30: 1372314.02 | N30: 3724471.32 | O30: 145680.03 | Q30: 9618833.25 | R30: 9764513.28
B31: TOTAL | F31: =SUM(F28:F30) -> 28767644.88 | H31: =SUM(H28:H30) -> 7959610.52 | I31: 4938425.37 | K31: =SUM(K28:K30) -> 12898035.89 | L31: =SUM(L28:L30) -> 7761127.23 | M31: 4806870.92 | N31: =SUM(N28:N30) -> 12567998.15 | O31: =SUM(O28:O30) -> 330037.74 | Q31: =SUM(Q28:Q30) -> 15869608.99 | R31: =SUM(R28:R30) -> 16199646.73
B34: B - Exécution des recettes
F35: Prévision | H35: Financements extérieurs | K35: Prévisions en N+1 et suivantes
B36: Opérations | E36: Nature | F36: Financement de l'opération | H36: Encaissements des années antérieures à N | I36: Encaissements réalisés N | K36: Reste à encaisser en N+1 et suivantes
F37: (11) | H37: (12) | I37: (13) | K37: (14) = (11) - (12) - (13)
B38: Contrats de recherche | E38: Financement de l'État | F38: =94050+650040.08+1381499.82 -> 2125589.9 | H38: 744090.08 | I38: 555308.18 | K38: =F38-H38-I38 -> 826191.64
E39: Autres financements publics | F39: =536638+7690.75+2580658.01+6679755.39 -> 9804742.15 | H39: 3124986.76 | I39: 1494337.89 | K39: =F39-H39-I39 -> 5185417.5
E40: Autres financements | F40: =585777.18+300546.52+235208.6+1873351.22 -> 2994883.52 | H40: 1121532.3 | I40: 665960.39 | K40: =F40-H40-I40 -> 1207390.83
B41: Total Contrats de recherche | F41: =SUM(F38:F40) -> 14925215.57 | H41: =SUM(H38:H40) -> 4990609.14 | I41: 2715606.46 | K41: =SUM(K38:K40) -> 7218999.97
B42: Contrats de formation continue | E42: Financement de l'État | F42: 0 | H42: 0 | I42: 0 | K42: =F42-H42-I42 -> 0
E43: Autres financements publics | F43: 190000 | H43: 0 | I43: 29430.4 | K43: =F43-H43-I43 -> 160569.6
E44: Autres financements | F44: 0 | H44: 0 | I44: 0 | K44: =F44-H44-I44 -> 0
B45: Total Contrats de formation continue | F45: =SUM(F42:F44) -> 190000 | H45: =SUM(H42:H44) -> 0 | I45: 29430.4 | K45: =SUM(K42:K44) -> 160569.6
B46: Contrats d'enseignement | E46: Financement de l'État | F46: 0 | H46: 0 | I46: 0 | K46: =F46-H46-I46 -> 0
E47: Autres financements publics | F47: =255076+120751-52461+299740 -> 623106 | H47: 255076 | I47: 181236 | K47: =F47-H47-I47 -> 186794
E48: Autres financements | F48: =52461 -> 52461 | H48: 0 | I48: 10273.27 | K48: =F48-H48-I48 -> 42187.73
B49: Total Contrats d'enseignement | F49: =SUM(F46:F48) -> 675567 | H49: =SUM(H46:H48) -> 255076 | I49: 191509.27 | K49: =SUM(K46:K48) -> 228981.73
B50: Programmes pluriannuels d'inv | E50: Financement de l'État | F50: =1927000+100000+2632500 -> 4659500 | H50: 1927000 | I50: 625625.46 | K50: =F50-H50-I50 -> 2106874.54
E51: Autres financements publics | F51: =151500+4283500 -> 4435000 | H51: 151500 | I51: 208288.27 | K51: =F51-H51-I51 -> 4075211.73
E52: Autres financements | F52: 0 | H52: 0 | I52: 0 | K52: =F52-H52-I52 -> 0
B53: Total Programmes pluriannuels d'inv | F53: =SUM(F50:F52) -> 9094500 | H53: =SUM(H50:H52) -> 2078500 | I53: 833913.73 | K53: =SUM(K50:K52) -> 6182086.27
E54: Ss total Financement de l'État | F54: =F38+F42+F46+F50 -> 6785089.9 | H54: =H38+H42+H46+H50 -> 2671090.08 | I54: 1180933.64 | K54: =+K38+K42+K46+K50 -> 2933066.18
E55: Ss total Autres financements publics | F55: =F39+F43+F47+F51 -> 15052848.15 | H55: =H39+H43+H47+H51 -> 3531562.76 | I55: 1913292.56 | K55: =+K39+K43+K47+K51 -> 9607992.83
E56: Ss total Autres financements | F56: =F40+F44+F48+F52 -> 3047344.52 | H56: =H40+H44+H48+H52 -> 1121532.3 | I56: 676233.66 | K56: =+K40+K44+K48+K52 -> 1249578.56
B57: TOTAL | F57: =SUM(F54:F56) -> 24885282.57 | H57: =SUM(H54:H56) -> 7324185.14 | I57: 3770459.86 | K57: =SUM(K54:K56) -> 13790637.57
B60: Date : | C60: 2018-02-12

Sheet 8-tab recettes_fléchées_ETAB
B1: Tableau 8 - Université de Bretagne Sud (0561718N) : Etablissement principal + Fondation
B2: Opérations liées aux recettes fléchées - Compte financier 2022
B5: POUR INFORMATION DE L'ORGANE DÉLIBÉRANT
C8: Antérieures à N non dénouées | D8: N | E8: N+1 | F8: N+2 | G8: N+3
B9: Position de financement des opérations fléchées en début d'exercice (a)
B11: Recettes fléchées (b) | C11: =SUM(C13:C15) -> 0 | D11: =SUM(D13:D15) -> 2221464 | E11: 0 | F11: 0 | G11: 0
B13: Financements de l'État fléchés | C13: 0 | D13: 0 | E13: 0 | F13: 0 | G13: 0 | H13: =IF(ROUND(D13,-1)<>ROUND('[10]2-tab_aut_budg_ETAB'!R19,-1),"! Incohérence Financ. Etat fléchés avec Tab2 ETAB","") ->  | I13: =IF(ROUND(D13,-1)<>ROUND('[10]3-tab_destination_origine_ETAB'!H50,-1),"! Incohérence Financ. Etat fléchés avec Tab3 ETAB","") ->  | J13: =IF(ROUND(D13,-1)<>ROUND('[10]7-tab Plan_tréso_ETAB'!O16,-1),"! Incohérence Financ. Etat fléchés avec Tab7","") -> 
B14: Autres financements publics fléchés | C14: 0 | D14: 2221464 | E14: 0 | F14: 0 | G14: 0 | H14: =IF(ROUND(D14,-1)<>ROUND('[10]2-tab_aut_budg_ETAB'!R20,-1),"! Incohérence Autres financ. fléchés avec Tab2 ETAB","") ->  | I14: =IF(ROUND(D14,-1)<>ROUND('[10]3-tab_destination_origine_ETAB'!I50,-1),"! Incohérence Autres financ. fléchés avec Tab3 ETAB","") ->  | J14: =IF(ROUND(D14,-1)<>ROUND('[10]7-tab Plan_tréso_ETAB'!O17,-1),"! Incohérence Autres financ. fléchés avec Tab7","") -> 
B15: Recettes propres fléchées | C15: 0 | D15: 0 | E15: 0 | F15: 0 | G15: 0 | H15: =IF(ROUND(D15,-1)<>ROUND('[10]2-tab_aut_budg_ETAB'!R21,-1),"! Incohérence Recettes propres fléchées avec Tab2 ETAB","") ->  | I15: =IF(ROUND(D15,-1)<>ROUND('[10]3-tab_destination_origine_ETAB'!J50,-1),"! Incohérence Recettes propres fléchées avec Tab3 ETAB","") ->  | J15: =IF(ROUND(D15,-1)<>ROUND('[10]7-tab Plan_tréso_ETAB'!O18,-1),"! Incohérence Recettes propres fléchées avec Tab7","") -> 
B17: Dépenses sur recettes fléchées (c) | C17: =C19+C21+C24 -> 0 | D17: =D19+D21+D24 -> 202388.96 | E17: 774736 | F17: 1026198 | G17: 1009936
B19: Personnel | C19: =C20 -> 0 | D19: =D20 -> 21933.71 | E19: 151000 | F19: 151000 | G19: 151000 | H19: =IF(ROUND(D19,-1)<>ROUND('[10]7-tab Plan_tréso_ETAB'!O35,-1),"! Incohérence dépenses Pers fléchées avec Tab7","") -> ! Incohérence dépenses Pers fléchées avec Tab7
B20: AE=CP | C20: 0 | D20: 21933.71 | E20: 151000 | F20: 151000 | G20: 151000
B21: Fonctionnement et intervention | C21: 0 | D21: =+D23 -> 172291.65 | E21: =+E23 -> 610736 | F21: 862198 | G21: 845936 | H21: =IF(ROUND(D21,-1)<>ROUND(SUM('[10]7-tab Plan_tréso_ETAB'!O36:O37),-1),"! Incohérence dépenses Fonct fléchées avec Tab7","") -> ! Incohérence dépenses Fonct fléchées avec Tab7
B22: AE | C22: 0 | D22: 780474.84 | E22: 845936 | F22: 862198 | G22: 812336
B23: CP | C23: 0 | D23: 172291.65 | E23: 610736 | F23: 862198 | G23: 845936
B24: Investissement | C24: =C26 -> 0 | D24: =D26 -> 8163.6 | E24: 13000 | F24: 13000 | G24: 13000 | H24: =IF(ROUND(D24,-1)<>ROUND(SUM('[10]7-tab Plan_tréso_ETAB'!O38),-1),"! Incohérence dépenses Invest. fléchées avec Tab7","") -> ! Incohérence dépenses Invest. fléchées avec Tab7
B25: AE | C25: 0 | D25: 8163.6 | E25: 13000 | F25: 13000 | G25: 13000
B26: CP | C26: 0 | D26: 8163.6 | E26: 13000 | F26: 13000 | G26: 13000
B28: Solde budgétaire de l'exercice résultant des opérations fléchées (b) - (c) | C28: =C11-C17 -> 0 | D28: =D11-D17 -> 2019075.04 | E28: =E11-E17 -> -774736 | F28: -1026198 | G28: -1009936
D29: (1)
D30: (1) repris au tableau "Équilibre financier" en (a) (tableau 4)
D31: =IF(D28>=0,IF(ROUND(D28,-1)<>ROUND('[10]4-tab_financier_ETAB'!G27,-1),"! Incohérence Tab4",""),IF(-ROUND('8-tab recettes_fléchées_ETAB'!D28,-1)<>ROUND('[10]4-tab_financier_ETAB'!M27,-1),"! Incohérence Tab4","")) -> ! Incohérence Tab4

Sheet 9 tab op_pluriannuelles_ETAB
B1: Tableau 9 - Université de Bretagne Sud (0561718N) : Etablissement principal + Fondation
B2: Tableau des opérations pluriannuelles - Compte Financier 2022
B3: POUR VOTE DE L'ORGANE DÉLIBÉRANT
B5: Suivi par opération (ou par regroupement d'opérations) des autorisations d'engagement, des crédits de paiement et des recettes
B7: A - Exécution des autorisations d'engagement et de crédits de paiement
D9: Prévision | F9: Exécution | N9: Prévision N+1 et suivantes
B10: Opérations | C10: Nature | D10: Coût total de l'opération | F10: AE consommées les années antérieures à N | G10: AE consommées en N | H10: Total des AE consommées | I10: CP consommés les années antérieures à N | J10: CP consommés en N | K10: Total des CP consommés | L10: Restes à payer | N10: Solde à engager | O10: Solde à payer
D12: (1) | F12: (2) | G12: (3) | H12: (4)<=(2)+(3) | I12: (5) | J12: (6) | K12: (7) = (5) + (6) | L12: (8)= (4)-(7) | N12: (9)= (1) - (4) | O12: (10) = (1) - (7)
B13: Contrats de recherche | C13: Personnel | D13: 18897737.22 | F13: 7645535.95 | G13: 3950589.24 | H13: =+F13+G13 -> 11596125.19 | I13: 7645535.95 | J13: 3950410.84 | K13: =+I13+J13 -> 11595946.79 | L13: =+H13-K13 -> 178.4 | N13: =+D13-H13 -> 7301612.03 | O13: =+D13-K13 -> 7301790.43
C14: Fonctionnement et intervention | D14: 8408091.59 | F14: 2547087.06 | G14: 1449283 | H14: =+F14+G14 -> 3996370.06 | I14: 2289753.84 | J14: 1417073.24 | K14: =+I14+J14 -> 3706827.08 | L14: =+H14-K14 -> 289542.98 | N14: 4411721.53 | O14: 4701264.51
C15: Investissement | D15: 1090721.94 | F15: 456381.6 | G15: 208887.93 | H15: =+F15+G15 -> 665269.53 | I15: 445624.15 | J15: 175689.69 | K15: 621313.84 | L15: 43955.69 | N15: 425452.41 | O15: 469408.1
B16: Total Contrats de recherche | D16: =+D13+D14+D15 -> 28396550.75 | F16: =+F13+F14+F15 -> 10649004.61 | G16: =+G13+G14+G15 -> 5608760.17 | H16: =+F16+G16 -> 16257764.78 | I16: =SUM(I13:I15) -> 10380913.94 | J16: =SUM(J13:J15) -> 5543173.77 | K16: 15924087.71 | L16: 333677.07 | N16: 12138785.97 | O16: 12472463.04
B17: Contrats d'enseignement | C17: Personnel | D17: 2096832.29 | F17: 177089.52 | G17: 343802.25 | H17: =F17+G17 -> 520891.77 | I17: 177089.52 | J17: 343802.25 | K17: 520891.77 | L17: 0 | N17: 1575940.52 | O17: 1575940.52
C18: Fonctionnement et intervention | D18: 5312899.81 | F18: 373329.66 | G18: 1154095.63 | H18: =F18+G18 -> 1527425.29 | I18: 348983.17 | J18: 525854.31 | K18: 874837.48 | L18: 652587.81 | N18: 3785474.52 | O18: 4438062.33
C19: Investissement | D19: 181817 | F19: 4641.02 | G19: 57712.67 | H19: =F19+G19 -> 62353.69 | I19: 4641.02 | J19: 13751.37 | K19: 18392.39 | L19: 43961.3 | N19: 119463.31 | O19: 163424.61
B20: Total Contrats d'enseignement | D20: =+D17+D18+D19 -> 7591549.1 | F20: =+F17+F18+F19 -> 555060.2 | G20: =+G17+G18+G19 -> 1555610.55 | H20: =+F20+G20 -> 2110670.75 | I20: =SUM(I17:I19) -> 530713.71 | J20: =SUM(J17:J19) -> 883407.93 | K20: 1414121.64 | L20: 696549.11 | N20: 5480878.35 | O20: 6177427.46
B21: Programmes pluriannuels d'investissement | C21: Personnel | D21: 0 | F21: 0 | G21: 0 | H21: =F21+G21 -> 0 | I21: 0 | J21: 0 | K21: =I21+J21 -> 0 | L21: 0 | N21: 0 | O21: 0
C22: Fonctionnement et intervention | D22: 45126.31 | F22: 5126.31 | G22: 0 | H22: =F22+G22 -> 5126.31 | I22: 5126.31 | J22: 0 | K22: 5126.31 | L22: 0 | N22: 40000 | O22: 40000
C23: Investissement | D23: 13486515.29 | F23: 6076320.04 | G23: 2356645.4 | H23: =F23+G23 -> 8432965.44 | I23: 4726255.9 | J23: 2626572.56 | K23: 7352828.46 | L23: 1080136.98 | N23: 5053549.85 | O23: 6133686.83
B24: Total Programme pluriannuels d'inv | D24: =+D21+D22+D23 -> 13531641.6 | F24: =+F21+F22+F23 -> 6081446.35 | G24: =+G21+G22+G23 -> 2356645.4 | H24: =+F24+G24 -> 8438091.75 | I24: =SUM(I21:I23) -> 4731382.21 | J24: =SUM(J21:J23) -> 2626572.56 | K24: =SUM(K21:K23) -> 7357954.77 | L24: 1080136.98 | N24: 5093549.85 | O24: 6173686.83
C25: Ss total personnel | D25: =+D13+D17+D21 -> 20994569.51 | F25: =+F13+F17+F21 -> 7822625.47 | G25: =+G13+G17+G21 -> 4294391.49 | H25: =+H13+H17+H21 -> 12117016.96 | I25: =+I13+I17+I21 -> 7822625.47 | J25: =+J13+J17+J21 -> 4294213.09 | K25: =+K13+K17+K21 -> 12116838.56 | L25: 178.4 | N25: =+N13+N17+N21 -> 8877552.55 | O25: 8877730.95
C26: Ss total fonctionnement et intervention | D26: =+D14+D18+D22 -> 13766117.71 | F26: =+F14+F18+F22 -> 2925543.03 | G26: 2603378.63 | H26: 5528921.66 | I26: 2643863.32 | J26: 1942927.55 | K26: 4586790.87 | L26: 942130.79 | N26: 8237196.05 | O26: 9179326.84
C27: Ss total investissement | D27: 14759054.23 | F27: 6537342.66 | G27: 2623246 | H27: 9160588.66 | I27: 5176521.07 | J27: 2816013.62 | K27: 7992534.69 | L27: 1168053.97 | N27: 5598465.57 | O27: 6766519.54
B28: Total | D28: =D25+D26+D27 -> 49519741.45 | F28: =F25+F26+F27 -> 17285511.16 | G28: 9521016.12 | H28: 26806527.28 | I28: 15643009.86 | J28: 9053154.26 | K28: 24696164.12 | L28: 2110363.16 | N28: =N25+N26+N27 -> 22713214.17 | O28: =O25+O26+O27 -> 24823577.33
B30: B - Exécution des recettes
D31: Prévision | F31: Financements extérieurs | I31: Prévisions en N+1 et suivantes
B32: Opérations | C32: Nature | D32: Financement de l'opération | F32: Encaissements des années antérieures à N | G32: Encaissements réalisés en N | I32: Reste à encaisser en N+1 et suivantes
G33: Montant
D34: (11) | F34: (12) | G34: (13) | I34: (14) = (11) - (12) - (13)
B35: Contrats de recherche | C35: Financement de l'Etat* | D35: 6003245.93 | F35: 1576908.25 | G35: 779647.71 | I35: =+D35-F35-G35 -> 3646689.97
C36: Autres financements publics** | D36: 18735869.72 | F36: 7023761.8 | G36: 3674459.13 | I36: =+D36-F36-G36 -> 8037648.79
C37: Autres financements*** | D37: 4570478.77 | F37: 1596558.56 | G37: 1203694.77 | I37: =+D37-F37-G37 -> 1770225.44
C38: Total Contrats de recherche | D38: =SUM(D35:D37) -> 29309594.42 | F38: =+F35+F36+F37 -> 10197228.61 | G38: =SUM(G35:G37) -> 5657801.61 | I38: =+I35+I36+I37 -> 13454564.2
B39: Contrats d'enseignement | C39: Financement de l'Etat* | D39: 1162000 | F39: 472400 | G39: 86200 | I39: =+D39-F39-G39 -> 603400
C40: Autres financements publics** | D40: 6430884 | F40: 1317668.74 | G40: 2535177.9 | I40: =+D40-F40-G40 -> 2578037.36
C41: Autres financements*** | D41: 0 | F41: 99 | G41: 10106.02 | I41: =+D41-F41-G41 -> -10205.02
C42: Total Contrats d'enseignement | D42: =SUM(D39:D41) -> 7592884 | F42: =+F39+F40+F41 -> 1790167.74 | G42: =SUM(G39:G41) -> 2631483.92 | I42: =+I39+I40+I41 -> 3171232.34
B43: Programmes pluriannuels d'investissement | C43: Financement de l'Etat* | D43: 6479288.19 | F43: 4726959.34 | G43: 949841.53 | I43: =+D43-F43-G43 -> 802487.32
C44: Autres financements publics** | D44: 5282655.96 | F44: 1317944.21 | G44: 873763.79 | I44: =+D44-F44-G44 -> 3090947.96
C45: Autres financements*** | D45: 0 | F45: -22957.86 | G45: 0 | I45: =+D45-F45-G45 -> 22957.86
C46: Total Programme pluriannuels d'inv | D46: =SUM(D43:D45) -> 11761944.15 | F46: =+F43+F44+F45 -> 6021945.69 | G46: =SUM(G43:G45) -> 1823605.32 | I46: =+I43+I44+I45 -> 3916393.14
C47: Ss total financement de l'Etat* | D47: =+D35+D39+D43 -> 13644534.12 | F47: =+F35+F39+F43 -> 6776267.59 | G47: =+G35+G39+G43 -> 1815689.24 | I47: =+I35+I39+I43 -> 5052577.29
C48: Ss total autres financements publics** | D48: 30449409.68 | F48: 9659374.75 | G48: 7083400.82 | I48: 13706634.11
C49: Ss total autres financements*** | D49: 4570478.77 | F49: 1573699.7 | G49: 1213800.79 | I49: 1782978.28
B50: Total | D50: =+D47+D48+D49 -> 48664422.57 | F50: =+F47+F48+F49 -> 18009342.04 | G50: =+G47+G48+G49 -> 10112890.85 | I50: =+I47+I48+I49 -> 20542189.68
B53: * Subvention pour charge de service public, financements de l'Etat, fiscalité affectée, financements de l'Etat fléchés
B54: ** Autres financements publics et autres financements publics fléchés
B55: *** Recettes propres et recettes propres fléchées

Sheet Annexe Synthèse_ETAB
B1: ANNEXE 5 - Université de Bretagne Sud (0561718N) : Etablissement principal + Fondation
B2: Synthèse budgétaire et comptable - Compte Financier 2022
B4: POUR INFORMATION DE L'ORGANE DÉLIBÉRANT
H6: Budget initial | I6: Dernier Budget Modifié | J6: Compte Financier
B7: Stocks initiaux | D7: 1 | F7: Niveau initial de restes à payer | H7: 3459160.49 | I7: 5092135.36 | J7: 4846892.93 | K7: à saisir
D9: 2 | F9: Niveau initial du fonds de roulement | H9: 11530751.97 | I9: 13746877.81 | J9: 13746877.81 | K9: à saisir | L9: =IF(ROUND(I9,-1)<>ROUND('[26]6-tab CR_TF_ETAB'!F49,-1),"! Pb incohérence besoin fonds de roulement BI Tab6 ETAB","") -> ! Pb incohérence besoin fonds de roulement BI Tab6 ETAB | M9: =IF(ROUND(I9,-1)<>ROUND('[26]6-tab CR_TF_ETAB'!G49,-1),"! Pb incohérence besoin fonds de roulement BI Tab6 ETAB","") -> ! Pb incohérence besoin fonds de roulement BI Tab6 ETAB | N9: =IF(ROUND(I9,-1)<>ROUND('[26]6-tab CR_TF_ETAB'!H49,-1),"! Pb incohérence besoin fonds de roulement BI Tab6 ETAB","") -> ! Pb incohérence besoin fonds de roulement BI Tab6 ETAB
D10: 3 | F10: Niveau initial du besoin en fonds de roulement | H10: =H9-H11 -> 1445516.83 | I10: 162438.61 | J10: =J9-J11 -> 162438.61 | L10: =IF(ROUND(I10,-1)<>ROUND('[26]6-tab CR_TF_ETAB'!F50,-1),"! Pb incohérence besoin fonds de roulement BI Tab6 ETAB","") -> ! Pb incohérence besoin fonds de roulement BI Tab6 ETAB | M10: =IF(ROUND(I10,-1)<>ROUND('[26]6-tab CR_TF_ETAB'!G50,-1),"! Pb incohérence besoin fonds de roulement BI Tab6 ETAB","") -> ! Pb incohérence besoin fonds de roulement BI Tab6 ETAB | N10: =IF(ROUND(I10,-1)<>ROUND('[26]6-tab CR_TF_ETAB'!H50,-1),"! Pb incohérence besoin fonds de roulement BI Tab6 ETAB","") -> ! Pb incohérence besoin fonds de roulement BI Tab6 ETAB
D11: 4 | F11: Niveau initial de la trésorerie | H11: 10085235.14 | I11: 13584439.2 | J11: 13584439.2 | K11: à saisir | L11: =IF(ROUND(I11,-1)<>ROUND('[26]6-tab CR_TF_ETAB'!F51,-1),"! Pb incohérence besoin fonds de roulement BI Tab6 ETAB","") -> ! Pb incohérence besoin fonds de roulement BI Tab6 ETAB | M11: =IF(ROUND(I11,-1)<>ROUND('[26]6-tab CR_TF_ETAB'!G51,-1),"! Pb incohérence besoin fonds de roulement BI Tab6 ETAB","") -> ! Pb incohérence besoin fonds de roulement BI Tab6 ETAB | N11: =IF(ROUND(I11,-1)<>ROUND('[26]6-tab CR_TF_ETAB'!H51,-1),"! Pb incohérence besoin fonds de roulement BI Tab6 ETAB","") -> ! Pb incohérence besoin fonds de roulement BI Tab6 ETAB
E12: 4.a | F12: dont niveau initial de la trésorerie fléchée | H12: 0 | I12: 0 | J12: 0 | K12: à saisir
E13: 4.b | F13: dont niveau initial de la trésorerie non fléchée | H13: =H11-H12 -> 10085235.14 | I13: 13584439.2 | J13: =+J11-J12 -> 13584439.2
B15: Flux de l'année | D15: 5 | F15: Autorisations d'engagement | H15: ='2-tab_aut_budg_ETAB'!C28 -> 97587640.5 | I15: ='2-tab_aut_budg_ETAB'!E28 -> 98051478.86 | J15: ='2-tab_aut_budg_ETAB'!G28 -> 93880444.49
D17: 6 | F17: Résultat patrimonial | H17: =IF('6-tab CR_TF_ETAB'!B14>0,'6-tab CR_TF_ETAB'!B14,-'6-tab CR_TF_ETAB'!F14) -> -329398 | I17: =IF('6-tab CR_TF_ETAB'!C14>0,'6-tab CR_TF_ETAB'!C14,-'6-tab CR_TF_ETAB'!G14) -> 568215.23 | J17: =IF('6-tab CR_TF_ETAB'!D14>0,'6-tab CR_TF_ETAB'!D14,-'6-tab CR_TF_ETAB'!H14) -> 2375948.13
D18: 7 | F18: Capacité d'autofinancement (CAF) | H18: ='6-tab CR_TF_ETAB'!B28 -> 2257145 | I18: ='6-tab CR_TF_ETAB'!C28 -> 2910104.23 | J18: ='6-tab CR_TF_ETAB'!D28 -> 4571199.98
D19: 8 | F19: Variation du fonds de roulement | H19: ='6-tab CR_TF_ETAB'!F46 -> -2107810 | I19: ='6-tab CR_TF_ETAB'!G46 -> -1557769.13 | J19: ='6-tab CR_TF_ETAB'!H46 -> 590153.23
D21: 9 | E21: 9.a | F21: Opérations bilancielles non budgétaires | G21: SENS | H21: =SUM(H22:H24) -> 0 | I21: 0 | J21: 0 | L21: =IF(ROUND(H21,-1)=ROUND('4-tab_financier_ETAB'!G17-'4-tab_financier_ETAB'!C17,-1),"","! Pb incohérence opérations non budgétaires Tab4") ->  | M21: =IF(ROUND(I21,-1)=ROUND('4-tab_financier_ETAB'!H17-'4-tab_financier_ETAB'!D17,-1),"","! Pb incohérence opérations non budgétaires Tab4") ->  | N21: =IF(ROUND(J21,-1)=ROUND('4-tab_financier_ETAB'!I17-'4-tab_financier_ETAB'!E17,-1),"","! Pb incohérence opérations non budgétaires Tab4") ->  | O21: =IF(ROUND(J21,-1)=ROUND('7-tab Plan_tréso_ETAB'!O19-'7-tab Plan_tréso_ETAB'!O39,-1),"","! Pb incohérence opérations non budgétaires Tab7") -> 
F22: Nouvel emprunt / remboursement de prêt | G22: + / - | K22: à saisir
F23: Remboursement d'emprunt / prêt accordé | G23: + | K23: à saisir
F24: Cautionnements et dépôts | G24: - | J24: ='7-tab Plan_tréso_ETAB'!O22-'7-tab Plan_tréso_ETAB'!O42 -> 0 | K24: à saisir
D26: 10 | E26: 9.a | F26: Opérations comptables non retraitées par la CAF, non budgétaires | G26: SENS | H26: =SUM(H27:H30) -> 0 | I26: =SUM(I27:I30) -> 0 | J26: -149542.38
F27: Variation des stocks | G27: + / - | K27: à saisir
F28: Production immobilisée | G28: + | K28: à saisir
F29: Charges sur créances irrécouvrables | G29: - | J29: -306435.62 | K29: à saisir
F30: Produits divers de gestion courante | G30: + | J30: 156893.24 | K30: à saisir
D32: 11 | E32: 9.b | F32: Décalages de flux de trésorerie liés aux opérations budgétaires | G32: SENS | H32: =H34-H36 -> -368589.83 | I32: =I34-I36 -> -769953.99 | J32: =SUM(J33:J36) -> 631790.84
F33: Ecart entre les produits / ressources et les encaissements relatifs à des opérations sur exercices antérieurs | G33: + / - | J33: -3859970.71 | K33: à saisir
F34: Ecart entre les produits / ressources et les encaissements relatifs à des opérations de l'exercice en cours | G34: + / - | H34: -593582.73 | I34: -1213223.98 | J34: =4658859.93+16500.07 -> 4675360 | K34: à saisir
F35: Ecart entre les charges / immobilisations et les décaissements relatifs à des opérations sur exercices antérieurs | G35: + / - | J35: -64799.06 | K35: à saisir
F36: Ecart entre les charges / immobilisations et les décaissements relatifs à des opérations de l'exercice en cours | G36: + / - | H36: -224992.9 | I36: -443269.99 | J36: -118799.39 | K36: à saisir
D38: 12 | F38: Solde budgétaire = 8 - 9 - 10 - 11 | H38: =H19-H26-H32-H21 -> -1739220.17 | I38: =I19-I26-I32-I21 -> -787815.14 | J38: =J19-J26-J32-J21 -> 107904.77 | L38: =IF(ROUND(H38,-1)<>ROUND(IF(H38>0,'2-tab_aut_budg_ETAB'!D30,-'2-tab_aut_budg_ETAB'!J30),-1),"!Pb Incohérence solde budgétaire Tab2","")&" "&IF(ROUND(H38,-1)<>ROUND(IF(H38>0,'4-tab_financier_ETAB'!G11,-'4-tab_financier_ETAB'!C11),-1),"!Pb Incohérence solde budgétaire Tab4","") ->  | N38: =IF(ROUND(J38,-1)<>ROUND(IF(J38>0,'2-tab_aut_budg_ETAB'!H30,-'2-tab_aut_budg_ETAB'!L30),-1),"!Pb Incohérence solde budgétaire Tab2","")&" "&IF(ROUND(J38,-1)<>ROUND(IF(J38>0,'4-tab_financier_ETAB'!I11,-'4-tab_financier_ETAB'!E11),-1),"!Pb Incohérence solde budgétaire Tab4","") ->  | O38: =IF(ROUND(J38,-1)<>ROUND(IF(J38>0,'3-tab_destination_origine_ETAB'!J30,-'3-tab_destination_origine_ETAB'!K52),-1),"!Pb Incohérence solde budgétaire Tab3","") -> 
E39: 12.a | F39: Recettes budgétaires | H39: ='2-tab_aut_budg_ETAB'!J28 -> 95361369.73 | I39: ='2-tab_aut_budg_ETAB'!K28 -> 96847084.69 | J39: ='2-tab_aut_budg_ETAB'!L28 -> 92847985 | L39: =IF(ROUND(H39-H40,-1)<>ROUND(H38,-1),"! Pb Recettes - CP <> Solde budgétaire","") -> 
E40: 12.b | F40: Crédits de paiement ouverts | H40: ='2-tab_aut_budg_ETAB'!D28 -> 97100589.9 | I40: ='2-tab_aut_budg_ETAB'!F28 -> 97634899.83 | J40: ='2-tab_aut_budg_ETAB'!H28 -> 92740080.23
D42: 13 | E42: 9.c | F42: Décalage du flux de trésorerie liés aux opérations de trésorerie non budgétaire | H42: ='4-tab_financier_ETAB'!G19-'4-tab_financier_ETAB'!C19+'4-tab_financier_ETAB'!G21-'4-tab_financier_ETAB'!C21 -> 460905.4001 | I42: ='4-tab_financier_ETAB'!H19-'4-tab_financier_ETAB'!D19+'4-tab_financier_ETAB'!H21-'4-tab_financier_ETAB'!D21 -> 169352 | J42: ='4-tab_financier_ETAB'!I19-'4-tab_financier_ETAB'!E19+'4-tab_financier_ETAB'!I21-'4-tab_financier_ETAB'!E21 -> 495767.03 | L42: =IF(ROUND(H42,-1)<>ROUND('5-tab compte de tiers_ETAB'!F15-'5-tab compte de tiers_ETAB'!E15,-1),"! Pb incohérence avec Tab5","") -> 
D44: 14 | F44: Variation de la trésorerie = 12 +13 | H44: =H38+H42 -> -1278314.77 | I44: =I38+I42+0.29 -> -618462.85 | J44: =J38+J42+J21 -> 603671.8 | L44: =IF(ROUND(H44,-1)<>ROUND(IF(H44>0,'4-tab_financier_ETAB'!C24,-'4-tab_financier_ETAB'!G24),-1),"! Incohérence Var trésorerie Tab4","")&" "&IF(ROUND(H44,-1)<>ROUND('6-tab CR_TF_ETAB'!F48,-1),"! Incohérence Var trésorerie Tab6","") ->  | M44: =IF(ROUND(I44,-1)<>ROUND(IF(I44>0,'4-tab_financier_ETAB'!D24,-'4-tab_financier_ETAB'!H24),-1),"! Incohérence Var trésorerie Tab4","")&" "&IF(ROUND(I44,-1)<>ROUND('6-tab CR_TF_ETAB'!G48,-1),"! Incohérence Var trésorerie Tab6","") ->  | N44: =IF(ROUND(J44,-1)<>ROUND(IF(J44>0,'4-tab_financier_ETAB'!E24,-'4-tab_financier_ETAB'!I24),-1),"! Incohérence Var trésorerie Tab4","")&" "&IF(ROUND(J44,-1)<>ROUND('6-tab CR_TF_ETAB'!H48,-1),"! Incohérence Var trésorerie Tab6","") ->  | O44: =IF(ROUND(J44,-1)<>ROUND('7-tab Plan_tréso_ETAB'!O48,-1),"! Incohérence Var trésorerie Tab7","") -> 
E45: 14.a | F45: dont variation de la trésorerie fléchée | H45: ='4-tab_financier_ETAB'!C26-'4-tab_financier_ETAB'!G26 -> 0 | I45: ='4-tab_financier_ETAB'!D26-'4-tab_financier_ETAB'!H26 -> 1929527 | J45: ='4-tab_financier_ETAB'!E26-'4-tab_financier_ETAB'!I26 -> 2019075.04
E46: 14.b | F46: dont variation de la trésorerie non fléchée | H46: ='4-tab_financier_ETAB'!C28-'4-tab_financier_ETAB'!G28 -> -1278314.77 | I46: ='4-tab_financier_ETAB'!D28-'4-tab_financier_ETAB'!H28 -> -2547990.14 | J46: =-('4-tab_financier_ETAB'!I28) -> -1415403.24
D48: 15 | F48: Variation du besoin en fonds de roulement = 9 + 10 + 11 + 13 | H48: =H26+H32-H42+H21 -> -829495.2301 | I48: =I26+I32-I42+I21 -> -939305.99 | J48: =J26+J32-J42 -> -13518.57 | K48: o | L48: =IF(ABS(ROUND(H48,-1))<>ABS(ROUND('6-tab CR_TF_ETAB'!F48-'6-tab CR_TF_ETAB'!F46,-1)),"! Incohérence var FDR du Tab6 ETAB","") ->  | M48: =IF(ABS(ROUND(I48,-1))<>ABS(ROUND('6-tab CR_TF_ETAB'!G48-'6-tab CR_TF_ETAB'!G46,-1)),"! Incohérence var FDR du Tab6 ETAB","") ->  | N48: =IF(ABS(ROUND(J48,-1))<>ABS(ROUND('6-tab CR_TF_ETAB'!H48-'6-tab CR_TF_ETAB'!H46,-1)),"! Incohérence var FDR du Tab6 ETAB","") -> 
D50: 16 | F50: Restes à payer | H50: =H15-H40 -> 487050.6 | I50: =I15-I40 -> 416579.03 | J50: =J15-J40 -> 1140364.26
B52: Stocks finaux | D52: 17 | F52: Niveau final de restes à payer | H52: =H7+H50 -> 3946211.09 | I52: =I7+I50 -> 5508714.39 | J52: 5987257.19
D54: 18 | F54: Niveau final du fonds de roulement | H54: =H9+H19 -> 9422941.97 | I54: =I9+I19 -> 12189108.68 | J54: =J9+J19 -> 14337031.04 | M54: =IF(ROUND(I54,-1)<>ROUND('6-tab CR_TF_ETAB'!G49,-1),"! Pb incohérence avec niveau final FDR Tab6 ETAB","") ->  | N54: =IF(ROUND(J54,-1)<>ROUND('6-tab CR_TF_ETAB'!H49,-1),"! Pb incohérence avec niveau final FDR Tab6 ETAB","") -> 
D55: 19 | F55: Niveau final du besoin en fonds de roulement | H55: =H54-H56 -> 616021.5999 | I55: =I54-I56 -> -776867.67 | J55: =J54-J56 -> 148920.04 | M55: =IF(ROUND(I55,-1)<>ROUND('6-tab CR_TF_ETAB'!G50,-1),"! Pb incohérence avec niveau final BFDR Tab6 ETAB","") ->  | N55: =IF(ROUND(J55,-1)<>ROUND('6-tab CR_TF_ETAB'!H50,-1),"! Pb incohérence avec niveau final BFDR Tab6 ETAB","") -> 
D56: 20 | F56: Niveau final de la trésorerie | H56: =H11+H44 -> 8806920.37 | I56: =I11+I44 -> 12965976.35 | J56: 14188111 | N56: =IF(ROUND(J55,-1)<>ROUND('6-tab CR_TF_ETAB'!H50,-1),"! Pb incohérence avec niveau final BFDR Tab6 ETAB","") -> 
E57: 20.a | F57: dont niveau final de la trésorerie fléchée | H57: =H12+H45 -> 0 | I57: =I12+I45 -> 1929527 | J57: 2019075.04
E58: 20.b | F58: dont niveau final de la trésorerie non fléchée | H58: =H13+H46 -> 8806920.37 | I58: =I13+I46 -> 11036449.06 | J58: =J56-J57 -> 12169035.96
F60: Comptabilité budgétaire
F61: Comptabilité générale
